{"text_format":"1","workbook":"xlsx","n_sheets":6,"sheets":["SDPvierge","PrixMTX","xData","LISTE","Feuil2","Feuil3"],"not_rendered":{"charts":0,"images":0,"macros":1,"external_links":1,"defined_names":65,"comments":0,"pivot_tables":0},"unopened":[],"bounds":{"document_bytes":16777216,"sheet_cells":100000,"rows_first":2000,"rows_last":500,"rows_between":2000,"halvings":0,"cell_chars":16384,"cell_head_chars":4096},"cells_cut":0,"cells_raw":0,"read":"whole","date_system":"1900"}

{"sheet":"SDPvierge","index":0,"n_rows":52,"n_cols":28,"rows_kept":52,"cut":false,"hidden":false,"merged":[[25,16,25,18],[2,5,2,9],[3,5,3,9],[5,5,5,9],[7,5,7,9],[24,16,24,18],[27,16,27,17],[38,16,38,17],[44,16,44,17],[50,5,50,6],[57,4,57,15]]}
[null,null,null,null,null,null,null,null,null,null,null,null,null,null,null,null,null,null,null,"î\nCommandes"]
[]
[]
[]
[]
[]
[]
[]
[]
[]
[]
[]
[]
[]
[]
[]
[]
[]
["La formule en colonne J est simplifié (le code >SIERREUR évite de répéter la formule et existe depuis Excel 2007 et sert pour tous types de formules qui peut renvoyer une erreur"]
["La ligne 29 est dans ce cas utilisable"]
["Si la colonne E affiche A sélectionner en C"]
["sélectionner le libellé en C (cellule en bleu automatiquement)"]
["De la ligne 29 à la ligne 50 (voir code onglet)",null,null,null,{"$f":"\"BASE \"&L4","v":"BASE "}]
["L'entrée d'une valeur en B efface C"]
[null,null,null,null,"SOUS DETAIL DE PRIX POUR :",null,null,null,null,null,null,"Rendement :",1]
[null,null,null,"CODE","Désignation","Coef.","Densité /","Quantité","Unité","Déboursé","Déboursé","Déboursé","Déboursé","Contrôle"]
[null,null,null,null,null,"Pertes","Rendement",null,null,"unitaire","matériaux","matériel","main d'œuvre","Date MAJ"]
[null,null,null,null,"Matériaux",null,null,null,null,null,{"$f":"IF(D28=\"MTX\",H28*J28,\"\")","v":""},{"$f":"IF(D28=\"MTL\",#REF!*J28,\"\")","v":""},{"$f":"IF(D28=\"MO\",#REF!*J28,\"\")","v":""},{"$f":"IF(OR($D28=\"\",$E28=\"\"),\"\",IF(ISERROR(VLOOKUP($E28,PrixMTX,[1]PrixMTX!R$2,FALSE)),\"N/A\",VLOOKUP($E28,PrixMTX,[1]PrixMTX!R$2,FALSE)))","v":""}]
["BETON","Non_Livré",null,null,{"$f":"IF(OR(A29=\"\",B29=\"\"),\"\",IF(C29<>\"\",C29,IF(COUNTIFS(TCDcategorie,A29,TCDsousCat,B29)>1,\"à sélectionner en C\",INDEX(DesignationMTX,MATCH(A29&B29,TCDcategorie&TCDsousCat,0)))))","v":"à sélectionner en C"},null,null,null,null,{"$f":"IFERROR(VLOOKUP($E29,PrixMTX,PrixMTX!N$3,FALSE),\"0\")","v":"0"},"",null,{"$f":"IF(D29=\"MO\",I28*#REF!,\"\")","v":""},{"$f":"IF(OR($D29=\"\",$E29=\"\"),\"\",IF(ISERROR(VLOOKUP($E29,PrixMTX,[1]PrixMTX!R$2,FALSE)),\"N/A\",VLOOKUP($E29,PrixMTX,[1]PrixMTX!R$2,FALSE)))","v":""},null,null,null,null,null,null,null,null,null,null,null,null,{"$f":"IF(OR(A29=\"\",B29=\"\"),\"\",HLOOKUP(A29&B29,LISTE!$A$5:$Z$6,2,0))","v":"Cat2_"}]
["BETON","Livré","Béton+ PUMI complet (6 m3)","MTX",{"$f":"IF(OR(A30=\"\",B30=\"\"),\"\",IF(C30<>\"\",C30,IF(COUNTIFS(TCDcategorie,A30,TCDsousCat,B30)>1,\"à sélectionner en C\",INDEX(DesignationMTX,MATCH(A30&B30,TCDcategorie&TCDsousCat,0)))))","v":"Béton+ PUMI complet (6 m3)"},1,null,null,"m3",{"$f":"IFERROR(VLOOKUP($E30,PrixMTX,PrixMTX!N$3,FALSE),\"0\")","v":6},0,null,{"$f":"IF(D30=\"MO\",I29*#REF!,\"\")","v":""},{"$f":"IF(OR($D30=\"\",$E30=\"\"),\"\",IF(ISERROR(VLOOKUP($E30,PrixMTX,[1]PrixMTX!R$2,FALSE)),\"N/A\",VLOOKUP($E30,PrixMTX,[1]PrixMTX!R$2,FALSE)))","v":"2014-11-01"},null,null,null,null,null,null,null,null,null,null,null,null,{"$f":"IF(OR(A30=\"\",B30=\"\"),\"\",HLOOKUP(A30&B30,LISTE!$A$5:$Z$6,2,0))","v":"Cat1_"},{"$f":"IF(OR(A30=\"\",B30=\"\"),\"\",IF(COUNTIFS(TCDcategorie,A30,TCDsousCat,B30)>1,\"à sélectionner\",INDEX(DesignationMTX,MATCH(A30&B30,TCDcategorie&TCDsousCat,0))))","v":"à sélectionner"}]
["BOIS","Structure",null,"MTX",{"$f":"IF(OR(A31=\"\",B31=\"\"),\"\",IF(C31<>\"\",C31,IF(COUNTIFS(TCDcategorie,A31,TCDsousCat,B31)>1,\"à sélectionner en C\",INDEX(DesignationMTX,MATCH(A31&B31,TCDcategorie&TCDsousCat,0)))))","v":"à sélectionner en C"},1,null,null,"Unité",{"$f":"IFERROR(VLOOKUP($E31,PrixMTX,PrixMTX!N$3,FALSE),\"0\")","v":"0"},0,null,{"$f":"IF(D31=\"MO\",H31*#REF!,\"\")","v":""},{"$f":"IF(OR($D31=\"\",$E31=\"\"),\"\",IF(ISERROR(VLOOKUP($E31,PrixMTX,[1]PrixMTX!R$2,FALSE)),\"N/A\",VLOOKUP($E31,PrixMTX,[1]PrixMTX!R$2,FALSE)))","v":"N/A"},null,null,null,null,null,null,null,null,null,null,null,null,{"$f":"IF(OR(A31=\"\",B31=\"\"),\"\",HLOOKUP(A31&B31,LISTE!$A$5:$Z$6,2,0))","v":"Cat3_"},{"$f":"IF(OR(A31=\"\",B31=\"\"),\"\",IF(COUNTIFS(TCDcategorie,A31,TCDsousCat,B31)>1,\"à sélectionner\",INDEX(DesignationMTX,MATCH(A31&B31,TCDcategorie&TCDsousCat,0))))","v":"à sélectionner"}]
["CLOTURES","Panneaux","Bidim geotextile PP 120 g/m²","MTX",{"$f":"IF(OR(A32=\"\",B32=\"\"),\"\",IF(C32<>\"\",C32,IF(COUNTIFS(TCDcategorie,A32,TCDsousCat,B32)>1,\"à sélectionner en C\",INDEX(DesignationMTX,MATCH(A32&B32,TCDcategorie&TCDsousCat,0)))))","v":"Bidim geotextile PP 120 g/m²"},null,null,null,null,{"$f":"IFERROR(VLOOKUP($E32,PrixMTX,PrixMTX!N$3,FALSE),\"0\")","v":22},0,null,{"$f":"IF(D32=\"MO\",H32*J32,\"\")","v":""},{"$f":"IF(OR($D32=\"\",$E32=\"\"),\"\",IF(ISERROR(VLOOKUP($E32,PrixMTX,[1]PrixMTX!R$2,FALSE)),\"N/A\",VLOOKUP($E32,PrixMTX,[1]PrixMTX!R$2,FALSE)))","v":"2014-11-01"},null,null,null,null,null,null,null,null,null,null,null,null,{"$f":"IF(OR(A32=\"\",B32=\"\"),\"\",HLOOKUP(A32&B32,LISTE!$A$5:$Z$6,2,0))","v":"Cat4_"},{"$f":"IF(OR(A32=\"\",B32=\"\"),\"\",IF(COUNTIFS(TCDcategorie,A32,TCDsousCat,B32)>1,\"à sélectionner\",INDEX(DesignationMTX,MATCH(A32&B32,TCDcategorie&TCDsousCat,0))))","v":"à sélectionner"}]
["TOILES","Hors_Sol",null,"MTX",{"$f":"IF(OR(A33=\"\",B33=\"\"),\"\",IF(C33<>\"\",C33,IF(COUNTIFS(TCDcategorie,A33,TCDsousCat,B33)>1,\"à sélectionner en C\",INDEX(DesignationMTX,MATCH(A33&B33,TCDcategorie&TCDsousCat,0)))))","v":"Toile Hors sol verte 130g/m²"},null,null,null,null,{"$f":"IFERROR(VLOOKUP($E33,PrixMTX,PrixMTX!N$3,FALSE),\"0\")","v":23},0,null,"",{"$f":"IF(OR($D33=\"\",$E33=\"\"),\"\",IF(ISERROR(VLOOKUP($E33,PrixMTX,[1]PrixMTX!R$2,FALSE)),\"N/A\",VLOOKUP($E33,PrixMTX,[1]PrixMTX!R$2,FALSE)))","v":"2014-11-01"},null,null,null,null,null,null,null,null,null,null,null,null,{"$f":"IF(OR(A33=\"\",B33=\"\"),\"\",HLOOKUP(A33&B33,LISTE!$A$5:$Z$6,2,0))","v":{"$error":"#N/A"}},{"$f":"IF(OR(A33=\"\",B33=\"\"),\"\",IF(COUNTIFS(TCDcategorie,A33,TCDsousCat,B33)>1,\"à sélectionner\",INDEX(DesignationMTX,MATCH(A33&B33,TCDcategorie&TCDsousCat,0))))","v":"Toile Hors sol verte 130g/m²"}]
[null,null,null,"MTX",{"$f":"IF(OR(A34=\"\",B34=\"\"),\"\",IF(C34<>\"\",C34,IF(COUNTIFS(TCDcategorie,A34,TCDsousCat,B34)>1,\"à sélectionner en C\",INDEX(DesignationMTX,MATCH(A34&B34,TCDcategorie&TCDsousCat,0)))))","v":""},null,null,null,null,{"$f":"IFERROR(VLOOKUP($E34,PrixMTX,PrixMTX!N$3,FALSE),\"0\")","v":"0"},0,{"$f":"IF(D34=\"MTL\",H34*J34,\"\")","v":""},"",{"$f":"IF(OR($D34=\"\",$E34=\"\"),\"\",IF(ISERROR(VLOOKUP($E34,PrixMTX,[1]PrixMTX!R$2,FALSE)),\"N/A\",VLOOKUP($E34,PrixMTX,[1]PrixMTX!R$2,FALSE)))","v":""},null,null,null,null,null,null,null,null,null,null,null,null,{"$f":"IF(OR(A34=\"\",B34=\"\"),\"\",HLOOKUP(A34&B34,LISTE!$A$5:$Z$6,2,0))","v":""},{"$f":"IF(OR(A34=\"\",B34=\"\"),\"\",IF(COUNTIFS(TCDcategorie,A34,TCDsousCat,B34)>1,\"à sélectionner\",INDEX(DesignationMTX,MATCH(A34&B34,TCDcategorie&TCDsousCat,0))))","v":""}]
[null,null,null,"MTX",{"$f":"IF(OR(A35=\"\",B35=\"\"),\"\",IF(C35<>\"\",C35,IF(COUNTIFS(TCDcategorie,A35,TCDsousCat,B35)>1,\"à sélectionner en C\",INDEX(DesignationMTX,MATCH(A35&B35,TCDcategorie&TCDsousCat,0)))))","v":""},null,null,null,null,{"$f":"IFERROR(VLOOKUP($E35,PrixMTX,PrixMTX!N$3,FALSE),\"0\")","v":"0"},0,"","",{"$f":"IF(OR($D35=\"\",$E35=\"\"),\"\",IF(ISERROR(VLOOKUP($E35,PrixMTX,[1]PrixMTX!R$2,FALSE)),\"N/A\",VLOOKUP($E35,PrixMTX,[1]PrixMTX!R$2,FALSE)))","v":""},null,null,null,null,null,null,null,null,null,null,null,null,{"$f":"IF(OR(A35=\"\",B35=\"\"),\"\",HLOOKUP(A35&B35,LISTE!$A$5:$Z$6,2,0))","v":""},{"$f":"IF(OR(A35=\"\",B35=\"\"),\"\",IF(COUNTIFS(TCDcategorie,A35,TCDsousCat,B35)>1,\"à sélectionner\",INDEX(DesignationMTX,MATCH(A35&B35,TCDcategorie&TCDsousCat,0))))","v":""}]
[null,null,null,"MTX",{"$f":"IF(OR(A36=\"\",B36=\"\"),\"\",IF(C36<>\"\",C36,IF(COUNTIFS(TCDcategorie,A36,TCDsousCat,B36)>1,\"à sélectionner en C\",INDEX(DesignationMTX,MATCH(A36&B36,TCDcategorie&TCDsousCat,0)))))","v":""},null,null,null,null,{"$f":"IFERROR(VLOOKUP($E36,PrixMTX,PrixMTX!N$3,FALSE),\"0\")","v":"0"},0,"","",{"$f":"IF(OR($D36=\"\",$E36=\"\"),\"\",IF(ISERROR(VLOOKUP($E36,PrixMTX,[1]PrixMTX!R$2,FALSE)),\"N/A\",VLOOKUP($E36,PrixMTX,[1]PrixMTX!R$2,FALSE)))","v":""},null,null,null,null,null,null,null,null,null,null,null,null,{"$f":"IF(OR(A36=\"\",B36=\"\"),\"\",HLOOKUP(A36&B36,LISTE!$A$5:$Z$6,2,0))","v":""},{"$f":"IF(OR(A36=\"\",B36=\"\"),\"\",IF(COUNTIFS(TCDcategorie,A36,TCDsousCat,B36)>1,\"à sélectionner\",INDEX(DesignationMTX,MATCH(A36&B36,TCDcategorie&TCDsousCat,0))))","v":""}]
[null,null,null,"MTX",{"$f":"IF(OR(A37=\"\",B37=\"\"),\"\",IF(C37<>\"\",C37,IF(COUNTIFS(TCDcategorie,A37,TCDsousCat,B37)>1,\"à sélectionner en C\",INDEX(DesignationMTX,MATCH(A37&B37,TCDcategorie&TCDsousCat,0)))))","v":""},null,null,null,null,{"$f":"IFERROR(VLOOKUP($E37,PrixMTX,PrixMTX!N$3,FALSE),\"0\")","v":"0"},0,"","",{"$f":"IF(OR($D37=\"\",$E37=\"\"),\"\",IF(ISERROR(VLOOKUP($E37,PrixMTX,[1]PrixMTX!R$2,FALSE)),\"N/A\",VLOOKUP($E37,PrixMTX,[1]PrixMTX!R$2,FALSE)))","v":""},null,null,null,null,null,null,null,null,null,null,null,null,{"$f":"IF(OR(A37=\"\",B37=\"\"),\"\",HLOOKUP(A37&B37,LISTE!$A$5:$Z$6,2,0))","v":""},{"$f":"IF(OR(A37=\"\",B37=\"\"),\"\",IF(COUNTIFS(TCDcategorie,A37,TCDsousCat,B37)>1,\"à sélectionner\",INDEX(DesignationMTX,MATCH(A37&B37,TCDcategorie&TCDsousCat,0))))","v":""}]
[null,null,null,"MTX",{"$f":"IF(OR(A38=\"\",B38=\"\"),\"\",IF(C38<>\"\",C38,IF(COUNTIFS(TCDcategorie,A38,TCDsousCat,B38)>1,\"à sélectionner en C\",INDEX(DesignationMTX,MATCH(A38&B38,TCDcategorie&TCDsousCat,0)))))","v":""},null,null,null,null,{"$f":"IFERROR(VLOOKUP($E38,PrixMTX,PrixMTX!N$3,FALSE),\"0\")","v":"0"},0,"","",{"$f":"IF(OR($D38=\"\",$E38=\"\"),\"\",IF(ISERROR(VLOOKUP($E38,PrixMTX,[1]PrixMTX!R$2,FALSE)),\"N/A\",VLOOKUP($E38,PrixMTX,[1]PrixMTX!R$2,FALSE)))","v":""},null,null,null,null,null,null,null,null,null,null,null,null,{"$f":"IF(OR(A38=\"\",B38=\"\"),\"\",HLOOKUP(A38&B38,LISTE!$A$5:$Z$6,2,0))","v":""},{"$f":"IF(OR(A38=\"\",B38=\"\"),\"\",IF(COUNTIFS(TCDcategorie,A38,TCDsousCat,B38)>1,\"à sélectionner\",INDEX(DesignationMTX,MATCH(A38&B38,TCDcategorie&TCDsousCat,0))))","v":""}]
[null,null,null,null,{"$f":"IF(OR(A39=\"\",B39=\"\"),\"\",IF(C39<>\"\",C39,IF(COUNTIFS(TCDcategorie,A39,TCDsousCat,B39)>1,\"à sélectionner en C\",INDEX(DesignationMTX,MATCH(A39&B39,TCDcategorie&TCDsousCat,0)))))","v":""},null,null,null,null,{"$f":"IFERROR(VLOOKUP($E39,PrixMTX,PrixMTX!N$3,FALSE),\"0\")","v":"0"},"","","",{"$f":"IF(OR($D39=\"\",$E39=\"\"),\"\",IF(ISERROR(VLOOKUP($E39,PrixMTX,[1]PrixMTX!R$2,FALSE)),\"N/A\",VLOOKUP($E39,PrixMTX,[1]PrixMTX!R$2,FALSE)))","v":""},null,null,null,null,null,null,null,null,null,null,null,null,{"$f":"IF(OR(A39=\"\",B39=\"\"),\"\",HLOOKUP(A39&B39,LISTE!$A$5:$Z$6,2,0))","v":""},{"$f":"IF(OR(A39=\"\",B39=\"\"),\"\",IF(COUNTIFS(TCDcategorie,A39,TCDsousCat,B39)>1,\"à sélectionner\",INDEX(DesignationMTX,MATCH(A39&B39,TCDcategorie&TCDsousCat,0))))","v":""}]
[null,null,null,"MTL",{"$f":"IF(OR(A40=\"\",B40=\"\"),\"\",IF(C40<>\"\",C40,IF(COUNTIFS(TCDcategorie,A40,TCDsousCat,B40)>1,\"à sélectionner en C\",INDEX(DesignationMTX,MATCH(A40&B40,TCDcategorie&TCDsousCat,0)))))","v":""},null,null,null,null,{"$f":"IFERROR(VLOOKUP($E40,PrixMTX,PrixMTX!N$3,FALSE),\"0\")","v":"0"},"",0,"",{"$f":"IF(OR($D40=\"\",$E40=\"\"),\"\",IF(ISERROR(VLOOKUP($E40,PrixMTX,[1]PrixMTX!R$2,FALSE)),\"N/A\",VLOOKUP($E40,PrixMTX,[1]PrixMTX!R$2,FALSE)))","v":""},null,null,null,null,null,null,null,null,null,null,null,null,{"$f":"IF(OR(A40=\"\",B40=\"\"),\"\",HLOOKUP(A40&B40,LISTE!$A$5:$Z$6,2,0))","v":""},{"$f":"IF(OR(A40=\"\",B40=\"\"),\"\",IF(COUNTIFS(TCDcategorie,A40,TCDsousCat,B40)>1,\"à sélectionner\",INDEX(DesignationMTX,MATCH(A40&B40,TCDcategorie&TCDsousCat,0))))","v":""}]
[null,null,null,"MTL",{"$f":"IF(OR(A41=\"\",B41=\"\"),\"\",IF(C41<>\"\",C41,IF(COUNTIFS(TCDcategorie,A41,TCDsousCat,B41)>1,\"à sélectionner en C\",INDEX(DesignationMTX,MATCH(A41&B41,TCDcategorie&TCDsousCat,0)))))","v":""},null,null,null,null,{"$f":"IFERROR(VLOOKUP($E41,PrixMTX,PrixMTX!N$3,FALSE),\"0\")","v":"0"},"",0,"",{"$f":"IF(OR($D41=\"\",$E41=\"\"),\"\",IF(ISERROR(VLOOKUP($E41,PrixMTX,[1]PrixMTX!R$2,FALSE)),\"N/A\",VLOOKUP($E41,PrixMTX,[1]PrixMTX!R$2,FALSE)))","v":""},null,null,null,null,null,null,null,null,null,null,null,null,{"$f":"IF(OR(A41=\"\",B41=\"\"),\"\",HLOOKUP(A41&B41,LISTE!$A$5:$Z$6,2,0))","v":""},{"$f":"IF(OR(A41=\"\",B41=\"\"),\"\",IF(COUNTIFS(TCDcategorie,A41,TCDsousCat,B41)>1,\"à sélectionner\",INDEX(DesignationMTX,MATCH(A41&B41,TCDcategorie&TCDsousCat,0))))","v":""}]
[null,null,null,"MTL",{"$f":"IF(OR(A42=\"\",B42=\"\"),\"\",IF(C42<>\"\",C42,IF(COUNTIFS(TCDcategorie,A42,TCDsousCat,B42)>1,\"à sélectionner en C\",INDEX(DesignationMTX,MATCH(A42&B42,TCDcategorie&TCDsousCat,0)))))","v":""},null,null,null,null,{"$f":"IFERROR(VLOOKUP($E42,PrixMTX,PrixMTX!N$3,FALSE),\"0\")","v":"0"},"",0,"",{"$f":"IF(OR($D42=\"\",$E42=\"\"),\"\",IF(ISERROR(VLOOKUP($E42,PrixMTX,[1]PrixMTX!R$2,FALSE)),\"N/A\",VLOOKUP($E42,PrixMTX,[1]PrixMTX!R$2,FALSE)))","v":""},null,null,null,null,null,null,null,null,null,null,null,null,{"$f":"IF(OR(A42=\"\",B42=\"\"),\"\",HLOOKUP(A42&B42,LISTE!$A$5:$Z$6,2,0))","v":""},{"$f":"IF(OR(A42=\"\",B42=\"\"),\"\",IF(COUNTIFS(TCDcategorie,A42,TCDsousCat,B42)>1,\"à sélectionner\",INDEX(DesignationMTX,MATCH(A42&B42,TCDcategorie&TCDsousCat,0))))","v":""}]
[null,null,null,"MTL",{"$f":"IF(OR(A43=\"\",B43=\"\"),\"\",IF(C43<>\"\",C43,IF(COUNTIFS(TCDcategorie,A43,TCDsousCat,B43)>1,\"à sélectionner en C\",INDEX(DesignationMTX,MATCH(A43&B43,TCDcategorie&TCDsousCat,0)))))","v":""},null,null,null,null,{"$f":"IFERROR(VLOOKUP($E43,PrixMTX,PrixMTX!N$3,FALSE),\"0\")","v":"0"},"",0,"",{"$f":"IF(OR($D43=\"\",$E43=\"\"),\"\",IF(ISERROR(VLOOKUP($E43,PrixMTX,[1]PrixMTX!R$2,FALSE)),\"N/A\",VLOOKUP($E43,PrixMTX,[1]PrixMTX!R$2,FALSE)))","v":""},null,null,null,null,null,null,null,null,null,null,null,null,{"$f":"IF(OR(A43=\"\",B43=\"\"),\"\",HLOOKUP(A43&B43,LISTE!$A$5:$Z$6,2,0))","v":""},{"$f":"IF(OR(A43=\"\",B43=\"\"),\"\",IF(COUNTIFS(TCDcategorie,A43,TCDsousCat,B43)>1,\"à sélectionner\",INDEX(DesignationMTX,MATCH(A43&B43,TCDcategorie&TCDsousCat,0))))","v":""}]
[null,null,null,"MTL",{"$f":"IF(OR(A44=\"\",B44=\"\"),\"\",IF(C44<>\"\",C44,IF(COUNTIFS(TCDcategorie,A44,TCDsousCat,B44)>1,\"à sélectionner en C\",INDEX(DesignationMTX,MATCH(A44&B44,TCDcategorie&TCDsousCat,0)))))","v":""},null,null,null,null,{"$f":"IFERROR(VLOOKUP($E44,PrixMTX,PrixMTX!N$3,FALSE),\"0\")","v":"0"},"",0,"",{"$f":"IF(OR($D44=\"\",$E44=\"\"),\"\",IF(ISERROR(VLOOKUP($E44,PrixMTX,[1]PrixMTX!R$2,FALSE)),\"N/A\",VLOOKUP($E44,PrixMTX,[1]PrixMTX!R$2,FALSE)))","v":""},null,null,null,null,null,null,null,null,null,null,null,null,{"$f":"IF(OR(A44=\"\",B44=\"\"),\"\",HLOOKUP(A44&B44,LISTE!$A$5:$Z$6,2,0))","v":""},{"$f":"IF(OR(A44=\"\",B44=\"\"),\"\",IF(COUNTIFS(TCDcategorie,A44,TCDsousCat,B44)>1,\"à sélectionner\",INDEX(DesignationMTX,MATCH(A44&B44,TCDcategorie&TCDsousCat,0))))","v":""}]
[null,null,null,null,{"$f":"IF(OR(A45=\"\",B45=\"\"),\"\",IF(C45<>\"\",C45,IF(COUNTIFS(TCDcategorie,A45,TCDsousCat,B45)>1,\"à sélectionner en C\",INDEX(DesignationMTX,MATCH(A45&B45,TCDcategorie&TCDsousCat,0)))))","v":""},null,null,null,null,{"$f":"IFERROR(VLOOKUP($E45,PrixMTX,PrixMTX!N$3,FALSE),\"0\")","v":"0"},"","","",null,null,null,null,null,null,null,null,null,null,null,null,null,{"$f":"IF(OR(A45=\"\",B45=\"\"),\"\",HLOOKUP(A45&B45,LISTE!$A$5:$Z$6,2,0))","v":""},{"$f":"IF(OR(A45=\"\",B45=\"\"),\"\",IF(COUNTIFS(TCDcategorie,A45,TCDsousCat,B45)>1,\"à sélectionner\",INDEX(DesignationMTX,MATCH(A45&B45,TCDcategorie&TCDsousCat,0))))","v":""}]
[null,null,null,"MO",{"$f":"IF(OR(A46=\"\",B46=\"\"),\"\",IF(C46<>\"\",C46,IF(COUNTIFS(TCDcategorie,A46,TCDsousCat,B46)>1,\"à sélectionner en C\",INDEX(DesignationMTX,MATCH(A46&B46,TCDcategorie&TCDsousCat,0)))))","v":""},null,null,null,null,{"$f":"IFERROR(VLOOKUP($E46,PrixMTX,PrixMTX!N$3,FALSE),\"0\")","v":"0"},"","",0,null,null,null,null,null,null,null,null,null,null,null,null,null,{"$f":"IF(OR(A46=\"\",B46=\"\"),\"\",HLOOKUP(A46&B46,LISTE!$A$5:$Z$6,2,0))","v":""},{"$f":"IF(OR(A46=\"\",B46=\"\"),\"\",IF(COUNTIFS(TCDcategorie,A46,TCDsousCat,B46)>1,\"à sélectionner\",INDEX(DesignationMTX,MATCH(A46&B46,TCDcategorie&TCDsousCat,0))))","v":""}]
[null,null,null,"MO",{"$f":"IF(OR(A47=\"\",B47=\"\"),\"\",IF(C47<>\"\",C47,IF(COUNTIFS(TCDcategorie,A47,TCDsousCat,B47)>1,\"à sélectionner en C\",INDEX(DesignationMTX,MATCH(A47&B47,TCDcategorie&TCDsousCat,0)))))","v":""},null,null,null,null,{"$f":"IFERROR(VLOOKUP($E47,PrixMTX,PrixMTX!N$3,FALSE),\"0\")","v":"0"},"","",0,null,null,null,null,null,null,null,null,null,null,null,null,null,{"$f":"IF(OR(A47=\"\",B47=\"\"),\"\",HLOOKUP(A47&B47,LISTE!$A$5:$Z$6,2,0))","v":""},{"$f":"IF(OR(A47=\"\",B47=\"\"),\"\",IF(COUNTIFS(TCDcategorie,A47,TCDsousCat,B47)>1,\"à sélectionner\",INDEX(DesignationMTX,MATCH(A47&B47,TCDcategorie&TCDsousCat,0))))","v":""}]
[null,null,null,"MO",{"$f":"IF(OR(A48=\"\",B48=\"\"),\"\",IF(C48<>\"\",C48,IF(COUNTIFS(TCDcategorie,A48,TCDsousCat,B48)>1,\"à sélectionner en C\",INDEX(DesignationMTX,MATCH(A48&B48,TCDcategorie&TCDsousCat,0)))))","v":""},null,null,null,null,{"$f":"IFERROR(VLOOKUP($E48,PrixMTX,PrixMTX!N$3,FALSE),\"0\")","v":"0"},"","",0,null,null,null,null,null,null,null,null,null,null,null,null,null,{"$f":"IF(OR(A48=\"\",B48=\"\"),\"\",HLOOKUP(A48&B48,LISTE!$A$5:$Z$6,2,0))","v":""},{"$f":"IF(OR(A48=\"\",B48=\"\"),\"\",IF(COUNTIFS(TCDcategorie,A48,TCDsousCat,B48)>1,\"à sélectionner\",INDEX(DesignationMTX,MATCH(A48&B48,TCDcategorie&TCDsousCat,0))))","v":""}]
[null,null,null,"MO",{"$f":"IF(OR(A49=\"\",B49=\"\"),\"\",IF(C49<>\"\",C49,IF(COUNTIFS(TCDcategorie,A49,TCDsousCat,B49)>1,\"à sélectionner en C\",INDEX(DesignationMTX,MATCH(A49&B49,TCDcategorie&TCDsousCat,0)))))","v":""},null,null,null,null,{"$f":"IFERROR(VLOOKUP($E49,PrixMTX,PrixMTX!N$3,FALSE),\"0\")","v":"0"},"","",0,null,null,null,null,null,null,null,null,null,null,null,null,null,{"$f":"IF(OR(A49=\"\",B49=\"\"),\"\",HLOOKUP(A49&B49,LISTE!$A$5:$Z$6,2,0))","v":""},{"$f":"IF(OR(A49=\"\",B49=\"\"),\"\",IF(COUNTIFS(TCDcategorie,A49,TCDsousCat,B49)>1,\"à sélectionner\",INDEX(DesignationMTX,MATCH(A49&B49,TCDcategorie&TCDsousCat,0))))","v":""}]
[null,null,null,"MO",{"$f":"IF(OR(A50=\"\",B50=\"\"),\"\",IF(C50<>\"\",C50,IF(COUNTIFS(TCDcategorie,A50,TCDsousCat,B50)>1,\"à sélectionner en C\",INDEX(DesignationMTX,MATCH(A50&B50,TCDcategorie&TCDsousCat,0)))))","v":""},null,null,null,null,{"$f":"IFERROR(VLOOKUP($E50,PrixMTX,PrixMTX!N$3,FALSE),\"0\")","v":"0"},"","",0,null,null,null,null,null,null,null,null,null,null,null,null,null,{"$f":"IF(OR(A50=\"\",B50=\"\"),\"\",HLOOKUP(A50&B50,LISTE!$A$5:$Z$6,2,0))","v":""},{"$f":"IF(OR(A50=\"\",B50=\"\"),\"\",IF(COUNTIFS(TCDcategorie,A50,TCDsousCat,B50)>1,\"à sélectionner\",INDEX(DesignationMTX,MATCH(A50&B50,TCDcategorie&TCDsousCat,0))))","v":""}]
[null,null,null,null,null,"TU / unité d'ouvrage",null,{"$f":"SUM(H45:H50)/M25","v":0},null,"Totaux partiels",{"$f":"SUM(K28:K50)","v":0},{"$f":"SUM(L28:L50)","v":0},{"$f":"SUM(M28:M50)","v":0}]
[null,null,null,null,null,null,null,null,null,"Total Déboursé Sec",null,{"$f":"SUM(K51:M51)/M25","v":0}]

{"sheet":"PrixMTX","index":1,"n_rows":143,"n_cols":18,"rows_kept":143,"cut":false,"hidden":false,"merged":[[3,17,4,17],[0,0,0,2],[3,0,3,1],[3,2,3,10],[3,11,3,12],[3,13,3,14],[3,15,4,15],[3,16,4,16]]}
["MTX"]
[null,null,"PrixMTX"]
[null,null,1,2,3,4,5,6,7,8,9,10,11,12,13,14,15,16]
["Familles MTX",null,"Produits / Articles",null,null,null,null,null,null,null,null,"Conditionnement",null,"Unité de Base",null,"Fournisseurs","Commentaires","Date\nMAJ "]
["Catégorie MTX","Sous Cat. \nMTX","Désignation Matériaux","Détails","Longueur\n(cm)","largeur/\nDiam.\n(cm)","Haut./ép.\n(cm)","Poids\n(Kg)","Densité / \nRendmt","Unité","Autres","Prix HT","Unité Cdt","Prix HT Qté Base","Unité Base"]
["BETON","Livré","Béton+ PUMI complet (6 m3)",null,null,null,null,null,null,null,null,null,6,6,"/ m3","fournisseur 1",null,"2014-11-01"]
["BETON","Livré","Béton+ PUMI moitié (3 m3)",null,null,null,null,null,null,null,null,null,3,7,"/ m3","fournisseur 1",null,"2014-11-01"]
["BETON","Livré","Béton+TOUPIE complète (6 m3)",null,null,null,null,null,null,null,null,null,6,8,"/ m3","fournisseur 1",null,"2014-11-01"]
["BETON","Livré","Béton+TOUPIE moitié (3 m3)",null,null,null,null,null,null,null,null,null,3,9,"/ m3","fournisseur 1",null,"2014-11-01"]
["BETON","Non_Livré","Béton (à livrer toupie/pumi)",null,null,null,null,null,null,null,null,null,null,11,"/ m3","fournisseur 1",null,"2014-11-01"]
["BETON","Non_Livré","Béton (direct centrale) ",null,null,null,null,null,null,null,null,null,"/ 0,25 m3",12,"/ m3","fournisseur 1",null,"2014-11-01"]
["BETON","Non_Livré","Mortier",null,null,null,null,null,null,null,null,null,null,10,"/ m3","fournisseur 1",null,"2014-11-01"]
["BOIS","Structure","Grandes planches coffrage"]
["BOIS","Structure","Petites planches coffrage"]
["BOIS","Traverses","Traverses chêne 12x20x260 traité CL4",null,260,20,12,1000,1,"T/m3","/",null,"/ Unité",17,"/ Unité","fournisseur 2",null,"2014-11-01"]
["CLOTURES","Panneaux","Panneaux soudés 2,5x1,23m (anthracite)",null,250,null,123,null,null,null,null,null,null,28,"/ Unité","fournisseur 7",null,"dec-14"]
["CLOTURES","Panneaux","Poteau 1,3m (anthracite)",null,null,null,130,null,null,null,null,null,null,29,"/ Unité","fournisseur 7",null,"dec-14"]
["CLOTURES","Panneaux","support platine poteaux (anthracite)",null,null,null,null,null,null,null,null,null,null,30,"/ Unité","fournisseur 7",null,"dec-14"]
["ENGRAIS","Engrais Gazon","Engrais gazon",null,null,null,null,25,40,"g/m²",null,null,null,34,"/ Kg","prix moyen Fourn.",null,"2014-10-01"]
["GRAINES","Gazon","Graines gazon rustique",null,null,null,null,15,40,"g/m²",null,null,null,33,"/ Kg","prix moyen Fourn.",null,"2014-10-01"]
["METAL","Béton","Rond béton HA10",null,600,1,"/","/",7.85,"T/m3","/",null,"/ Unité",18,"/ ml","fournisseur 1",null,"2014-10-01"]
["METAL","Béton","Rond béton HA8",null,600,0.8,"/",{"$f":"(E22/100)*(PI()*((F22/100)*(F22/100))/4)*I22*1000","v":2.3675042237452679},7.85,"T/m3","/",null,"/ Unité",19,"/ ml","fournisseur 1",null,"2014-10-01"]
["PAVES","format1","Pavés Marlux Multiformats",null,null,null,null,null,null,null,null,null,null,21,"/ m²","fournisseur 3",null,"2014-11-01"]
["PAVES","format2","Pavés 15x15",null,15,15,"/","/","/","/","/",null,null,20,null,"fournisseur 3",null,"2014-11-01"]
["PIERRES","Galets","Galets blanc"]
["QUINCAILLERIE","Clous","Clous têtes plates (gros)",null,null,null,null,null,null,null,null,null,"/ Bte 100",27,"/ Unité"]
["RESEAUX","PVC","Tuyau PVC D100mm",null,"/",10,"/","/","/","/","/",null,null,24,null,null,null,"2014-11-01"]
["TOILES","Geotextile","Bidim geotextile PP 120 g/m²",null,"/","/","/","/",120,"g/m²","/",null,null,22,"/ m²","fournisseur 1",null,"2014-11-01"]
["TOILES","Hors_Sol","Toile Hors sol verte 130g/m²",null,"/","/","/","/",130,"g/m²","/",null,null,23,"/ m²","fournisseur 4",null,"2014-11-01"]
["TRANSPORT","Autres","Transport Participation forfaitaire",null,null,null,null,null,null,null,null,null,null,35,"/ Tour","prix moyen Fourn.",null,{"$f":"TODAY()","v":"2015-01-23"}]
["TRANSPORT","Béton","Livraison AP camion",null,null,null,null,null,null,null,null,null,"/ h",13,"/ m3","fournisseur 1",null,"2014-11-01"]
["TRANSPORT","Béton","Livraison PUMI (6 m3 max) (en plus transport Toupie)",null,null,null,null,null,null,null,null,null,"/ Pumi",14,"/ Transp.","fournisseur 1",null,"2014-11-01"]
["TRANSPORT","Béton","Livraison PUMI m3 pompé",null,null,null,null,null,null,null,null,null,"/ m3",15,"/ m3","fournisseur 1",null,"2014-11-01"]
["TRANSPORT","Béton","Livraison TOUPIE (6 m3 max)",null,null,null,null,null,null,null,null,null,"/ Toupie",16,"/ Transp.","fournisseur 1",null,"2014-11-01"]
["TRANSPORT","Fournisseurs","Fourn. 6 Camion 8x4 (15T?)",null,null,null,null,15000,null,null,null,null,null,31,"/ Tour","fournisseur 7",null,"dec-14"]
["TRANSPORT","Fournisseurs","Fourn.5 Camion 8x4 (15T?)",null,null,null,null,15000,null,null,null,null,null,26,"/ Tour","fournisseur 6",null,"2014-11-01"]
["TRANSPORT","Fournisseurs","Transporteur Camion 6x4 Ampiroll (13T)",null,null,null,null,13000,null,null,null,null,"/ Jour",25,"/ h","fournisseur 5",null,"2014-11-01"]
["TRANSPORT","SANS","SANS Transport",null,null,null,null,0,null,null,null,null,null,32,null,null,null,{"$f":"TODAY()","v":"2015-01-23"}]
[]
[]
[]
[]
[]
[]
[]
[]
[]
[]
[]
[]
[]
[]
[]
[]
[]
[]
[]
[]
[]
[]
[]
[]
[]
[]
[]
[]
[]
[]
[]
[]
[]
[]
[]
[]
[]
[]
[]
[]
[]
[]
[]
[]
[]
[]
[]
[]
[]
[]
[]
[]
[]
[]
[]
[]
[]
[]
[]
[]
[]
[]
[]
[]
[]
[]
[]
[]
[]
[]
[]
[]
[]
[]
[]
[]
[]
[]
[]
[]
[]
[]
[]
[]
[]
[]
[]
[]
[]
[]
[]
[]
[]
[]
[]
[]
[]
[]
[]
[]
[]
[]
[]
[]
["*"]

{"sheet":"xData","index":2,"n_rows":200,"n_cols":28,"rows_kept":200,"cut":false,"hidden":false,"merged":[]}
[]
[]
[null,null,null,null,null,null,null,null,null,null,null,null,null,null,null,null,null,null,null,null,null,null,null,null,null,null,"AA6:AA200 nommé Cod1","AA6:AA200 nommé Cod2"]
[]
[null,null,null,null,null,null,null,null,null,null,null,null,null,null,null,null,null,null,null,null,null,null,null,null,null,null,"codage désignation PrixMTX","Codage Titre Prix MTX"]
[null,null,null,null,null,null,null,null,null,null,null,null,null,null,null,null,null,null,null,null,null,null,null,null,null,null,{"$f":"IF(PrixMTX!A6=\"\",\"\",PrixMTX!A6&PrixMTX!B6&COUNTIFS(PrixMTX!$A$6:A6,PrixMTX!A6,PrixMTX!$B$6:B6,PrixMTX!B6))","v":"BETONLivré1"},{"$f":"IF(COUNTIFS(PrixMTX!$A$6:$A$200,PrixMTX!A6,PrixMTX!$B$6:$B$200,PrixMTX!B6)<2,\"\",IF(COUNTIFS(PrixMTX!$A7:$A$200,PrixMTX!$A6,PrixMTX!$B7:$B$200,PrixMTX!B6)>0,\"\",MAX($AB$5:AB5)+1))","v":""}]
[null,null,null,null,null,null,null,null,null,null,null,null,null,null,null,null,null,null,null,null,null,null,null,null,null,null,{"$f":"IF(PrixMTX!A7=\"\",\"\",PrixMTX!A7&PrixMTX!B7&COUNTIFS(PrixMTX!$A$6:A7,PrixMTX!A7,PrixMTX!$B$6:B7,PrixMTX!B7))","v":"BETONLivré2"},{"$f":"IF(COUNTIFS(PrixMTX!$A$6:$A$200,PrixMTX!A7,PrixMTX!$B$6:$B$200,PrixMTX!B7)<2,\"\",IF(COUNTIFS(PrixMTX!$A8:$A$200,PrixMTX!$A7,PrixMTX!$B8:$B$200,PrixMTX!B7)>0,\"\",MAX($AB$5:AB6)+1))","v":""}]
[null,null,null,null,null,null,null,null,null,null,null,null,null,null,null,null,null,null,null,null,null,null,null,null,null,null,{"$f":"IF(PrixMTX!A8=\"\",\"\",PrixMTX!A8&PrixMTX!B8&COUNTIFS(PrixMTX!$A$6:A8,PrixMTX!A8,PrixMTX!$B$6:B8,PrixMTX!B8))","v":"BETONLivré3"},{"$f":"IF(COUNTIFS(PrixMTX!$A$6:$A$200,PrixMTX!A8,PrixMTX!$B$6:$B$200,PrixMTX!B8)<2,\"\",IF(COUNTIFS(PrixMTX!$A9:$A$200,PrixMTX!$A8,PrixMTX!$B9:$B$200,PrixMTX!B8)>0,\"\",MAX($AB$5:AB7)+1))","v":""}]
[null,null,null,null,null,null,null,null,null,null,null,null,null,null,null,null,null,null,null,null,null,null,null,null,null,null,{"$f":"IF(PrixMTX!A9=\"\",\"\",PrixMTX!A9&PrixMTX!B9&COUNTIFS(PrixMTX!$A$6:A9,PrixMTX!A9,PrixMTX!$B$6:B9,PrixMTX!B9))","v":"BETONLivré4"},{"$f":"IF(COUNTIFS(PrixMTX!$A$6:$A$200,PrixMTX!A9,PrixMTX!$B$6:$B$200,PrixMTX!B9)<2,\"\",IF(COUNTIFS(PrixMTX!$A10:$A$200,PrixMTX!$A9,PrixMTX!$B10:$B$200,PrixMTX!B9)>0,\"\",MAX($AB$5:AB8)+1))","v":1}]
[null,null,null,null,null,null,null,null,null,null,null,null,null,null,null,null,null,null,null,null,null,null,null,null,null,null,{"$f":"IF(PrixMTX!A10=\"\",\"\",PrixMTX!A10&PrixMTX!B10&COUNTIFS(PrixMTX!$A$6:A10,PrixMTX!A10,PrixMTX!$B$6:B10,PrixMTX!B10))","v":"BETONNon_Livré1"},{"$f":"IF(COUNTIFS(PrixMTX!$A$6:$A$200,PrixMTX!A10,PrixMTX!$B$6:$B$200,PrixMTX!B10)<2,\"\",IF(COUNTIFS(PrixMTX!$A11:$A$200,PrixMTX!$A10,PrixMTX!$B11:$B$200,PrixMTX!B10)>0,\"\",MAX($AB$5:AB9)+1))","v":""}]
[null,null,null,null,"Nommer les nouveaux champs du nom de l'entrée en colonne G",null,null,null,null,null,null,null,null,null,null,null,null,null,null,null,null,null,null,null,null,null,{"$f":"IF(PrixMTX!A11=\"\",\"\",PrixMTX!A11&PrixMTX!B11&COUNTIFS(PrixMTX!$A$6:A11,PrixMTX!A11,PrixMTX!$B$6:B11,PrixMTX!B11))","v":"BETONNon_Livré2"},{"$f":"IF(COUNTIFS(PrixMTX!$A$6:$A$200,PrixMTX!A11,PrixMTX!$B$6:$B$200,PrixMTX!B11)<2,\"\",IF(COUNTIFS(PrixMTX!$A12:$A$200,PrixMTX!$A11,PrixMTX!$B12:$B$200,PrixMTX!B11)>0,\"\",MAX($AB$5:AB10)+1))","v":""}]
[null,null,null,null,"pour nommer:sélectionner la ligne incluant la cellule G et Ruban formule  Créer un nom colonne de gauhe",null,null,null,null,null,null,null,null,null,null,null,null,null,null,null,null,null,null,null,null,null,{"$f":"IF(PrixMTX!A12=\"\",\"\",PrixMTX!A12&PrixMTX!B12&COUNTIFS(PrixMTX!$A$6:A12,PrixMTX!A12,PrixMTX!$B$6:B12,PrixMTX!B12))","v":"BETONNon_Livré3"},{"$f":"IF(COUNTIFS(PrixMTX!$A$6:$A$200,PrixMTX!A12,PrixMTX!$B$6:$B$200,PrixMTX!B12)<2,\"\",IF(COUNTIFS(PrixMTX!$A13:$A$200,PrixMTX!$A12,PrixMTX!$B13:$B$200,PrixMTX!B12)>0,\"\",MAX($AB$5:AB11)+1))","v":2}]
[null,null,null,null,"valable sur plusieurs champs simultanément",null,null,null,null,null,null,null,null,null,null,null,null,null,null,null,null,null,null,null,null,null,{"$f":"IF(PrixMTX!A13=\"\",\"\",PrixMTX!A13&PrixMTX!B13&COUNTIFS(PrixMTX!$A$6:A13,PrixMTX!A13,PrixMTX!$B$6:B13,PrixMTX!B13))","v":"BOISStructure1"},{"$f":"IF(COUNTIFS(PrixMTX!$A$6:$A$200,PrixMTX!A13,PrixMTX!$B$6:$B$200,PrixMTX!B13)<2,\"\",IF(COUNTIFS(PrixMTX!$A14:$A$200,PrixMTX!$A13,PrixMTX!$B14:$B$200,PrixMTX!B13)>0,\"\",MAX($AB$5:AB12)+1))","v":""}]
[null,null,null,null,"laisser la colonne F vide pour que le menu déroulant s'affiche dans les cellules en début de liste",null,null,null,null,null,null,null,null,null,null,null,null,null,null,null,null,null,null,null,null,null,{"$f":"IF(PrixMTX!A14=\"\",\"\",PrixMTX!A14&PrixMTX!B14&COUNTIFS(PrixMTX!$A$6:A14,PrixMTX!A14,PrixMTX!$B$6:B14,PrixMTX!B14))","v":"BOISStructure2"},{"$f":"IF(COUNTIFS(PrixMTX!$A$6:$A$200,PrixMTX!A14,PrixMTX!$B$6:$B$200,PrixMTX!B14)<2,\"\",IF(COUNTIFS(PrixMTX!$A15:$A$200,PrixMTX!$A14,PrixMTX!$B15:$B$200,PrixMTX!B14)>0,\"\",MAX($AB$5:AB13)+1))","v":3}]
[null,null,null,null,"FOURNISSEURS",null,"Cat.MATERIAUX","N° Cat","Ss-Cat.MTX","Ss-Cat.mtx  2","Ss-Cat.mtx  3","Ss-Cat.mtx  4","Ss-Cat.mtx  5","Ss-Cat.mtx  6","Ss-Cat.mtx  7","Ss-Cat.mtx  8","Ss-Cat.mtx  9","Ss-Cat.mtx  10",null,null,null,null,null,null,null,null,{"$f":"IF(PrixMTX!A15=\"\",\"\",PrixMTX!A15&PrixMTX!B15&COUNTIFS(PrixMTX!$A$6:A15,PrixMTX!A15,PrixMTX!$B$6:B15,PrixMTX!B15))","v":"BOISTraverses1"},{"$f":"IF(COUNTIFS(PrixMTX!$A$6:$A$200,PrixMTX!A15,PrixMTX!$B$6:$B$200,PrixMTX!B15)<2,\"\",IF(COUNTIFS(PrixMTX!$A16:$A$200,PrixMTX!$A15,PrixMTX!$B16:$B$200,PrixMTX!B15)>0,\"\",MAX($AB$5:AB14)+1))","v":""}]
[null,null,null,null,"fournisseur 1",null,"BETON",null,"Livré","Non_Livré",null,null,null,null,null,null,null,null,null,null,null,null,null,null,null,null,{"$f":"IF(PrixMTX!A16=\"\",\"\",PrixMTX!A16&PrixMTX!B16&COUNTIFS(PrixMTX!$A$6:A16,PrixMTX!A16,PrixMTX!$B$6:B16,PrixMTX!B16))","v":"CLOTURESPanneaux1"},{"$f":"IF(COUNTIFS(PrixMTX!$A$6:$A$200,PrixMTX!A16,PrixMTX!$B$6:$B$200,PrixMTX!B16)<2,\"\",IF(COUNTIFS(PrixMTX!$A17:$A$200,PrixMTX!$A16,PrixMTX!$B17:$B$200,PrixMTX!B16)>0,\"\",MAX($AB$5:AB15)+1))","v":""}]
[null,null,null,null,"fournisseur 2",null,"BOIS",null,"Coffrage","Exotique","Structure","Traverses",null,null,null,null,null,null,null,null,null,null,null,null,null,null,{"$f":"IF(PrixMTX!A17=\"\",\"\",PrixMTX!A17&PrixMTX!B17&COUNTIFS(PrixMTX!$A$6:A17,PrixMTX!A17,PrixMTX!$B$6:B17,PrixMTX!B17))","v":"CLOTURESPanneaux2"},{"$f":"IF(COUNTIFS(PrixMTX!$A$6:$A$200,PrixMTX!A17,PrixMTX!$B$6:$B$200,PrixMTX!B17)<2,\"\",IF(COUNTIFS(PrixMTX!$A18:$A$200,PrixMTX!$A17,PrixMTX!$B18:$B$200,PrixMTX!B17)>0,\"\",MAX($AB$5:AB16)+1))","v":""}]
[null,null,null,null,"fournisseur 3",null,"CARRIERES",null,"Concassé","Sable","Gravette","Gore",null,null,null,null,null,null,null,null,null,null,null,null,null,null,{"$f":"IF(PrixMTX!A18=\"\",\"\",PrixMTX!A18&PrixMTX!B18&COUNTIFS(PrixMTX!$A$6:A18,PrixMTX!A18,PrixMTX!$B$6:B18,PrixMTX!B18))","v":"CLOTURESPanneaux3"},{"$f":"IF(COUNTIFS(PrixMTX!$A$6:$A$200,PrixMTX!A18,PrixMTX!$B$6:$B$200,PrixMTX!B18)<2,\"\",IF(COUNTIFS(PrixMTX!$A19:$A$200,PrixMTX!$A18,PrixMTX!$B19:$B$200,PrixMTX!B18)>0,\"\",MAX($AB$5:AB17)+1))","v":4}]
[null,null,null,null,"fournisseur 4",null,"CLOTURES",null,"Panneaux","Grillage",null,null,null,null,null,null,null,null,null,null,null,null,null,null,null,null,{"$f":"IF(PrixMTX!A19=\"\",\"\",PrixMTX!A19&PrixMTX!B19&COUNTIFS(PrixMTX!$A$6:A19,PrixMTX!A19,PrixMTX!$B$6:B19,PrixMTX!B19))","v":"ENGRAISEngrais Gazon1"},{"$f":"IF(COUNTIFS(PrixMTX!$A$6:$A$200,PrixMTX!A19,PrixMTX!$B$6:$B$200,PrixMTX!B19)<2,\"\",IF(COUNTIFS(PrixMTX!$A20:$A$200,PrixMTX!$A19,PrixMTX!$B20:$B$200,PrixMTX!B19)>0,\"\",MAX($AB$5:AB18)+1))","v":""}]
[null,null,null,null,"fournisseur 5",null,"COMPOSITE",null,"gamme 1","gamme 2",null,null,null,null,null,null,null,null,null,null,null,null,null,null,null,null,{"$f":"IF(PrixMTX!A20=\"\",\"\",PrixMTX!A20&PrixMTX!B20&COUNTIFS(PrixMTX!$A$6:A20,PrixMTX!A20,PrixMTX!$B$6:B20,PrixMTX!B20))","v":"GRAINESGazon1"},{"$f":"IF(COUNTIFS(PrixMTX!$A$6:$A$200,PrixMTX!A20,PrixMTX!$B$6:$B$200,PrixMTX!B20)<2,\"\",IF(COUNTIFS(PrixMTX!$A21:$A$200,PrixMTX!$A20,PrixMTX!$B21:$B$200,PrixMTX!B20)>0,\"\",MAX($AB$5:AB19)+1))","v":""}]
[null,null,null,null,"fournisseur 6",null,"DECHARGE",null,"Terre","Non_recyclable",null,null,null,null,null,null,null,null,null,null,null,null,null,null,null,null,{"$f":"IF(PrixMTX!A21=\"\",\"\",PrixMTX!A21&PrixMTX!B21&COUNTIFS(PrixMTX!$A$6:A21,PrixMTX!A21,PrixMTX!$B$6:B21,PrixMTX!B21))","v":"METALBéton1"},{"$f":"IF(COUNTIFS(PrixMTX!$A$6:$A$200,PrixMTX!A21,PrixMTX!$B$6:$B$200,PrixMTX!B21)<2,\"\",IF(COUNTIFS(PrixMTX!$A22:$A$200,PrixMTX!$A21,PrixMTX!$B22:$B$200,PrixMTX!B21)>0,\"\",MAX($AB$5:AB20)+1))","v":""}]
[null,null,null,null,"fournisseur 7",null,"ENGRAIS",null,"Engrais Gazon","Amendement",null,null,null,null,null,null,null,null,null,null,null,null,null,null,null,null,{"$f":"IF(PrixMTX!A22=\"\",\"\",PrixMTX!A22&PrixMTX!B22&COUNTIFS(PrixMTX!$A$6:A22,PrixMTX!A22,PrixMTX!$B$6:B22,PrixMTX!B22))","v":"METALBéton2"},{"$f":"IF(COUNTIFS(PrixMTX!$A$6:$A$200,PrixMTX!A22,PrixMTX!$B$6:$B$200,PrixMTX!B22)<2,\"\",IF(COUNTIFS(PrixMTX!$A23:$A$200,PrixMTX!$A22,PrixMTX!$B23:$B$200,PrixMTX!B22)>0,\"\",MAX($AB$5:AB21)+1))","v":5}]
[null,null,null,null,"fournisseur 8",null,"QUINCAILLERIE",null,"Clous","Equerres","Vis","Vis_inox",null,null,null,null,null,null,null,null,null,null,null,null,null,null,{"$f":"IF(PrixMTX!A23=\"\",\"\",PrixMTX!A23&PrixMTX!B23&COUNTIFS(PrixMTX!$A$6:A23,PrixMTX!A23,PrixMTX!$B$6:B23,PrixMTX!B23))","v":"PAVESformat11"},{"$f":"IF(COUNTIFS(PrixMTX!$A$6:$A$200,PrixMTX!A23,PrixMTX!$B$6:$B$200,PrixMTX!B23)<2,\"\",IF(COUNTIFS(PrixMTX!$A24:$A$200,PrixMTX!$A23,PrixMTX!$B24:$B$200,PrixMTX!B23)>0,\"\",MAX($AB$5:AB22)+1))","v":""}]
[null,null,null,null,"fournisseur 9",null,"GRAINES",null,"Gazon","Prairie_Fleurie",null,null,null,null,null,null,null,null,null,null,null,null,null,null,null,null,{"$f":"IF(PrixMTX!A24=\"\",\"\",PrixMTX!A24&PrixMTX!B24&COUNTIFS(PrixMTX!$A$6:A24,PrixMTX!A24,PrixMTX!$B$6:B24,PrixMTX!B24))","v":"PAVESformat21"},{"$f":"IF(COUNTIFS(PrixMTX!$A$6:$A$200,PrixMTX!A24,PrixMTX!$B$6:$B$200,PrixMTX!B24)<2,\"\",IF(COUNTIFS(PrixMTX!$A25:$A$200,PrixMTX!$A24,PrixMTX!$B25:$B$200,PrixMTX!B24)>0,\"\",MAX($AB$5:AB23)+1))","v":""}]
[null,null,null,null,"fournisseur 10",null,"METAL",null,"Béton","Finition","Structure",null,null,null,null,null,null,null,null,null,null,null,null,null,null,null,{"$f":"IF(PrixMTX!A25=\"\",\"\",PrixMTX!A25&PrixMTX!B25&COUNTIFS(PrixMTX!$A$6:A25,PrixMTX!A25,PrixMTX!$B$6:B25,PrixMTX!B25))","v":"PIERRESGalets1"},{"$f":"IF(COUNTIFS(PrixMTX!$A$6:$A$200,PrixMTX!A25,PrixMTX!$B$6:$B$200,PrixMTX!B25)<2,\"\",IF(COUNTIFS(PrixMTX!$A26:$A$200,PrixMTX!$A25,PrixMTX!$B26:$B$200,PrixMTX!B25)>0,\"\",MAX($AB$5:AB24)+1))","v":""}]
[null,null,null,null,"fournisseur 11",null,"PAVES",null,"format1","format2",null,null,null,null,null,null,null,null,null,null,null,null,null,null,null,null,{"$f":"IF(PrixMTX!A26=\"\",\"\",PrixMTX!A26&PrixMTX!B26&COUNTIFS(PrixMTX!$A$6:A26,PrixMTX!A26,PrixMTX!$B$6:B26,PrixMTX!B26))","v":"QUINCAILLERIEClous1"},{"$f":"IF(COUNTIFS(PrixMTX!$A$6:$A$200,PrixMTX!A26,PrixMTX!$B$6:$B$200,PrixMTX!B26)<2,\"\",IF(COUNTIFS(PrixMTX!$A27:$A$200,PrixMTX!$A26,PrixMTX!$B27:$B$200,PrixMTX!B26)>0,\"\",MAX($AB$5:AB25)+1))","v":""}]
[null,null,null,null,"fournisseur 12",null,"PIERRES",null,"Autres","Gneiss","Galets","Granit",null,null,null,null,null,null,null,null,null,null,null,null,null,null,{"$f":"IF(PrixMTX!A27=\"\",\"\",PrixMTX!A27&PrixMTX!B27&COUNTIFS(PrixMTX!$A$6:A27,PrixMTX!A27,PrixMTX!$B$6:B27,PrixMTX!B27))","v":"RESEAUXPVC1"},{"$f":"IF(COUNTIFS(PrixMTX!$A$6:$A$200,PrixMTX!A27,PrixMTX!$B$6:$B$200,PrixMTX!B27)<2,\"\",IF(COUNTIFS(PrixMTX!$A28:$A$200,PrixMTX!$A27,PrixMTX!$B28:$B$200,PrixMTX!B27)>0,\"\",MAX($AB$5:AB26)+1))","v":""}]
[null,null,null,null,"fournisseur 13",null,"RESEAUX",null,"Caniveaux","Gaines","PVC","PVC_Raccords",null,null,null,null,null,null,null,null,null,null,null,null,null,null,{"$f":"IF(PrixMTX!A28=\"\",\"\",PrixMTX!A28&PrixMTX!B28&COUNTIFS(PrixMTX!$A$6:A28,PrixMTX!A28,PrixMTX!$B$6:B28,PrixMTX!B28))","v":"TOILESGeotextile1"},{"$f":"IF(COUNTIFS(PrixMTX!$A$6:$A$200,PrixMTX!A28,PrixMTX!$B$6:$B$200,PrixMTX!B28)<2,\"\",IF(COUNTIFS(PrixMTX!$A29:$A$200,PrixMTX!$A28,PrixMTX!$B29:$B$200,PrixMTX!B28)>0,\"\",MAX($AB$5:AB27)+1))","v":""}]
[null,null,null,null,"fournisseur 14",null,"TOILES",null,"Geotextile","Hors_Sol",null,null,null,null,null,null,null,null,null,null,null,null,null,null,null,null,{"$f":"IF(PrixMTX!A29=\"\",\"\",PrixMTX!A29&PrixMTX!B29&COUNTIFS(PrixMTX!$A$6:A29,PrixMTX!A29,PrixMTX!$B$6:B29,PrixMTX!B29))","v":"TOILESHors_Sol1"},{"$f":"IF(COUNTIFS(PrixMTX!$A$6:$A$200,PrixMTX!A29,PrixMTX!$B$6:$B$200,PrixMTX!B29)<2,\"\",IF(COUNTIFS(PrixMTX!$A30:$A$200,PrixMTX!$A29,PrixMTX!$B30:$B$200,PrixMTX!B29)>0,\"\",MAX($AB$5:AB28)+1))","v":""}]
[null,null,null,null,"fournisseur 15",null,"TRANSPORT",null,"Autres","Béton","Fournisseurs","SANS",null,null,null,null,null,null,null,null,null,null,null,null,null,null,{"$f":"IF(PrixMTX!A30=\"\",\"\",PrixMTX!A30&PrixMTX!B30&COUNTIFS(PrixMTX!$A$6:A30,PrixMTX!A30,PrixMTX!$B$6:B30,PrixMTX!B30))","v":"TRANSPORTAutres1"},{"$f":"IF(COUNTIFS(PrixMTX!$A$6:$A$200,PrixMTX!A30,PrixMTX!$B$6:$B$200,PrixMTX!B30)<2,\"\",IF(COUNTIFS(PrixMTX!$A31:$A$200,PrixMTX!$A30,PrixMTX!$B31:$B$200,PrixMTX!B30)>0,\"\",MAX($AB$5:AB29)+1))","v":""}]
[null,null,null,null,"fournisseur 16",null,"TOITURE",null,"Bois","Cheneaux","Tuiles",null,null,null,null,null,null,null,null,null,null,null,null,null,null,null,{"$f":"IF(PrixMTX!A31=\"\",\"\",PrixMTX!A31&PrixMTX!B31&COUNTIFS(PrixMTX!$A$6:A31,PrixMTX!A31,PrixMTX!$B$6:B31,PrixMTX!B31))","v":"TRANSPORTBéton1"},{"$f":"IF(COUNTIFS(PrixMTX!$A$6:$A$200,PrixMTX!A31,PrixMTX!$B$6:$B$200,PrixMTX!B31)<2,\"\",IF(COUNTIFS(PrixMTX!$A32:$A$200,PrixMTX!$A31,PrixMTX!$B32:$B$200,PrixMTX!B31)>0,\"\",MAX($AB$5:AB30)+1))","v":""}]
[null,null,null,null,"fournisseur 17",null,"SAC_BTP",null,"Autres","Ciment","Colles","Enduits","Mortier_Joints",null,null,null,null,null,null,null,null,null,null,null,null,null,{"$f":"IF(PrixMTX!A32=\"\",\"\",PrixMTX!A32&PrixMTX!B32&COUNTIFS(PrixMTX!$A$6:A32,PrixMTX!A32,PrixMTX!$B$6:B32,PrixMTX!B32))","v":"TRANSPORTBéton2"},{"$f":"IF(COUNTIFS(PrixMTX!$A$6:$A$200,PrixMTX!A32,PrixMTX!$B$6:$B$200,PrixMTX!B32)<2,\"\",IF(COUNTIFS(PrixMTX!$A33:$A$200,PrixMTX!$A32,PrixMTX!$B33:$B$200,PrixMTX!B32)>0,\"\",MAX($AB$5:AB31)+1))","v":""}]
[null,null,null,null,"fournisseur 18",null,"PROD_CHIMIQUE",null,"Autres","Hydrofuge","Nettoyant","Phytosanitaire",null,null,null,null,null,null,null,null,null,null,null,null,null,null,{"$f":"IF(PrixMTX!A33=\"\",\"\",PrixMTX!A33&PrixMTX!B33&COUNTIFS(PrixMTX!$A$6:A33,PrixMTX!A33,PrixMTX!$B$6:B33,PrixMTX!B33))","v":"TRANSPORTBéton3"},{"$f":"IF(COUNTIFS(PrixMTX!$A$6:$A$200,PrixMTX!A33,PrixMTX!$B$6:$B$200,PrixMTX!B33)<2,\"\",IF(COUNTIFS(PrixMTX!$A34:$A$200,PrixMTX!$A33,PrixMTX!$B34:$B$200,PrixMTX!B33)>0,\"\",MAX($AB$5:AB32)+1))","v":""}]
[null,null,null,null,"fournisseur 19",null,null,null,null,null,null,null,null,null,null,null,null,null,null,null,null,null,null,null,null,null,{"$f":"IF(PrixMTX!A34=\"\",\"\",PrixMTX!A34&PrixMTX!B34&COUNTIFS(PrixMTX!$A$6:A34,PrixMTX!A34,PrixMTX!$B$6:B34,PrixMTX!B34))","v":"TRANSPORTBéton4"},{"$f":"IF(COUNTIFS(PrixMTX!$A$6:$A$200,PrixMTX!A34,PrixMTX!$B$6:$B$200,PrixMTX!B34)<2,\"\",IF(COUNTIFS(PrixMTX!$A35:$A$200,PrixMTX!$A34,PrixMTX!$B35:$B$200,PrixMTX!B34)>0,\"\",MAX($AB$5:AB33)+1))","v":6}]
[null,null,null,null,"fournisseur 20",null,null,null,null,null,null,null,null,null,null,null,null,null,null,null,null,null,null,null,null,null,{"$f":"IF(PrixMTX!A35=\"\",\"\",PrixMTX!A35&PrixMTX!B35&COUNTIFS(PrixMTX!$A$6:A35,PrixMTX!A35,PrixMTX!$B$6:B35,PrixMTX!B35))","v":"TRANSPORTFournisseurs1"},{"$f":"IF(COUNTIFS(PrixMTX!$A$6:$A$200,PrixMTX!A35,PrixMTX!$B$6:$B$200,PrixMTX!B35)<2,\"\",IF(COUNTIFS(PrixMTX!$A36:$A$200,PrixMTX!$A35,PrixMTX!$B36:$B$200,PrixMTX!B35)>0,\"\",MAX($AB$5:AB34)+1))","v":""}]
[null,null,null,null,"fournisseur 21",null,null,null,null,null,null,null,null,null,null,null,null,null,null,null,null,null,null,null,null,null,{"$f":"IF(PrixMTX!A36=\"\",\"\",PrixMTX!A36&PrixMTX!B36&COUNTIFS(PrixMTX!$A$6:A36,PrixMTX!A36,PrixMTX!$B$6:B36,PrixMTX!B36))","v":"TRANSPORTFournisseurs2"},{"$f":"IF(COUNTIFS(PrixMTX!$A$6:$A$200,PrixMTX!A36,PrixMTX!$B$6:$B$200,PrixMTX!B36)<2,\"\",IF(COUNTIFS(PrixMTX!$A37:$A$200,PrixMTX!$A36,PrixMTX!$B37:$B$200,PrixMTX!B36)>0,\"\",MAX($AB$5:AB35)+1))","v":""}]
[null,null,null,null,"fournisseur 22",null,null,null,null,null,null,null,null,null,null,null,null,null,null,null,null,null,null,null,null,null,{"$f":"IF(PrixMTX!A37=\"\",\"\",PrixMTX!A37&PrixMTX!B37&COUNTIFS(PrixMTX!$A$6:A37,PrixMTX!A37,PrixMTX!$B$6:B37,PrixMTX!B37))","v":"TRANSPORTFournisseurs3"},{"$f":"IF(COUNTIFS(PrixMTX!$A$6:$A$200,PrixMTX!A37,PrixMTX!$B$6:$B$200,PrixMTX!B37)<2,\"\",IF(COUNTIFS(PrixMTX!$A38:$A$200,PrixMTX!$A37,PrixMTX!$B38:$B$200,PrixMTX!B37)>0,\"\",MAX($AB$5:AB36)+1))","v":7}]
[null,null,null,null,"prix moyen Fourn.",null,null,null,null,null,null,null,null,null,null,null,null,null,null,null,null,null,null,null,null,null,{"$f":"IF(PrixMTX!A38=\"\",\"\",PrixMTX!A38&PrixMTX!B38&COUNTIFS(PrixMTX!$A$6:A38,PrixMTX!A38,PrixMTX!$B$6:B38,PrixMTX!B38))","v":"TRANSPORTSANS1"},{"$f":"IF(COUNTIFS(PrixMTX!$A$6:$A$200,PrixMTX!A38,PrixMTX!$B$6:$B$200,PrixMTX!B38)<2,\"\",IF(COUNTIFS(PrixMTX!$A39:$A$200,PrixMTX!$A38,PrixMTX!$B39:$B$200,PrixMTX!B38)>0,\"\",MAX($AB$5:AB37)+1))","v":""}]
[null,null,null,null,null,null,null,null,null,null,null,null,null,null,null,null,null,null,null,null,null,null,null,null,null,null,{"$f":"IF(PrixMTX!A39=\"\",\"\",PrixMTX!A39&PrixMTX!B39&COUNTIFS(PrixMTX!$A$6:A39,PrixMTX!A39,PrixMTX!$B$6:B39,PrixMTX!B39))","v":""},{"$f":"IF(COUNTIFS(PrixMTX!$A$6:$A$200,PrixMTX!A39,PrixMTX!$B$6:$B$200,PrixMTX!B39)<2,\"\",IF(COUNTIFS(PrixMTX!$A40:$A$200,PrixMTX!$A39,PrixMTX!$B40:$B$200,PrixMTX!B39)>0,\"\",MAX($AB$5:AB38)+1))","v":""}]
[null,null,null,null,null,null,null,null,null,null,null,null,null,null,null,null,null,null,null,null,null,null,null,null,null,null,{"$f":"IF(PrixMTX!A40=\"\",\"\",PrixMTX!A40&PrixMTX!B40&COUNTIFS(PrixMTX!$A$6:A40,PrixMTX!A40,PrixMTX!$B$6:B40,PrixMTX!B40))","v":""},{"$f":"IF(COUNTIFS(PrixMTX!$A$6:$A$200,PrixMTX!A40,PrixMTX!$B$6:$B$200,PrixMTX!B40)<2,\"\",IF(COUNTIFS(PrixMTX!$A41:$A$200,PrixMTX!$A40,PrixMTX!$B41:$B$200,PrixMTX!B40)>0,\"\",MAX($AB$5:AB39)+1))","v":""}]
[null,null,null,null,null,null,null,null,null,null,null,null,null,null,null,null,null,null,null,null,null,null,null,null,null,null,{"$f":"IF(PrixMTX!A41=\"\",\"\",PrixMTX!A41&PrixMTX!B41&COUNTIFS(PrixMTX!$A$6:A41,PrixMTX!A41,PrixMTX!$B$6:B41,PrixMTX!B41))","v":""},{"$f":"IF(COUNTIFS(PrixMTX!$A$6:$A$200,PrixMTX!A41,PrixMTX!$B$6:$B$200,PrixMTX!B41)<2,\"\",IF(COUNTIFS(PrixMTX!$A42:$A$200,PrixMTX!$A41,PrixMTX!$B42:$B$200,PrixMTX!B41)>0,\"\",MAX($AB$5:AB40)+1))","v":""}]
[null,null,null,null,null,null,null,null,null,null,null,null,null,null,null,null,null,null,null,null,null,null,null,null,null,null,{"$f":"IF(PrixMTX!A42=\"\",\"\",PrixMTX!A42&PrixMTX!B42&COUNTIFS(PrixMTX!$A$6:A42,PrixMTX!A42,PrixMTX!$B$6:B42,PrixMTX!B42))","v":""},{"$f":"IF(COUNTIFS(PrixMTX!$A$6:$A$200,PrixMTX!A42,PrixMTX!$B$6:$B$200,PrixMTX!B42)<2,\"\",IF(COUNTIFS(PrixMTX!$A43:$A$200,PrixMTX!$A42,PrixMTX!$B43:$B$200,PrixMTX!B42)>0,\"\",MAX($AB$5:AB41)+1))","v":""}]
[null,null,null,null,null,null,null,null,null,null,null,null,null,null,null,null,null,null,null,null,null,null,null,null,null,null,{"$f":"IF(PrixMTX!A43=\"\",\"\",PrixMTX!A43&PrixMTX!B43&COUNTIFS(PrixMTX!$A$6:A43,PrixMTX!A43,PrixMTX!$B$6:B43,PrixMTX!B43))","v":""},{"$f":"IF(COUNTIFS(PrixMTX!$A$6:$A$200,PrixMTX!A43,PrixMTX!$B$6:$B$200,PrixMTX!B43)<2,\"\",IF(COUNTIFS(PrixMTX!$A44:$A$200,PrixMTX!$A43,PrixMTX!$B44:$B$200,PrixMTX!B43)>0,\"\",MAX($AB$5:AB42)+1))","v":""}]
[null,null,null,null,null,null,null,null,null,null,null,null,null,null,null,null,null,null,null,null,null,null,null,null,null,null,{"$f":"IF(PrixMTX!A44=\"\",\"\",PrixMTX!A44&PrixMTX!B44&COUNTIFS(PrixMTX!$A$6:A44,PrixMTX!A44,PrixMTX!$B$6:B44,PrixMTX!B44))","v":""},{"$f":"IF(COUNTIFS(PrixMTX!$A$6:$A$200,PrixMTX!A44,PrixMTX!$B$6:$B$200,PrixMTX!B44)<2,\"\",IF(COUNTIFS(PrixMTX!$A45:$A$200,PrixMTX!$A44,PrixMTX!$B45:$B$200,PrixMTX!B44)>0,\"\",MAX($AB$5:AB43)+1))","v":""}]
[null,null,null,null,null,null,null,null,null,null,null,null,null,null,null,null,null,null,null,null,null,null,null,null,null,null,{"$f":"IF(PrixMTX!A45=\"\",\"\",PrixMTX!A45&PrixMTX!B45&COUNTIFS(PrixMTX!$A$6:A45,PrixMTX!A45,PrixMTX!$B$6:B45,PrixMTX!B45))","v":""},{"$f":"IF(COUNTIFS(PrixMTX!$A$6:$A$200,PrixMTX!A45,PrixMTX!$B$6:$B$200,PrixMTX!B45)<2,\"\",IF(COUNTIFS(PrixMTX!$A46:$A$200,PrixMTX!$A45,PrixMTX!$B46:$B$200,PrixMTX!B45)>0,\"\",MAX($AB$5:AB44)+1))","v":""}]
[null,null,null,null,null,null,null,null,null,null,null,null,null,null,null,null,null,null,null,null,null,null,null,null,null,null,{"$f":"IF(PrixMTX!A46=\"\",\"\",PrixMTX!A46&PrixMTX!B46&COUNTIFS(PrixMTX!$A$6:A46,PrixMTX!A46,PrixMTX!$B$6:B46,PrixMTX!B46))","v":""},{"$f":"IF(COUNTIFS(PrixMTX!$A$6:$A$200,PrixMTX!A46,PrixMTX!$B$6:$B$200,PrixMTX!B46)<2,\"\",IF(COUNTIFS(PrixMTX!$A47:$A$200,PrixMTX!$A46,PrixMTX!$B47:$B$200,PrixMTX!B46)>0,\"\",MAX($AB$5:AB45)+1))","v":""}]
[null,null,null,null,null,null,null,null,null,null,null,null,null,null,null,null,null,null,null,null,null,null,null,null,null,null,{"$f":"IF(PrixMTX!A47=\"\",\"\",PrixMTX!A47&PrixMTX!B47&COUNTIFS(PrixMTX!$A$6:A47,PrixMTX!A47,PrixMTX!$B$6:B47,PrixMTX!B47))","v":""},{"$f":"IF(COUNTIFS(PrixMTX!$A$6:$A$200,PrixMTX!A47,PrixMTX!$B$6:$B$200,PrixMTX!B47)<2,\"\",IF(COUNTIFS(PrixMTX!$A48:$A$200,PrixMTX!$A47,PrixMTX!$B48:$B$200,PrixMTX!B47)>0,\"\",MAX($AB$5:AB46)+1))","v":""}]
[null,null,null,null,null,null,null,null,null,null,null,null,null,null,null,null,null,null,null,null,null,null,null,null,null,null,{"$f":"IF(PrixMTX!A48=\"\",\"\",PrixMTX!A48&PrixMTX!B48&COUNTIFS(PrixMTX!$A$6:A48,PrixMTX!A48,PrixMTX!$B$6:B48,PrixMTX!B48))","v":""},{"$f":"IF(COUNTIFS(PrixMTX!$A$6:$A$200,PrixMTX!A48,PrixMTX!$B$6:$B$200,PrixMTX!B48)<2,\"\",IF(COUNTIFS(PrixMTX!$A49:$A$200,PrixMTX!$A48,PrixMTX!$B49:$B$200,PrixMTX!B48)>0,\"\",MAX($AB$5:AB47)+1))","v":""}]
[null,null,null,null,null,null,null,null,null,null,null,null,null,null,null,null,null,null,null,null,null,null,null,null,null,null,{"$f":"IF(PrixMTX!A49=\"\",\"\",PrixMTX!A49&PrixMTX!B49&COUNTIFS(PrixMTX!$A$6:A49,PrixMTX!A49,PrixMTX!$B$6:B49,PrixMTX!B49))","v":""},{"$f":"IF(COUNTIFS(PrixMTX!$A$6:$A$200,PrixMTX!A49,PrixMTX!$B$6:$B$200,PrixMTX!B49)<2,\"\",IF(COUNTIFS(PrixMTX!$A50:$A$200,PrixMTX!$A49,PrixMTX!$B50:$B$200,PrixMTX!B49)>0,\"\",MAX($AB$5:AB48)+1))","v":""}]
[null,null,null,null,null,null,null,null,null,null,null,null,null,null,null,null,null,null,null,null,null,null,null,null,null,null,{"$f":"IF(PrixMTX!A50=\"\",\"\",PrixMTX!A50&PrixMTX!B50&COUNTIFS(PrixMTX!$A$6:A50,PrixMTX!A50,PrixMTX!$B$6:B50,PrixMTX!B50))","v":""},{"$f":"IF(COUNTIFS(PrixMTX!$A$6:$A$200,PrixMTX!A50,PrixMTX!$B$6:$B$200,PrixMTX!B50)<2,\"\",IF(COUNTIFS(PrixMTX!$A51:$A$200,PrixMTX!$A50,PrixMTX!$B51:$B$200,PrixMTX!B50)>0,\"\",MAX($AB$5:AB49)+1))","v":""}]
[null,null,null,null,null,null,null,null,null,null,null,null,null,null,null,null,null,null,null,null,null,null,null,null,null,null,{"$f":"IF(PrixMTX!A51=\"\",\"\",PrixMTX!A51&PrixMTX!B51&COUNTIFS(PrixMTX!$A$6:A51,PrixMTX!A51,PrixMTX!$B$6:B51,PrixMTX!B51))","v":""},{"$f":"IF(COUNTIFS(PrixMTX!$A$6:$A$200,PrixMTX!A51,PrixMTX!$B$6:$B$200,PrixMTX!B51)<2,\"\",IF(COUNTIFS(PrixMTX!$A52:$A$200,PrixMTX!$A51,PrixMTX!$B52:$B$200,PrixMTX!B51)>0,\"\",MAX($AB$5:AB50)+1))","v":""}]
[null,null,null,null,null,null,null,null,null,null,null,null,null,null,null,null,null,null,null,null,null,null,null,null,null,null,{"$f":"IF(PrixMTX!A52=\"\",\"\",PrixMTX!A52&PrixMTX!B52&COUNTIFS(PrixMTX!$A$6:A52,PrixMTX!A52,PrixMTX!$B$6:B52,PrixMTX!B52))","v":""},{"$f":"IF(COUNTIFS(PrixMTX!$A$6:$A$200,PrixMTX!A52,PrixMTX!$B$6:$B$200,PrixMTX!B52)<2,\"\",IF(COUNTIFS(PrixMTX!$A53:$A$200,PrixMTX!$A52,PrixMTX!$B53:$B$200,PrixMTX!B52)>0,\"\",MAX($AB$5:AB51)+1))","v":""}]
[null,null,null,null,null,null,null,null,null,null,null,null,null,null,null,null,null,null,null,null,null,null,null,null,null,null,{"$f":"IF(PrixMTX!A53=\"\",\"\",PrixMTX!A53&PrixMTX!B53&COUNTIFS(PrixMTX!$A$6:A53,PrixMTX!A53,PrixMTX!$B$6:B53,PrixMTX!B53))","v":""},{"$f":"IF(COUNTIFS(PrixMTX!$A$6:$A$200,PrixMTX!A53,PrixMTX!$B$6:$B$200,PrixMTX!B53)<2,\"\",IF(COUNTIFS(PrixMTX!$A54:$A$200,PrixMTX!$A53,PrixMTX!$B54:$B$200,PrixMTX!B53)>0,\"\",MAX($AB$5:AB52)+1))","v":""}]
[null,null,null,null,null,null,null,null,null,null,null,null,null,null,null,null,null,null,null,null,null,null,null,null,null,null,{"$f":"IF(PrixMTX!A54=\"\",\"\",PrixMTX!A54&PrixMTX!B54&COUNTIFS(PrixMTX!$A$6:A54,PrixMTX!A54,PrixMTX!$B$6:B54,PrixMTX!B54))","v":""},{"$f":"IF(COUNTIFS(PrixMTX!$A$6:$A$200,PrixMTX!A54,PrixMTX!$B$6:$B$200,PrixMTX!B54)<2,\"\",IF(COUNTIFS(PrixMTX!$A55:$A$200,PrixMTX!$A54,PrixMTX!$B55:$B$200,PrixMTX!B54)>0,\"\",MAX($AB$5:AB53)+1))","v":""}]
[null,null,null,null,null,null,null,null,null,null,null,null,null,null,null,null,null,null,null,null,null,null,null,null,null,null,{"$f":"IF(PrixMTX!A55=\"\",\"\",PrixMTX!A55&PrixMTX!B55&COUNTIFS(PrixMTX!$A$6:A55,PrixMTX!A55,PrixMTX!$B$6:B55,PrixMTX!B55))","v":""},{"$f":"IF(COUNTIFS(PrixMTX!$A$6:$A$200,PrixMTX!A55,PrixMTX!$B$6:$B$200,PrixMTX!B55)<2,\"\",IF(COUNTIFS(PrixMTX!$A56:$A$200,PrixMTX!$A55,PrixMTX!$B56:$B$200,PrixMTX!B55)>0,\"\",MAX($AB$5:AB54)+1))","v":""}]
[null,null,null,null,null,null,null,null,null,null,null,null,null,null,null,null,null,null,null,null,null,null,null,null,null,null,{"$f":"IF(PrixMTX!A56=\"\",\"\",PrixMTX!A56&PrixMTX!B56&COUNTIFS(PrixMTX!$A$6:A56,PrixMTX!A56,PrixMTX!$B$6:B56,PrixMTX!B56))","v":""},{"$f":"IF(COUNTIFS(PrixMTX!$A$6:$A$200,PrixMTX!A56,PrixMTX!$B$6:$B$200,PrixMTX!B56)<2,\"\",IF(COUNTIFS(PrixMTX!$A57:$A$200,PrixMTX!$A56,PrixMTX!$B57:$B$200,PrixMTX!B56)>0,\"\",MAX($AB$5:AB55)+1))","v":""}]
[null,null,null,null,null,null,null,null,null,null,null,null,null,null,null,null,null,null,null,null,null,null,null,null,null,null,{"$f":"IF(PrixMTX!A57=\"\",\"\",PrixMTX!A57&PrixMTX!B57&COUNTIFS(PrixMTX!$A$6:A57,PrixMTX!A57,PrixMTX!$B$6:B57,PrixMTX!B57))","v":""},{"$f":"IF(COUNTIFS(PrixMTX!$A$6:$A$200,PrixMTX!A57,PrixMTX!$B$6:$B$200,PrixMTX!B57)<2,\"\",IF(COUNTIFS(PrixMTX!$A58:$A$200,PrixMTX!$A57,PrixMTX!$B58:$B$200,PrixMTX!B57)>0,\"\",MAX($AB$5:AB56)+1))","v":""}]
[null,null,null,null,null,null,null,null,null,null,null,null,null,null,null,null,null,null,null,null,null,null,null,null,null,null,{"$f":"IF(PrixMTX!A58=\"\",\"\",PrixMTX!A58&PrixMTX!B58&COUNTIFS(PrixMTX!$A$6:A58,PrixMTX!A58,PrixMTX!$B$6:B58,PrixMTX!B58))","v":""},{"$f":"IF(COUNTIFS(PrixMTX!$A$6:$A$200,PrixMTX!A58,PrixMTX!$B$6:$B$200,PrixMTX!B58)<2,\"\",IF(COUNTIFS(PrixMTX!$A59:$A$200,PrixMTX!$A58,PrixMTX!$B59:$B$200,PrixMTX!B58)>0,\"\",MAX($AB$5:AB57)+1))","v":""}]
[null,null,null,null,null,null,null,null,null,null,null,null,null,null,null,null,null,null,null,null,null,null,null,null,null,null,{"$f":"IF(PrixMTX!A59=\"\",\"\",PrixMTX!A59&PrixMTX!B59&COUNTIFS(PrixMTX!$A$6:A59,PrixMTX!A59,PrixMTX!$B$6:B59,PrixMTX!B59))","v":""},{"$f":"IF(COUNTIFS(PrixMTX!$A$6:$A$200,PrixMTX!A59,PrixMTX!$B$6:$B$200,PrixMTX!B59)<2,\"\",IF(COUNTIFS(PrixMTX!$A60:$A$200,PrixMTX!$A59,PrixMTX!$B60:$B$200,PrixMTX!B59)>0,\"\",MAX($AB$5:AB58)+1))","v":""}]
[null,null,null,null,null,null,null,null,null,null,null,null,null,null,null,null,null,null,null,null,null,null,null,null,null,null,{"$f":"IF(PrixMTX!A60=\"\",\"\",PrixMTX!A60&PrixMTX!B60&COUNTIFS(PrixMTX!$A$6:A60,PrixMTX!A60,PrixMTX!$B$6:B60,PrixMTX!B60))","v":""},{"$f":"IF(COUNTIFS(PrixMTX!$A$6:$A$200,PrixMTX!A60,PrixMTX!$B$6:$B$200,PrixMTX!B60)<2,\"\",IF(COUNTIFS(PrixMTX!$A61:$A$200,PrixMTX!$A60,PrixMTX!$B61:$B$200,PrixMTX!B60)>0,\"\",MAX($AB$5:AB59)+1))","v":""}]
[null,null,null,null,null,null,null,null,null,null,null,null,null,null,null,null,null,null,null,null,null,null,null,null,null,null,{"$f":"IF(PrixMTX!A61=\"\",\"\",PrixMTX!A61&PrixMTX!B61&COUNTIFS(PrixMTX!$A$6:A61,PrixMTX!A61,PrixMTX!$B$6:B61,PrixMTX!B61))","v":""},{"$f":"IF(COUNTIFS(PrixMTX!$A$6:$A$200,PrixMTX!A61,PrixMTX!$B$6:$B$200,PrixMTX!B61)<2,\"\",IF(COUNTIFS(PrixMTX!$A62:$A$200,PrixMTX!$A61,PrixMTX!$B62:$B$200,PrixMTX!B61)>0,\"\",MAX($AB$5:AB60)+1))","v":""}]
[null,null,null,null,null,null,null,null,null,null,null,null,null,null,null,null,null,null,null,null,null,null,null,null,null,null,{"$f":"IF(PrixMTX!A62=\"\",\"\",PrixMTX!A62&PrixMTX!B62&COUNTIFS(PrixMTX!$A$6:A62,PrixMTX!A62,PrixMTX!$B$6:B62,PrixMTX!B62))","v":""},{"$f":"IF(COUNTIFS(PrixMTX!$A$6:$A$200,PrixMTX!A62,PrixMTX!$B$6:$B$200,PrixMTX!B62)<2,\"\",IF(COUNTIFS(PrixMTX!$A63:$A$200,PrixMTX!$A62,PrixMTX!$B63:$B$200,PrixMTX!B62)>0,\"\",MAX($AB$5:AB61)+1))","v":""}]
[null,null,null,null,null,null,null,null,null,null,null,null,null,null,null,null,null,null,null,null,null,null,null,null,null,null,{"$f":"IF(PrixMTX!A63=\"\",\"\",PrixMTX!A63&PrixMTX!B63&COUNTIFS(PrixMTX!$A$6:A63,PrixMTX!A63,PrixMTX!$B$6:B63,PrixMTX!B63))","v":""},{"$f":"IF(COUNTIFS(PrixMTX!$A$6:$A$200,PrixMTX!A63,PrixMTX!$B$6:$B$200,PrixMTX!B63)<2,\"\",IF(COUNTIFS(PrixMTX!$A64:$A$200,PrixMTX!$A63,PrixMTX!$B64:$B$200,PrixMTX!B63)>0,\"\",MAX($AB$5:AB62)+1))","v":""}]
[null,null,null,null,null,null,null,null,null,null,null,null,null,null,null,null,null,null,null,null,null,null,null,null,null,null,{"$f":"IF(PrixMTX!A64=\"\",\"\",PrixMTX!A64&PrixMTX!B64&COUNTIFS(PrixMTX!$A$6:A64,PrixMTX!A64,PrixMTX!$B$6:B64,PrixMTX!B64))","v":""},{"$f":"IF(COUNTIFS(PrixMTX!$A$6:$A$200,PrixMTX!A64,PrixMTX!$B$6:$B$200,PrixMTX!B64)<2,\"\",IF(COUNTIFS(PrixMTX!$A65:$A$200,PrixMTX!$A64,PrixMTX!$B65:$B$200,PrixMTX!B64)>0,\"\",MAX($AB$5:AB63)+1))","v":""}]
[null,null,null,null,null,null,null,null,null,null,null,null,null,null,null,null,null,null,null,null,null,null,null,null,null,null,{"$f":"IF(PrixMTX!A65=\"\",\"\",PrixMTX!A65&PrixMTX!B65&COUNTIFS(PrixMTX!$A$6:A65,PrixMTX!A65,PrixMTX!$B$6:B65,PrixMTX!B65))","v":""},{"$f":"IF(COUNTIFS(PrixMTX!$A$6:$A$200,PrixMTX!A65,PrixMTX!$B$6:$B$200,PrixMTX!B65)<2,\"\",IF(COUNTIFS(PrixMTX!$A66:$A$200,PrixMTX!$A65,PrixMTX!$B66:$B$200,PrixMTX!B65)>0,\"\",MAX($AB$5:AB64)+1))","v":""}]
[null,null,null,null,null,null,null,null,null,null,null,null,null,null,null,null,null,null,null,null,null,null,null,null,null,null,{"$f":"IF(PrixMTX!A66=\"\",\"\",PrixMTX!A66&PrixMTX!B66&COUNTIFS(PrixMTX!$A$6:A66,PrixMTX!A66,PrixMTX!$B$6:B66,PrixMTX!B66))","v":""},{"$f":"IF(COUNTIFS(PrixMTX!$A$6:$A$200,PrixMTX!A66,PrixMTX!$B$6:$B$200,PrixMTX!B66)<2,\"\",IF(COUNTIFS(PrixMTX!$A67:$A$200,PrixMTX!$A66,PrixMTX!$B67:$B$200,PrixMTX!B66)>0,\"\",MAX($AB$5:AB65)+1))","v":""}]
[null,null,null,null,null,null,null,null,null,null,null,null,null,null,null,null,null,null,null,null,null,null,null,null,null,null,{"$f":"IF(PrixMTX!A67=\"\",\"\",PrixMTX!A67&PrixMTX!B67&COUNTIFS(PrixMTX!$A$6:A67,PrixMTX!A67,PrixMTX!$B$6:B67,PrixMTX!B67))","v":""},{"$f":"IF(COUNTIFS(PrixMTX!$A$6:$A$200,PrixMTX!A67,PrixMTX!$B$6:$B$200,PrixMTX!B67)<2,\"\",IF(COUNTIFS(PrixMTX!$A68:$A$200,PrixMTX!$A67,PrixMTX!$B68:$B$200,PrixMTX!B67)>0,\"\",MAX($AB$5:AB66)+1))","v":""}]
[null,null,null,null,null,null,null,null,null,null,null,null,null,null,null,null,null,null,null,null,null,null,null,null,null,null,{"$f":"IF(PrixMTX!A68=\"\",\"\",PrixMTX!A68&PrixMTX!B68&COUNTIFS(PrixMTX!$A$6:A68,PrixMTX!A68,PrixMTX!$B$6:B68,PrixMTX!B68))","v":""},{"$f":"IF(COUNTIFS(PrixMTX!$A$6:$A$200,PrixMTX!A68,PrixMTX!$B$6:$B$200,PrixMTX!B68)<2,\"\",IF(COUNTIFS(PrixMTX!$A69:$A$200,PrixMTX!$A68,PrixMTX!$B69:$B$200,PrixMTX!B68)>0,\"\",MAX($AB$5:AB67)+1))","v":""}]
[null,null,null,null,null,null,null,null,null,null,null,null,null,null,null,null,null,null,null,null,null,null,null,null,null,null,{"$f":"IF(PrixMTX!A69=\"\",\"\",PrixMTX!A69&PrixMTX!B69&COUNTIFS(PrixMTX!$A$6:A69,PrixMTX!A69,PrixMTX!$B$6:B69,PrixMTX!B69))","v":""},{"$f":"IF(COUNTIFS(PrixMTX!$A$6:$A$200,PrixMTX!A69,PrixMTX!$B$6:$B$200,PrixMTX!B69)<2,\"\",IF(COUNTIFS(PrixMTX!$A70:$A$200,PrixMTX!$A69,PrixMTX!$B70:$B$200,PrixMTX!B69)>0,\"\",MAX($AB$5:AB68)+1))","v":""}]
[null,null,null,null,null,null,null,null,null,null,null,null,null,null,null,null,null,null,null,null,null,null,null,null,null,null,{"$f":"IF(PrixMTX!A70=\"\",\"\",PrixMTX!A70&PrixMTX!B70&COUNTIFS(PrixMTX!$A$6:A70,PrixMTX!A70,PrixMTX!$B$6:B70,PrixMTX!B70))","v":""},{"$f":"IF(COUNTIFS(PrixMTX!$A$6:$A$200,PrixMTX!A70,PrixMTX!$B$6:$B$200,PrixMTX!B70)<2,\"\",IF(COUNTIFS(PrixMTX!$A71:$A$200,PrixMTX!$A70,PrixMTX!$B71:$B$200,PrixMTX!B70)>0,\"\",MAX($AB$5:AB69)+1))","v":""}]
[null,null,null,null,null,null,null,null,null,null,null,null,null,null,null,null,null,null,null,null,null,null,null,null,null,null,{"$f":"IF(PrixMTX!A71=\"\",\"\",PrixMTX!A71&PrixMTX!B71&COUNTIFS(PrixMTX!$A$6:A71,PrixMTX!A71,PrixMTX!$B$6:B71,PrixMTX!B71))","v":""},{"$f":"IF(COUNTIFS(PrixMTX!$A$6:$A$200,PrixMTX!A71,PrixMTX!$B$6:$B$200,PrixMTX!B71)<2,\"\",IF(COUNTIFS(PrixMTX!$A72:$A$200,PrixMTX!$A71,PrixMTX!$B72:$B$200,PrixMTX!B71)>0,\"\",MAX($AB$5:AB70)+1))","v":""}]
[null,null,null,null,null,null,null,null,null,null,null,null,null,null,null,null,null,null,null,null,null,null,null,null,null,null,{"$f":"IF(PrixMTX!A72=\"\",\"\",PrixMTX!A72&PrixMTX!B72&COUNTIFS(PrixMTX!$A$6:A72,PrixMTX!A72,PrixMTX!$B$6:B72,PrixMTX!B72))","v":""},{"$f":"IF(COUNTIFS(PrixMTX!$A$6:$A$200,PrixMTX!A72,PrixMTX!$B$6:$B$200,PrixMTX!B72)<2,\"\",IF(COUNTIFS(PrixMTX!$A73:$A$200,PrixMTX!$A72,PrixMTX!$B73:$B$200,PrixMTX!B72)>0,\"\",MAX($AB$5:AB71)+1))","v":""}]
[null,null,null,null,null,null,null,null,null,null,null,null,null,null,null,null,null,null,null,null,null,null,null,null,null,null,{"$f":"IF(PrixMTX!A73=\"\",\"\",PrixMTX!A73&PrixMTX!B73&COUNTIFS(PrixMTX!$A$6:A73,PrixMTX!A73,PrixMTX!$B$6:B73,PrixMTX!B73))","v":""},{"$f":"IF(COUNTIFS(PrixMTX!$A$6:$A$200,PrixMTX!A73,PrixMTX!$B$6:$B$200,PrixMTX!B73)<2,\"\",IF(COUNTIFS(PrixMTX!$A74:$A$200,PrixMTX!$A73,PrixMTX!$B74:$B$200,PrixMTX!B73)>0,\"\",MAX($AB$5:AB72)+1))","v":""}]
[null,null,null,null,null,null,null,null,null,null,null,null,null,null,null,null,null,null,null,null,null,null,null,null,null,null,{"$f":"IF(PrixMTX!A74=\"\",\"\",PrixMTX!A74&PrixMTX!B74&COUNTIFS(PrixMTX!$A$6:A74,PrixMTX!A74,PrixMTX!$B$6:B74,PrixMTX!B74))","v":""},{"$f":"IF(COUNTIFS(PrixMTX!$A$6:$A$200,PrixMTX!A74,PrixMTX!$B$6:$B$200,PrixMTX!B74)<2,\"\",IF(COUNTIFS(PrixMTX!$A75:$A$200,PrixMTX!$A74,PrixMTX!$B75:$B$200,PrixMTX!B74)>0,\"\",MAX($AB$5:AB73)+1))","v":""}]
[null,null,null,null,null,null,null,null,null,null,null,null,null,null,null,null,null,null,null,null,null,null,null,null,null,null,{"$f":"IF(PrixMTX!A75=\"\",\"\",PrixMTX!A75&PrixMTX!B75&COUNTIFS(PrixMTX!$A$6:A75,PrixMTX!A75,PrixMTX!$B$6:B75,PrixMTX!B75))","v":""},{"$f":"IF(COUNTIFS(PrixMTX!$A$6:$A$200,PrixMTX!A75,PrixMTX!$B$6:$B$200,PrixMTX!B75)<2,\"\",IF(COUNTIFS(PrixMTX!$A76:$A$200,PrixMTX!$A75,PrixMTX!$B76:$B$200,PrixMTX!B75)>0,\"\",MAX($AB$5:AB74)+1))","v":""}]
[null,null,null,null,null,null,null,null,null,null,null,null,null,null,null,null,null,null,null,null,null,null,null,null,null,null,{"$f":"IF(PrixMTX!A76=\"\",\"\",PrixMTX!A76&PrixMTX!B76&COUNTIFS(PrixMTX!$A$6:A76,PrixMTX!A76,PrixMTX!$B$6:B76,PrixMTX!B76))","v":""},{"$f":"IF(COUNTIFS(PrixMTX!$A$6:$A$200,PrixMTX!A76,PrixMTX!$B$6:$B$200,PrixMTX!B76)<2,\"\",IF(COUNTIFS(PrixMTX!$A77:$A$200,PrixMTX!$A76,PrixMTX!$B77:$B$200,PrixMTX!B76)>0,\"\",MAX($AB$5:AB75)+1))","v":""}]
[null,null,null,null,null,null,null,null,null,null,null,null,null,null,null,null,null,null,null,null,null,null,null,null,null,null,{"$f":"IF(PrixMTX!A77=\"\",\"\",PrixMTX!A77&PrixMTX!B77&COUNTIFS(PrixMTX!$A$6:A77,PrixMTX!A77,PrixMTX!$B$6:B77,PrixMTX!B77))","v":""},{"$f":"IF(COUNTIFS(PrixMTX!$A$6:$A$200,PrixMTX!A77,PrixMTX!$B$6:$B$200,PrixMTX!B77)<2,\"\",IF(COUNTIFS(PrixMTX!$A78:$A$200,PrixMTX!$A77,PrixMTX!$B78:$B$200,PrixMTX!B77)>0,\"\",MAX($AB$5:AB76)+1))","v":""}]
[null,null,null,null,null,null,null,null,null,null,null,null,null,null,null,null,null,null,null,null,null,null,null,null,null,null,{"$f":"IF(PrixMTX!A78=\"\",\"\",PrixMTX!A78&PrixMTX!B78&COUNTIFS(PrixMTX!$A$6:A78,PrixMTX!A78,PrixMTX!$B$6:B78,PrixMTX!B78))","v":""},{"$f":"IF(COUNTIFS(PrixMTX!$A$6:$A$200,PrixMTX!A78,PrixMTX!$B$6:$B$200,PrixMTX!B78)<2,\"\",IF(COUNTIFS(PrixMTX!$A79:$A$200,PrixMTX!$A78,PrixMTX!$B79:$B$200,PrixMTX!B78)>0,\"\",MAX($AB$5:AB77)+1))","v":""}]
[null,null,null,null,null,null,null,null,null,null,null,null,null,null,null,null,null,null,null,null,null,null,null,null,null,null,{"$f":"IF(PrixMTX!A79=\"\",\"\",PrixMTX!A79&PrixMTX!B79&COUNTIFS(PrixMTX!$A$6:A79,PrixMTX!A79,PrixMTX!$B$6:B79,PrixMTX!B79))","v":""},{"$f":"IF(COUNTIFS(PrixMTX!$A$6:$A$200,PrixMTX!A79,PrixMTX!$B$6:$B$200,PrixMTX!B79)<2,\"\",IF(COUNTIFS(PrixMTX!$A80:$A$200,PrixMTX!$A79,PrixMTX!$B80:$B$200,PrixMTX!B79)>0,\"\",MAX($AB$5:AB78)+1))","v":""}]
[null,null,null,null,null,null,null,null,null,null,null,null,null,null,null,null,null,null,null,null,null,null,null,null,null,null,{"$f":"IF(PrixMTX!A80=\"\",\"\",PrixMTX!A80&PrixMTX!B80&COUNTIFS(PrixMTX!$A$6:A80,PrixMTX!A80,PrixMTX!$B$6:B80,PrixMTX!B80))","v":""},{"$f":"IF(COUNTIFS(PrixMTX!$A$6:$A$200,PrixMTX!A80,PrixMTX!$B$6:$B$200,PrixMTX!B80)<2,\"\",IF(COUNTIFS(PrixMTX!$A81:$A$200,PrixMTX!$A80,PrixMTX!$B81:$B$200,PrixMTX!B80)>0,\"\",MAX($AB$5:AB79)+1))","v":""}]
[null,null,null,null,null,null,null,null,null,null,null,null,null,null,null,null,null,null,null,null,null,null,null,null,null,null,{"$f":"IF(PrixMTX!A81=\"\",\"\",PrixMTX!A81&PrixMTX!B81&COUNTIFS(PrixMTX!$A$6:A81,PrixMTX!A81,PrixMTX!$B$6:B81,PrixMTX!B81))","v":""},{"$f":"IF(COUNTIFS(PrixMTX!$A$6:$A$200,PrixMTX!A81,PrixMTX!$B$6:$B$200,PrixMTX!B81)<2,\"\",IF(COUNTIFS(PrixMTX!$A82:$A$200,PrixMTX!$A81,PrixMTX!$B82:$B$200,PrixMTX!B81)>0,\"\",MAX($AB$5:AB80)+1))","v":""}]
[null,null,null,null,null,null,null,null,null,null,null,null,null,null,null,null,null,null,null,null,null,null,null,null,null,null,{"$f":"IF(PrixMTX!A82=\"\",\"\",PrixMTX!A82&PrixMTX!B82&COUNTIFS(PrixMTX!$A$6:A82,PrixMTX!A82,PrixMTX!$B$6:B82,PrixMTX!B82))","v":""},{"$f":"IF(COUNTIFS(PrixMTX!$A$6:$A$200,PrixMTX!A82,PrixMTX!$B$6:$B$200,PrixMTX!B82)<2,\"\",IF(COUNTIFS(PrixMTX!$A83:$A$200,PrixMTX!$A82,PrixMTX!$B83:$B$200,PrixMTX!B82)>0,\"\",MAX($AB$5:AB81)+1))","v":""}]
[null,null,null,null,null,null,null,null,null,null,null,null,null,null,null,null,null,null,null,null,null,null,null,null,null,null,{"$f":"IF(PrixMTX!A83=\"\",\"\",PrixMTX!A83&PrixMTX!B83&COUNTIFS(PrixMTX!$A$6:A83,PrixMTX!A83,PrixMTX!$B$6:B83,PrixMTX!B83))","v":""},{"$f":"IF(COUNTIFS(PrixMTX!$A$6:$A$200,PrixMTX!A83,PrixMTX!$B$6:$B$200,PrixMTX!B83)<2,\"\",IF(COUNTIFS(PrixMTX!$A84:$A$200,PrixMTX!$A83,PrixMTX!$B84:$B$200,PrixMTX!B83)>0,\"\",MAX($AB$5:AB82)+1))","v":""}]
[null,null,null,null,null,null,null,null,null,null,null,null,null,null,null,null,null,null,null,null,null,null,null,null,null,null,{"$f":"IF(PrixMTX!A84=\"\",\"\",PrixMTX!A84&PrixMTX!B84&COUNTIFS(PrixMTX!$A$6:A84,PrixMTX!A84,PrixMTX!$B$6:B84,PrixMTX!B84))","v":""},{"$f":"IF(COUNTIFS(PrixMTX!$A$6:$A$200,PrixMTX!A84,PrixMTX!$B$6:$B$200,PrixMTX!B84)<2,\"\",IF(COUNTIFS(PrixMTX!$A85:$A$200,PrixMTX!$A84,PrixMTX!$B85:$B$200,PrixMTX!B84)>0,\"\",MAX($AB$5:AB83)+1))","v":""}]
[null,null,null,null,null,null,null,null,null,null,null,null,null,null,null,null,null,null,null,null,null,null,null,null,null,null,{"$f":"IF(PrixMTX!A85=\"\",\"\",PrixMTX!A85&PrixMTX!B85&COUNTIFS(PrixMTX!$A$6:A85,PrixMTX!A85,PrixMTX!$B$6:B85,PrixMTX!B85))","v":""},{"$f":"IF(COUNTIFS(PrixMTX!$A$6:$A$200,PrixMTX!A85,PrixMTX!$B$6:$B$200,PrixMTX!B85)<2,\"\",IF(COUNTIFS(PrixMTX!$A86:$A$200,PrixMTX!$A85,PrixMTX!$B86:$B$200,PrixMTX!B85)>0,\"\",MAX($AB$5:AB84)+1))","v":""}]
[null,null,null,null,null,null,null,null,null,null,null,null,null,null,null,null,null,null,null,null,null,null,null,null,null,null,{"$f":"IF(PrixMTX!A86=\"\",\"\",PrixMTX!A86&PrixMTX!B86&COUNTIFS(PrixMTX!$A$6:A86,PrixMTX!A86,PrixMTX!$B$6:B86,PrixMTX!B86))","v":""},{"$f":"IF(COUNTIFS(PrixMTX!$A$6:$A$200,PrixMTX!A86,PrixMTX!$B$6:$B$200,PrixMTX!B86)<2,\"\",IF(COUNTIFS(PrixMTX!$A87:$A$200,PrixMTX!$A86,PrixMTX!$B87:$B$200,PrixMTX!B86)>0,\"\",MAX($AB$5:AB85)+1))","v":""}]
[null,null,null,null,null,null,null,null,null,null,null,null,null,null,null,null,null,null,null,null,null,null,null,null,null,null,{"$f":"IF(PrixMTX!A87=\"\",\"\",PrixMTX!A87&PrixMTX!B87&COUNTIFS(PrixMTX!$A$6:A87,PrixMTX!A87,PrixMTX!$B$6:B87,PrixMTX!B87))","v":""},{"$f":"IF(COUNTIFS(PrixMTX!$A$6:$A$200,PrixMTX!A87,PrixMTX!$B$6:$B$200,PrixMTX!B87)<2,\"\",IF(COUNTIFS(PrixMTX!$A88:$A$200,PrixMTX!$A87,PrixMTX!$B88:$B$200,PrixMTX!B87)>0,\"\",MAX($AB$5:AB86)+1))","v":""}]
[null,null,null,null,null,null,null,null,null,null,null,null,null,null,null,null,null,null,null,null,null,null,null,null,null,null,{"$f":"IF(PrixMTX!A88=\"\",\"\",PrixMTX!A88&PrixMTX!B88&COUNTIFS(PrixMTX!$A$6:A88,PrixMTX!A88,PrixMTX!$B$6:B88,PrixMTX!B88))","v":""},{"$f":"IF(COUNTIFS(PrixMTX!$A$6:$A$200,PrixMTX!A88,PrixMTX!$B$6:$B$200,PrixMTX!B88)<2,\"\",IF(COUNTIFS(PrixMTX!$A89:$A$200,PrixMTX!$A88,PrixMTX!$B89:$B$200,PrixMTX!B88)>0,\"\",MAX($AB$5:AB87)+1))","v":""}]
[null,null,null,null,null,null,null,null,null,null,null,null,null,null,null,null,null,null,null,null,null,null,null,null,null,null,{"$f":"IF(PrixMTX!A89=\"\",\"\",PrixMTX!A89&PrixMTX!B89&COUNTIFS(PrixMTX!$A$6:A89,PrixMTX!A89,PrixMTX!$B$6:B89,PrixMTX!B89))","v":""},{"$f":"IF(COUNTIFS(PrixMTX!$A$6:$A$200,PrixMTX!A89,PrixMTX!$B$6:$B$200,PrixMTX!B89)<2,\"\",IF(COUNTIFS(PrixMTX!$A90:$A$200,PrixMTX!$A89,PrixMTX!$B90:$B$200,PrixMTX!B89)>0,\"\",MAX($AB$5:AB88)+1))","v":""}]
[null,null,null,null,null,null,null,null,null,null,null,null,null,null,null,null,null,null,null,null,null,null,null,null,null,null,{"$f":"IF(PrixMTX!A90=\"\",\"\",PrixMTX!A90&PrixMTX!B90&COUNTIFS(PrixMTX!$A$6:A90,PrixMTX!A90,PrixMTX!$B$6:B90,PrixMTX!B90))","v":""},{"$f":"IF(COUNTIFS(PrixMTX!$A$6:$A$200,PrixMTX!A90,PrixMTX!$B$6:$B$200,PrixMTX!B90)<2,\"\",IF(COUNTIFS(PrixMTX!$A91:$A$200,PrixMTX!$A90,PrixMTX!$B91:$B$200,PrixMTX!B90)>0,\"\",MAX($AB$5:AB89)+1))","v":""}]
[null,null,null,null,null,null,null,null,null,null,null,null,null,null,null,null,null,null,null,null,null,null,null,null,null,null,{"$f":"IF(PrixMTX!A91=\"\",\"\",PrixMTX!A91&PrixMTX!B91&COUNTIFS(PrixMTX!$A$6:A91,PrixMTX!A91,PrixMTX!$B$6:B91,PrixMTX!B91))","v":""},{"$f":"IF(COUNTIFS(PrixMTX!$A$6:$A$200,PrixMTX!A91,PrixMTX!$B$6:$B$200,PrixMTX!B91)<2,\"\",IF(COUNTIFS(PrixMTX!$A92:$A$200,PrixMTX!$A91,PrixMTX!$B92:$B$200,PrixMTX!B91)>0,\"\",MAX($AB$5:AB90)+1))","v":""}]
[null,null,null,null,null,null,null,null,null,null,null,null,null,null,null,null,null,null,null,null,null,null,null,null,null,null,{"$f":"IF(PrixMTX!A92=\"\",\"\",PrixMTX!A92&PrixMTX!B92&COUNTIFS(PrixMTX!$A$6:A92,PrixMTX!A92,PrixMTX!$B$6:B92,PrixMTX!B92))","v":""},{"$f":"IF(COUNTIFS(PrixMTX!$A$6:$A$200,PrixMTX!A92,PrixMTX!$B$6:$B$200,PrixMTX!B92)<2,\"\",IF(COUNTIFS(PrixMTX!$A93:$A$200,PrixMTX!$A92,PrixMTX!$B93:$B$200,PrixMTX!B92)>0,\"\",MAX($AB$5:AB91)+1))","v":""}]
[null,null,null,null,null,null,null,null,null,null,null,null,null,null,null,null,null,null,null,null,null,null,null,null,null,null,{"$f":"IF(PrixMTX!A93=\"\",\"\",PrixMTX!A93&PrixMTX!B93&COUNTIFS(PrixMTX!$A$6:A93,PrixMTX!A93,PrixMTX!$B$6:B93,PrixMTX!B93))","v":""},{"$f":"IF(COUNTIFS(PrixMTX!$A$6:$A$200,PrixMTX!A93,PrixMTX!$B$6:$B$200,PrixMTX!B93)<2,\"\",IF(COUNTIFS(PrixMTX!$A94:$A$200,PrixMTX!$A93,PrixMTX!$B94:$B$200,PrixMTX!B93)>0,\"\",MAX($AB$5:AB92)+1))","v":""}]
[null,null,null,null,null,null,null,null,null,null,null,null,null,null,null,null,null,null,null,null,null,null,null,null,null,null,{"$f":"IF(PrixMTX!A94=\"\",\"\",PrixMTX!A94&PrixMTX!B94&COUNTIFS(PrixMTX!$A$6:A94,PrixMTX!A94,PrixMTX!$B$6:B94,PrixMTX!B94))","v":""},{"$f":"IF(COUNTIFS(PrixMTX!$A$6:$A$200,PrixMTX!A94,PrixMTX!$B$6:$B$200,PrixMTX!B94)<2,\"\",IF(COUNTIFS(PrixMTX!$A95:$A$200,PrixMTX!$A94,PrixMTX!$B95:$B$200,PrixMTX!B94)>0,\"\",MAX($AB$5:AB93)+1))","v":""}]
[null,null,null,null,null,null,null,null,null,null,null,null,null,null,null,null,null,null,null,null,null,null,null,null,null,null,{"$f":"IF(PrixMTX!A95=\"\",\"\",PrixMTX!A95&PrixMTX!B95&COUNTIFS(PrixMTX!$A$6:A95,PrixMTX!A95,PrixMTX!$B$6:B95,PrixMTX!B95))","v":""},{"$f":"IF(COUNTIFS(PrixMTX!$A$6:$A$200,PrixMTX!A95,PrixMTX!$B$6:$B$200,PrixMTX!B95)<2,\"\",IF(COUNTIFS(PrixMTX!$A96:$A$200,PrixMTX!$A95,PrixMTX!$B96:$B$200,PrixMTX!B95)>0,\"\",MAX($AB$5:AB94)+1))","v":""}]
[null,null,null,null,null,null,null,null,null,null,null,null,null,null,null,null,null,null,null,null,null,null,null,null,null,null,{"$f":"IF(PrixMTX!A96=\"\",\"\",PrixMTX!A96&PrixMTX!B96&COUNTIFS(PrixMTX!$A$6:A96,PrixMTX!A96,PrixMTX!$B$6:B96,PrixMTX!B96))","v":""},{"$f":"IF(COUNTIFS(PrixMTX!$A$6:$A$200,PrixMTX!A96,PrixMTX!$B$6:$B$200,PrixMTX!B96)<2,\"\",IF(COUNTIFS(PrixMTX!$A97:$A$200,PrixMTX!$A96,PrixMTX!$B97:$B$200,PrixMTX!B96)>0,\"\",MAX($AB$5:AB95)+1))","v":""}]
[null,null,null,null,null,null,null,null,null,null,null,null,null,null,null,null,null,null,null,null,null,null,null,null,null,null,{"$f":"IF(PrixMTX!A97=\"\",\"\",PrixMTX!A97&PrixMTX!B97&COUNTIFS(PrixMTX!$A$6:A97,PrixMTX!A97,PrixMTX!$B$6:B97,PrixMTX!B97))","v":""},{"$f":"IF(COUNTIFS(PrixMTX!$A$6:$A$200,PrixMTX!A97,PrixMTX!$B$6:$B$200,PrixMTX!B97)<2,\"\",IF(COUNTIFS(PrixMTX!$A98:$A$200,PrixMTX!$A97,PrixMTX!$B98:$B$200,PrixMTX!B97)>0,\"\",MAX($AB$5:AB96)+1))","v":""}]
[null,null,null,null,null,null,null,null,null,null,null,null,null,null,null,null,null,null,null,null,null,null,null,null,null,null,{"$f":"IF(PrixMTX!A98=\"\",\"\",PrixMTX!A98&PrixMTX!B98&COUNTIFS(PrixMTX!$A$6:A98,PrixMTX!A98,PrixMTX!$B$6:B98,PrixMTX!B98))","v":""},{"$f":"IF(COUNTIFS(PrixMTX!$A$6:$A$200,PrixMTX!A98,PrixMTX!$B$6:$B$200,PrixMTX!B98)<2,\"\",IF(COUNTIFS(PrixMTX!$A99:$A$200,PrixMTX!$A98,PrixMTX!$B99:$B$200,PrixMTX!B98)>0,\"\",MAX($AB$5:AB97)+1))","v":""}]
[null,null,null,null,null,null,null,null,null,null,null,null,null,null,null,null,null,null,null,null,null,null,null,null,null,null,{"$f":"IF(PrixMTX!A99=\"\",\"\",PrixMTX!A99&PrixMTX!B99&COUNTIFS(PrixMTX!$A$6:A99,PrixMTX!A99,PrixMTX!$B$6:B99,PrixMTX!B99))","v":""},{"$f":"IF(COUNTIFS(PrixMTX!$A$6:$A$200,PrixMTX!A99,PrixMTX!$B$6:$B$200,PrixMTX!B99)<2,\"\",IF(COUNTIFS(PrixMTX!$A100:$A$200,PrixMTX!$A99,PrixMTX!$B100:$B$200,PrixMTX!B99)>0,\"\",MAX($AB$5:AB98)+1))","v":""}]
[null,null,null,null,null,null,null,null,null,null,null,null,null,null,null,null,null,null,null,null,null,null,null,null,null,null,{"$f":"IF(PrixMTX!A100=\"\",\"\",PrixMTX!A100&PrixMTX!B100&COUNTIFS(PrixMTX!$A$6:A100,PrixMTX!A100,PrixMTX!$B$6:B100,PrixMTX!B100))","v":""},{"$f":"IF(COUNTIFS(PrixMTX!$A$6:$A$200,PrixMTX!A100,PrixMTX!$B$6:$B$200,PrixMTX!B100)<2,\"\",IF(COUNTIFS(PrixMTX!$A101:$A$200,PrixMTX!$A100,PrixMTX!$B101:$B$200,PrixMTX!B100)>0,\"\",MAX($AB$5:AB99)+1))","v":""}]
[null,null,null,null,null,null,null,null,null,null,null,null,null,null,null,null,null,null,null,null,null,null,null,null,null,null,{"$f":"IF(PrixMTX!A101=\"\",\"\",PrixMTX!A101&PrixMTX!B101&COUNTIFS(PrixMTX!$A$6:A101,PrixMTX!A101,PrixMTX!$B$6:B101,PrixMTX!B101))","v":""},{"$f":"IF(COUNTIFS(PrixMTX!$A$6:$A$200,PrixMTX!A101,PrixMTX!$B$6:$B$200,PrixMTX!B101)<2,\"\",IF(COUNTIFS(PrixMTX!$A102:$A$200,PrixMTX!$A101,PrixMTX!$B102:$B$200,PrixMTX!B101)>0,\"\",MAX($AB$5:AB100)+1))","v":""}]
[null,null,null,null,null,null,null,null,null,null,null,null,null,null,null,null,null,null,null,null,null,null,null,null,null,null,{"$f":"IF(PrixMTX!A102=\"\",\"\",PrixMTX!A102&PrixMTX!B102&COUNTIFS(PrixMTX!$A$6:A102,PrixMTX!A102,PrixMTX!$B$6:B102,PrixMTX!B102))","v":""},{"$f":"IF(COUNTIFS(PrixMTX!$A$6:$A$200,PrixMTX!A102,PrixMTX!$B$6:$B$200,PrixMTX!B102)<2,\"\",IF(COUNTIFS(PrixMTX!$A103:$A$200,PrixMTX!$A102,PrixMTX!$B103:$B$200,PrixMTX!B102)>0,\"\",MAX($AB$5:AB101)+1))","v":""}]
[null,null,null,null,null,null,null,null,null,null,null,null,null,null,null,null,null,null,null,null,null,null,null,null,null,null,{"$f":"IF(PrixMTX!A103=\"\",\"\",PrixMTX!A103&PrixMTX!B103&COUNTIFS(PrixMTX!$A$6:A103,PrixMTX!A103,PrixMTX!$B$6:B103,PrixMTX!B103))","v":""},{"$f":"IF(COUNTIFS(PrixMTX!$A$6:$A$200,PrixMTX!A103,PrixMTX!$B$6:$B$200,PrixMTX!B103)<2,\"\",IF(COUNTIFS(PrixMTX!$A104:$A$200,PrixMTX!$A103,PrixMTX!$B104:$B$200,PrixMTX!B103)>0,\"\",MAX($AB$5:AB102)+1))","v":""}]
[null,null,null,null,null,null,null,null,null,null,null,null,null,null,null,null,null,null,null,null,null,null,null,null,null,null,{"$f":"IF(PrixMTX!A104=\"\",\"\",PrixMTX!A104&PrixMTX!B104&COUNTIFS(PrixMTX!$A$6:A104,PrixMTX!A104,PrixMTX!$B$6:B104,PrixMTX!B104))","v":""},{"$f":"IF(COUNTIFS(PrixMTX!$A$6:$A$200,PrixMTX!A104,PrixMTX!$B$6:$B$200,PrixMTX!B104)<2,\"\",IF(COUNTIFS(PrixMTX!$A105:$A$200,PrixMTX!$A104,PrixMTX!$B105:$B$200,PrixMTX!B104)>0,\"\",MAX($AB$5:AB103)+1))","v":""}]
[null,null,null,null,null,null,null,null,null,null,null,null,null,null,null,null,null,null,null,null,null,null,null,null,null,null,{"$f":"IF(PrixMTX!A105=\"\",\"\",PrixMTX!A105&PrixMTX!B105&COUNTIFS(PrixMTX!$A$6:A105,PrixMTX!A105,PrixMTX!$B$6:B105,PrixMTX!B105))","v":""},{"$f":"IF(COUNTIFS(PrixMTX!$A$6:$A$200,PrixMTX!A105,PrixMTX!$B$6:$B$200,PrixMTX!B105)<2,\"\",IF(COUNTIFS(PrixMTX!$A106:$A$200,PrixMTX!$A105,PrixMTX!$B106:$B$200,PrixMTX!B105)>0,\"\",MAX($AB$5:AB104)+1))","v":""}]
[null,null,null,null,null,null,null,null,null,null,null,null,null,null,null,null,null,null,null,null,null,null,null,null,null,null,{"$f":"IF(PrixMTX!A106=\"\",\"\",PrixMTX!A106&PrixMTX!B106&COUNTIFS(PrixMTX!$A$6:A106,PrixMTX!A106,PrixMTX!$B$6:B106,PrixMTX!B106))","v":""},{"$f":"IF(COUNTIFS(PrixMTX!$A$6:$A$200,PrixMTX!A106,PrixMTX!$B$6:$B$200,PrixMTX!B106)<2,\"\",IF(COUNTIFS(PrixMTX!$A107:$A$200,PrixMTX!$A106,PrixMTX!$B107:$B$200,PrixMTX!B106)>0,\"\",MAX($AB$5:AB105)+1))","v":""}]
[null,null,null,null,null,null,null,null,null,null,null,null,null,null,null,null,null,null,null,null,null,null,null,null,null,null,{"$f":"IF(PrixMTX!A107=\"\",\"\",PrixMTX!A107&PrixMTX!B107&COUNTIFS(PrixMTX!$A$6:A107,PrixMTX!A107,PrixMTX!$B$6:B107,PrixMTX!B107))","v":""},{"$f":"IF(COUNTIFS(PrixMTX!$A$6:$A$200,PrixMTX!A107,PrixMTX!$B$6:$B$200,PrixMTX!B107)<2,\"\",IF(COUNTIFS(PrixMTX!$A108:$A$200,PrixMTX!$A107,PrixMTX!$B108:$B$200,PrixMTX!B107)>0,\"\",MAX($AB$5:AB106)+1))","v":""}]
[null,null,null,null,null,null,null,null,null,null,null,null,null,null,null,null,null,null,null,null,null,null,null,null,null,null,{"$f":"IF(PrixMTX!A108=\"\",\"\",PrixMTX!A108&PrixMTX!B108&COUNTIFS(PrixMTX!$A$6:A108,PrixMTX!A108,PrixMTX!$B$6:B108,PrixMTX!B108))","v":""},{"$f":"IF(COUNTIFS(PrixMTX!$A$6:$A$200,PrixMTX!A108,PrixMTX!$B$6:$B$200,PrixMTX!B108)<2,\"\",IF(COUNTIFS(PrixMTX!$A109:$A$200,PrixMTX!$A108,PrixMTX!$B109:$B$200,PrixMTX!B108)>0,\"\",MAX($AB$5:AB107)+1))","v":""}]
[null,null,null,null,null,null,null,null,null,null,null,null,null,null,null,null,null,null,null,null,null,null,null,null,null,null,{"$f":"IF(PrixMTX!A109=\"\",\"\",PrixMTX!A109&PrixMTX!B109&COUNTIFS(PrixMTX!$A$6:A109,PrixMTX!A109,PrixMTX!$B$6:B109,PrixMTX!B109))","v":""},{"$f":"IF(COUNTIFS(PrixMTX!$A$6:$A$200,PrixMTX!A109,PrixMTX!$B$6:$B$200,PrixMTX!B109)<2,\"\",IF(COUNTIFS(PrixMTX!$A110:$A$200,PrixMTX!$A109,PrixMTX!$B110:$B$200,PrixMTX!B109)>0,\"\",MAX($AB$5:AB108)+1))","v":""}]
[null,null,null,null,null,null,null,null,null,null,null,null,null,null,null,null,null,null,null,null,null,null,null,null,null,null,{"$f":"IF(PrixMTX!A110=\"\",\"\",PrixMTX!A110&PrixMTX!B110&COUNTIFS(PrixMTX!$A$6:A110,PrixMTX!A110,PrixMTX!$B$6:B110,PrixMTX!B110))","v":""},{"$f":"IF(COUNTIFS(PrixMTX!$A$6:$A$200,PrixMTX!A110,PrixMTX!$B$6:$B$200,PrixMTX!B110)<2,\"\",IF(COUNTIFS(PrixMTX!$A111:$A$200,PrixMTX!$A110,PrixMTX!$B111:$B$200,PrixMTX!B110)>0,\"\",MAX($AB$5:AB109)+1))","v":""}]
[null,null,null,null,null,null,null,null,null,null,null,null,null,null,null,null,null,null,null,null,null,null,null,null,null,null,{"$f":"IF(PrixMTX!A111=\"\",\"\",PrixMTX!A111&PrixMTX!B111&COUNTIFS(PrixMTX!$A$6:A111,PrixMTX!A111,PrixMTX!$B$6:B111,PrixMTX!B111))","v":""},{"$f":"IF(COUNTIFS(PrixMTX!$A$6:$A$200,PrixMTX!A111,PrixMTX!$B$6:$B$200,PrixMTX!B111)<2,\"\",IF(COUNTIFS(PrixMTX!$A112:$A$200,PrixMTX!$A111,PrixMTX!$B112:$B$200,PrixMTX!B111)>0,\"\",MAX($AB$5:AB110)+1))","v":""}]
[null,null,null,null,null,null,null,null,null,null,null,null,null,null,null,null,null,null,null,null,null,null,null,null,null,null,{"$f":"IF(PrixMTX!A112=\"\",\"\",PrixMTX!A112&PrixMTX!B112&COUNTIFS(PrixMTX!$A$6:A112,PrixMTX!A112,PrixMTX!$B$6:B112,PrixMTX!B112))","v":""},{"$f":"IF(COUNTIFS(PrixMTX!$A$6:$A$200,PrixMTX!A112,PrixMTX!$B$6:$B$200,PrixMTX!B112)<2,\"\",IF(COUNTIFS(PrixMTX!$A113:$A$200,PrixMTX!$A112,PrixMTX!$B113:$B$200,PrixMTX!B112)>0,\"\",MAX($AB$5:AB111)+1))","v":""}]
[null,null,null,null,null,null,null,null,null,null,null,null,null,null,null,null,null,null,null,null,null,null,null,null,null,null,{"$f":"IF(PrixMTX!A113=\"\",\"\",PrixMTX!A113&PrixMTX!B113&COUNTIFS(PrixMTX!$A$6:A113,PrixMTX!A113,PrixMTX!$B$6:B113,PrixMTX!B113))","v":""},{"$f":"IF(COUNTIFS(PrixMTX!$A$6:$A$200,PrixMTX!A113,PrixMTX!$B$6:$B$200,PrixMTX!B113)<2,\"\",IF(COUNTIFS(PrixMTX!$A114:$A$200,PrixMTX!$A113,PrixMTX!$B114:$B$200,PrixMTX!B113)>0,\"\",MAX($AB$5:AB112)+1))","v":""}]
[null,null,null,null,null,null,null,null,null,null,null,null,null,null,null,null,null,null,null,null,null,null,null,null,null,null,{"$f":"IF(PrixMTX!A114=\"\",\"\",PrixMTX!A114&PrixMTX!B114&COUNTIFS(PrixMTX!$A$6:A114,PrixMTX!A114,PrixMTX!$B$6:B114,PrixMTX!B114))","v":""},{"$f":"IF(COUNTIFS(PrixMTX!$A$6:$A$200,PrixMTX!A114,PrixMTX!$B$6:$B$200,PrixMTX!B114)<2,\"\",IF(COUNTIFS(PrixMTX!$A115:$A$200,PrixMTX!$A114,PrixMTX!$B115:$B$200,PrixMTX!B114)>0,\"\",MAX($AB$5:AB113)+1))","v":""}]
[null,null,null,null,null,null,null,null,null,null,null,null,null,null,null,null,null,null,null,null,null,null,null,null,null,null,{"$f":"IF(PrixMTX!A115=\"\",\"\",PrixMTX!A115&PrixMTX!B115&COUNTIFS(PrixMTX!$A$6:A115,PrixMTX!A115,PrixMTX!$B$6:B115,PrixMTX!B115))","v":""},{"$f":"IF(COUNTIFS(PrixMTX!$A$6:$A$200,PrixMTX!A115,PrixMTX!$B$6:$B$200,PrixMTX!B115)<2,\"\",IF(COUNTIFS(PrixMTX!$A116:$A$200,PrixMTX!$A115,PrixMTX!$B116:$B$200,PrixMTX!B115)>0,\"\",MAX($AB$5:AB114)+1))","v":""}]
[null,null,null,null,null,null,null,null,null,null,null,null,null,null,null,null,null,null,null,null,null,null,null,null,null,null,{"$f":"IF(PrixMTX!A116=\"\",\"\",PrixMTX!A116&PrixMTX!B116&COUNTIFS(PrixMTX!$A$6:A116,PrixMTX!A116,PrixMTX!$B$6:B116,PrixMTX!B116))","v":""},{"$f":"IF(COUNTIFS(PrixMTX!$A$6:$A$200,PrixMTX!A116,PrixMTX!$B$6:$B$200,PrixMTX!B116)<2,\"\",IF(COUNTIFS(PrixMTX!$A117:$A$200,PrixMTX!$A116,PrixMTX!$B117:$B$200,PrixMTX!B116)>0,\"\",MAX($AB$5:AB115)+1))","v":""}]
[null,null,null,null,null,null,null,null,null,null,null,null,null,null,null,null,null,null,null,null,null,null,null,null,null,null,{"$f":"IF(PrixMTX!A117=\"\",\"\",PrixMTX!A117&PrixMTX!B117&COUNTIFS(PrixMTX!$A$6:A117,PrixMTX!A117,PrixMTX!$B$6:B117,PrixMTX!B117))","v":""},{"$f":"IF(COUNTIFS(PrixMTX!$A$6:$A$200,PrixMTX!A117,PrixMTX!$B$6:$B$200,PrixMTX!B117)<2,\"\",IF(COUNTIFS(PrixMTX!$A118:$A$200,PrixMTX!$A117,PrixMTX!$B118:$B$200,PrixMTX!B117)>0,\"\",MAX($AB$5:AB116)+1))","v":""}]
[null,null,null,null,null,null,null,null,null,null,null,null,null,null,null,null,null,null,null,null,null,null,null,null,null,null,{"$f":"IF(PrixMTX!A118=\"\",\"\",PrixMTX!A118&PrixMTX!B118&COUNTIFS(PrixMTX!$A$6:A118,PrixMTX!A118,PrixMTX!$B$6:B118,PrixMTX!B118))","v":""},{"$f":"IF(COUNTIFS(PrixMTX!$A$6:$A$200,PrixMTX!A118,PrixMTX!$B$6:$B$200,PrixMTX!B118)<2,\"\",IF(COUNTIFS(PrixMTX!$A119:$A$200,PrixMTX!$A118,PrixMTX!$B119:$B$200,PrixMTX!B118)>0,\"\",MAX($AB$5:AB117)+1))","v":""}]
[null,null,null,null,null,null,null,null,null,null,null,null,null,null,null,null,null,null,null,null,null,null,null,null,null,null,{"$f":"IF(PrixMTX!A119=\"\",\"\",PrixMTX!A119&PrixMTX!B119&COUNTIFS(PrixMTX!$A$6:A119,PrixMTX!A119,PrixMTX!$B$6:B119,PrixMTX!B119))","v":""},{"$f":"IF(COUNTIFS(PrixMTX!$A$6:$A$200,PrixMTX!A119,PrixMTX!$B$6:$B$200,PrixMTX!B119)<2,\"\",IF(COUNTIFS(PrixMTX!$A120:$A$200,PrixMTX!$A119,PrixMTX!$B120:$B$200,PrixMTX!B119)>0,\"\",MAX($AB$5:AB118)+1))","v":""}]
[null,null,null,null,null,null,null,null,null,null,null,null,null,null,null,null,null,null,null,null,null,null,null,null,null,null,{"$f":"IF(PrixMTX!A120=\"\",\"\",PrixMTX!A120&PrixMTX!B120&COUNTIFS(PrixMTX!$A$6:A120,PrixMTX!A120,PrixMTX!$B$6:B120,PrixMTX!B120))","v":""},{"$f":"IF(COUNTIFS(PrixMTX!$A$6:$A$200,PrixMTX!A120,PrixMTX!$B$6:$B$200,PrixMTX!B120)<2,\"\",IF(COUNTIFS(PrixMTX!$A121:$A$200,PrixMTX!$A120,PrixMTX!$B121:$B$200,PrixMTX!B120)>0,\"\",MAX($AB$5:AB119)+1))","v":""}]
[null,null,null,null,null,null,null,null,null,null,null,null,null,null,null,null,null,null,null,null,null,null,null,null,null,null,{"$f":"IF(PrixMTX!A121=\"\",\"\",PrixMTX!A121&PrixMTX!B121&COUNTIFS(PrixMTX!$A$6:A121,PrixMTX!A121,PrixMTX!$B$6:B121,PrixMTX!B121))","v":""},{"$f":"IF(COUNTIFS(PrixMTX!$A$6:$A$200,PrixMTX!A121,PrixMTX!$B$6:$B$200,PrixMTX!B121)<2,\"\",IF(COUNTIFS(PrixMTX!$A122:$A$200,PrixMTX!$A121,PrixMTX!$B122:$B$200,PrixMTX!B121)>0,\"\",MAX($AB$5:AB120)+1))","v":""}]
[null,null,null,null,null,null,null,null,null,null,null,null,null,null,null,null,null,null,null,null,null,null,null,null,null,null,{"$f":"IF(PrixMTX!A122=\"\",\"\",PrixMTX!A122&PrixMTX!B122&COUNTIFS(PrixMTX!$A$6:A122,PrixMTX!A122,PrixMTX!$B$6:B122,PrixMTX!B122))","v":""},{"$f":"IF(COUNTIFS(PrixMTX!$A$6:$A$200,PrixMTX!A122,PrixMTX!$B$6:$B$200,PrixMTX!B122)<2,\"\",IF(COUNTIFS(PrixMTX!$A123:$A$200,PrixMTX!$A122,PrixMTX!$B123:$B$200,PrixMTX!B122)>0,\"\",MAX($AB$5:AB121)+1))","v":""}]
[null,null,null,null,null,null,null,null,null,null,null,null,null,null,null,null,null,null,null,null,null,null,null,null,null,null,{"$f":"IF(PrixMTX!A123=\"\",\"\",PrixMTX!A123&PrixMTX!B123&COUNTIFS(PrixMTX!$A$6:A123,PrixMTX!A123,PrixMTX!$B$6:B123,PrixMTX!B123))","v":""},{"$f":"IF(COUNTIFS(PrixMTX!$A$6:$A$200,PrixMTX!A123,PrixMTX!$B$6:$B$200,PrixMTX!B123)<2,\"\",IF(COUNTIFS(PrixMTX!$A124:$A$200,PrixMTX!$A123,PrixMTX!$B124:$B$200,PrixMTX!B123)>0,\"\",MAX($AB$5:AB122)+1))","v":""}]
[null,null,null,null,null,null,null,null,null,null,null,null,null,null,null,null,null,null,null,null,null,null,null,null,null,null,{"$f":"IF(PrixMTX!A124=\"\",\"\",PrixMTX!A124&PrixMTX!B124&COUNTIFS(PrixMTX!$A$6:A124,PrixMTX!A124,PrixMTX!$B$6:B124,PrixMTX!B124))","v":""},{"$f":"IF(COUNTIFS(PrixMTX!$A$6:$A$200,PrixMTX!A124,PrixMTX!$B$6:$B$200,PrixMTX!B124)<2,\"\",IF(COUNTIFS(PrixMTX!$A125:$A$200,PrixMTX!$A124,PrixMTX!$B125:$B$200,PrixMTX!B124)>0,\"\",MAX($AB$5:AB123)+1))","v":""}]
[null,null,null,null,null,null,null,null,null,null,null,null,null,null,null,null,null,null,null,null,null,null,null,null,null,null,{"$f":"IF(PrixMTX!A125=\"\",\"\",PrixMTX!A125&PrixMTX!B125&COUNTIFS(PrixMTX!$A$6:A125,PrixMTX!A125,PrixMTX!$B$6:B125,PrixMTX!B125))","v":""},{"$f":"IF(COUNTIFS(PrixMTX!$A$6:$A$200,PrixMTX!A125,PrixMTX!$B$6:$B$200,PrixMTX!B125)<2,\"\",IF(COUNTIFS(PrixMTX!$A126:$A$200,PrixMTX!$A125,PrixMTX!$B126:$B$200,PrixMTX!B125)>0,\"\",MAX($AB$5:AB124)+1))","v":""}]
[null,null,null,null,null,null,null,null,null,null,null,null,null,null,null,null,null,null,null,null,null,null,null,null,null,null,{"$f":"IF(PrixMTX!A126=\"\",\"\",PrixMTX!A126&PrixMTX!B126&COUNTIFS(PrixMTX!$A$6:A126,PrixMTX!A126,PrixMTX!$B$6:B126,PrixMTX!B126))","v":""},{"$f":"IF(COUNTIFS(PrixMTX!$A$6:$A$200,PrixMTX!A126,PrixMTX!$B$6:$B$200,PrixMTX!B126)<2,\"\",IF(COUNTIFS(PrixMTX!$A127:$A$200,PrixMTX!$A126,PrixMTX!$B127:$B$200,PrixMTX!B126)>0,\"\",MAX($AB$5:AB125)+1))","v":""}]
[null,null,null,null,null,null,null,null,null,null,null,null,null,null,null,null,null,null,null,null,null,null,null,null,null,null,{"$f":"IF(PrixMTX!A127=\"\",\"\",PrixMTX!A127&PrixMTX!B127&COUNTIFS(PrixMTX!$A$6:A127,PrixMTX!A127,PrixMTX!$B$6:B127,PrixMTX!B127))","v":""},{"$f":"IF(COUNTIFS(PrixMTX!$A$6:$A$200,PrixMTX!A127,PrixMTX!$B$6:$B$200,PrixMTX!B127)<2,\"\",IF(COUNTIFS(PrixMTX!$A128:$A$200,PrixMTX!$A127,PrixMTX!$B128:$B$200,PrixMTX!B127)>0,\"\",MAX($AB$5:AB126)+1))","v":""}]
[null,null,null,null,null,null,null,null,null,null,null,null,null,null,null,null,null,null,null,null,null,null,null,null,null,null,{"$f":"IF(PrixMTX!A128=\"\",\"\",PrixMTX!A128&PrixMTX!B128&COUNTIFS(PrixMTX!$A$6:A128,PrixMTX!A128,PrixMTX!$B$6:B128,PrixMTX!B128))","v":""},{"$f":"IF(COUNTIFS(PrixMTX!$A$6:$A$200,PrixMTX!A128,PrixMTX!$B$6:$B$200,PrixMTX!B128)<2,\"\",IF(COUNTIFS(PrixMTX!$A129:$A$200,PrixMTX!$A128,PrixMTX!$B129:$B$200,PrixMTX!B128)>0,\"\",MAX($AB$5:AB127)+1))","v":""}]
[null,null,null,null,null,null,null,null,null,null,null,null,null,null,null,null,null,null,null,null,null,null,null,null,null,null,{"$f":"IF(PrixMTX!A129=\"\",\"\",PrixMTX!A129&PrixMTX!B129&COUNTIFS(PrixMTX!$A$6:A129,PrixMTX!A129,PrixMTX!$B$6:B129,PrixMTX!B129))","v":""},{"$f":"IF(COUNTIFS(PrixMTX!$A$6:$A$200,PrixMTX!A129,PrixMTX!$B$6:$B$200,PrixMTX!B129)<2,\"\",IF(COUNTIFS(PrixMTX!$A130:$A$200,PrixMTX!$A129,PrixMTX!$B130:$B$200,PrixMTX!B129)>0,\"\",MAX($AB$5:AB128)+1))","v":""}]
[null,null,null,null,null,null,null,null,null,null,null,null,null,null,null,null,null,null,null,null,null,null,null,null,null,null,{"$f":"IF(PrixMTX!A130=\"\",\"\",PrixMTX!A130&PrixMTX!B130&COUNTIFS(PrixMTX!$A$6:A130,PrixMTX!A130,PrixMTX!$B$6:B130,PrixMTX!B130))","v":""},{"$f":"IF(COUNTIFS(PrixMTX!$A$6:$A$200,PrixMTX!A130,PrixMTX!$B$6:$B$200,PrixMTX!B130)<2,\"\",IF(COUNTIFS(PrixMTX!$A131:$A$200,PrixMTX!$A130,PrixMTX!$B131:$B$200,PrixMTX!B130)>0,\"\",MAX($AB$5:AB129)+1))","v":""}]
[null,null,null,null,null,null,null,null,null,null,null,null,null,null,null,null,null,null,null,null,null,null,null,null,null,null,{"$f":"IF(PrixMTX!A131=\"\",\"\",PrixMTX!A131&PrixMTX!B131&COUNTIFS(PrixMTX!$A$6:A131,PrixMTX!A131,PrixMTX!$B$6:B131,PrixMTX!B131))","v":""},{"$f":"IF(COUNTIFS(PrixMTX!$A$6:$A$200,PrixMTX!A131,PrixMTX!$B$6:$B$200,PrixMTX!B131)<2,\"\",IF(COUNTIFS(PrixMTX!$A132:$A$200,PrixMTX!$A131,PrixMTX!$B132:$B$200,PrixMTX!B131)>0,\"\",MAX($AB$5:AB130)+1))","v":""}]
[null,null,null,null,null,null,null,null,null,null,null,null,null,null,null,null,null,null,null,null,null,null,null,null,null,null,{"$f":"IF(PrixMTX!A132=\"\",\"\",PrixMTX!A132&PrixMTX!B132&COUNTIFS(PrixMTX!$A$6:A132,PrixMTX!A132,PrixMTX!$B$6:B132,PrixMTX!B132))","v":""},{"$f":"IF(COUNTIFS(PrixMTX!$A$6:$A$200,PrixMTX!A132,PrixMTX!$B$6:$B$200,PrixMTX!B132)<2,\"\",IF(COUNTIFS(PrixMTX!$A133:$A$200,PrixMTX!$A132,PrixMTX!$B133:$B$200,PrixMTX!B132)>0,\"\",MAX($AB$5:AB131)+1))","v":""}]
[null,null,null,null,null,null,null,null,null,null,null,null,null,null,null,null,null,null,null,null,null,null,null,null,null,null,{"$f":"IF(PrixMTX!A133=\"\",\"\",PrixMTX!A133&PrixMTX!B133&COUNTIFS(PrixMTX!$A$6:A133,PrixMTX!A133,PrixMTX!$B$6:B133,PrixMTX!B133))","v":""},{"$f":"IF(COUNTIFS(PrixMTX!$A$6:$A$200,PrixMTX!A133,PrixMTX!$B$6:$B$200,PrixMTX!B133)<2,\"\",IF(COUNTIFS(PrixMTX!$A134:$A$200,PrixMTX!$A133,PrixMTX!$B134:$B$200,PrixMTX!B133)>0,\"\",MAX($AB$5:AB132)+1))","v":""}]
[null,null,null,null,null,null,null,null,null,null,null,null,null,null,null,null,null,null,null,null,null,null,null,null,null,null,{"$f":"IF(PrixMTX!A134=\"\",\"\",PrixMTX!A134&PrixMTX!B134&COUNTIFS(PrixMTX!$A$6:A134,PrixMTX!A134,PrixMTX!$B$6:B134,PrixMTX!B134))","v":""},{"$f":"IF(COUNTIFS(PrixMTX!$A$6:$A$200,PrixMTX!A134,PrixMTX!$B$6:$B$200,PrixMTX!B134)<2,\"\",IF(COUNTIFS(PrixMTX!$A135:$A$200,PrixMTX!$A134,PrixMTX!$B135:$B$200,PrixMTX!B134)>0,\"\",MAX($AB$5:AB133)+1))","v":""}]
[null,null,null,null,null,null,null,null,null,null,null,null,null,null,null,null,null,null,null,null,null,null,null,null,null,null,{"$f":"IF(PrixMTX!A135=\"\",\"\",PrixMTX!A135&PrixMTX!B135&COUNTIFS(PrixMTX!$A$6:A135,PrixMTX!A135,PrixMTX!$B$6:B135,PrixMTX!B135))","v":""},{"$f":"IF(COUNTIFS(PrixMTX!$A$6:$A$200,PrixMTX!A135,PrixMTX!$B$6:$B$200,PrixMTX!B135)<2,\"\",IF(COUNTIFS(PrixMTX!$A136:$A$200,PrixMTX!$A135,PrixMTX!$B136:$B$200,PrixMTX!B135)>0,\"\",MAX($AB$5:AB134)+1))","v":""}]
[null,null,null,null,null,null,null,null,null,null,null,null,null,null,null,null,null,null,null,null,null,null,null,null,null,null,{"$f":"IF(PrixMTX!A136=\"\",\"\",PrixMTX!A136&PrixMTX!B136&COUNTIFS(PrixMTX!$A$6:A136,PrixMTX!A136,PrixMTX!$B$6:B136,PrixMTX!B136))","v":""},{"$f":"IF(COUNTIFS(PrixMTX!$A$6:$A$200,PrixMTX!A136,PrixMTX!$B$6:$B$200,PrixMTX!B136)<2,\"\",IF(COUNTIFS(PrixMTX!$A137:$A$200,PrixMTX!$A136,PrixMTX!$B137:$B$200,PrixMTX!B136)>0,\"\",MAX($AB$5:AB135)+1))","v":""}]
[null,null,null,null,null,null,null,null,null,null,null,null,null,null,null,null,null,null,null,null,null,null,null,null,null,null,{"$f":"IF(PrixMTX!A137=\"\",\"\",PrixMTX!A137&PrixMTX!B137&COUNTIFS(PrixMTX!$A$6:A137,PrixMTX!A137,PrixMTX!$B$6:B137,PrixMTX!B137))","v":""},{"$f":"IF(COUNTIFS(PrixMTX!$A$6:$A$200,PrixMTX!A137,PrixMTX!$B$6:$B$200,PrixMTX!B137)<2,\"\",IF(COUNTIFS(PrixMTX!$A138:$A$200,PrixMTX!$A137,PrixMTX!$B138:$B$200,PrixMTX!B137)>0,\"\",MAX($AB$5:AB136)+1))","v":""}]
[null,null,null,null,null,null,null,null,null,null,null,null,null,null,null,null,null,null,null,null,null,null,null,null,null,null,{"$f":"IF(PrixMTX!A138=\"\",\"\",PrixMTX!A138&PrixMTX!B138&COUNTIFS(PrixMTX!$A$6:A138,PrixMTX!A138,PrixMTX!$B$6:B138,PrixMTX!B138))","v":""},{"$f":"IF(COUNTIFS(PrixMTX!$A$6:$A$200,PrixMTX!A138,PrixMTX!$B$6:$B$200,PrixMTX!B138)<2,\"\",IF(COUNTIFS(PrixMTX!$A139:$A$200,PrixMTX!$A138,PrixMTX!$B139:$B$200,PrixMTX!B138)>0,\"\",MAX($AB$5:AB137)+1))","v":""}]
[null,null,null,null,null,null,null,null,null,null,null,null,null,null,null,null,null,null,null,null,null,null,null,null,null,null,{"$f":"IF(PrixMTX!A139=\"\",\"\",PrixMTX!A139&PrixMTX!B139&COUNTIFS(PrixMTX!$A$6:A139,PrixMTX!A139,PrixMTX!$B$6:B139,PrixMTX!B139))","v":""},{"$f":"IF(COUNTIFS(PrixMTX!$A$6:$A$200,PrixMTX!A139,PrixMTX!$B$6:$B$200,PrixMTX!B139)<2,\"\",IF(COUNTIFS(PrixMTX!$A140:$A$200,PrixMTX!$A139,PrixMTX!$B140:$B$200,PrixMTX!B139)>0,\"\",MAX($AB$5:AB138)+1))","v":""}]
[null,null,null,null,null,null,null,null,null,null,null,null,null,null,null,null,null,null,null,null,null,null,null,null,null,null,{"$f":"IF(PrixMTX!A140=\"\",\"\",PrixMTX!A140&PrixMTX!B140&COUNTIFS(PrixMTX!$A$6:A140,PrixMTX!A140,PrixMTX!$B$6:B140,PrixMTX!B140))","v":""},{"$f":"IF(COUNTIFS(PrixMTX!$A$6:$A$200,PrixMTX!A140,PrixMTX!$B$6:$B$200,PrixMTX!B140)<2,\"\",IF(COUNTIFS(PrixMTX!$A141:$A$200,PrixMTX!$A140,PrixMTX!$B141:$B$200,PrixMTX!B140)>0,\"\",MAX($AB$5:AB139)+1))","v":""}]
[null,null,null,null,null,null,null,null,null,null,null,null,null,null,null,null,null,null,null,null,null,null,null,null,null,null,{"$f":"IF(PrixMTX!A141=\"\",\"\",PrixMTX!A141&PrixMTX!B141&COUNTIFS(PrixMTX!$A$6:A141,PrixMTX!A141,PrixMTX!$B$6:B141,PrixMTX!B141))","v":""},{"$f":"IF(COUNTIFS(PrixMTX!$A$6:$A$200,PrixMTX!A141,PrixMTX!$B$6:$B$200,PrixMTX!B141)<2,\"\",IF(COUNTIFS(PrixMTX!$A142:$A$200,PrixMTX!$A141,PrixMTX!$B142:$B$200,PrixMTX!B141)>0,\"\",MAX($AB$5:AB140)+1))","v":""}]
[null,null,null,null,null,null,null,null,null,null,null,null,null,null,null,null,null,null,null,null,null,null,null,null,null,null,{"$f":"IF(PrixMTX!A142=\"\",\"\",PrixMTX!A142&PrixMTX!B142&COUNTIFS(PrixMTX!$A$6:A142,PrixMTX!A142,PrixMTX!$B$6:B142,PrixMTX!B142))","v":""},{"$f":"IF(COUNTIFS(PrixMTX!$A$6:$A$200,PrixMTX!A142,PrixMTX!$B$6:$B$200,PrixMTX!B142)<2,\"\",IF(COUNTIFS(PrixMTX!$A143:$A$200,PrixMTX!$A142,PrixMTX!$B143:$B$200,PrixMTX!B142)>0,\"\",MAX($AB$5:AB141)+1))","v":""}]
[null,null,null,null,null,null,null,null,null,null,null,null,null,null,null,null,null,null,null,null,null,null,null,null,null,null,{"$f":"IF(PrixMTX!A143=\"\",\"\",PrixMTX!A143&PrixMTX!B143&COUNTIFS(PrixMTX!$A$6:A143,PrixMTX!A143,PrixMTX!$B$6:B143,PrixMTX!B143))","v":"*0"},{"$f":"IF(COUNTIFS(PrixMTX!$A$6:$A$200,PrixMTX!A143,PrixMTX!$B$6:$B$200,PrixMTX!B143)<2,\"\",IF(COUNTIFS(PrixMTX!$A144:$A$200,PrixMTX!$A143,PrixMTX!$B144:$B$200,PrixMTX!B143)>0,\"\",MAX($AB$5:AB142)+1))","v":""}]
[null,null,null,null,null,null,null,null,null,null,null,null,null,null,null,null,null,null,null,null,null,null,null,null,null,null,{"$f":"IF(PrixMTX!A144=\"\",\"\",PrixMTX!A144&PrixMTX!B144&COUNTIFS(PrixMTX!$A$6:A144,PrixMTX!A144,PrixMTX!$B$6:B144,PrixMTX!B144))","v":""},{"$f":"IF(COUNTIFS(PrixMTX!$A$6:$A$200,PrixMTX!A144,PrixMTX!$B$6:$B$200,PrixMTX!B144)<2,\"\",IF(COUNTIFS(PrixMTX!$A145:$A$200,PrixMTX!$A144,PrixMTX!$B145:$B$200,PrixMTX!B144)>0,\"\",MAX($AB$5:AB143)+1))","v":""}]
[null,null,null,null,null,null,null,null,null,null,null,null,null,null,null,null,null,null,null,null,null,null,null,null,null,null,{"$f":"IF(PrixMTX!A145=\"\",\"\",PrixMTX!A145&PrixMTX!B145&COUNTIFS(PrixMTX!$A$6:A145,PrixMTX!A145,PrixMTX!$B$6:B145,PrixMTX!B145))","v":""},{"$f":"IF(COUNTIFS(PrixMTX!$A$6:$A$200,PrixMTX!A145,PrixMTX!$B$6:$B$200,PrixMTX!B145)<2,\"\",IF(COUNTIFS(PrixMTX!$A146:$A$200,PrixMTX!$A145,PrixMTX!$B146:$B$200,PrixMTX!B145)>0,\"\",MAX($AB$5:AB144)+1))","v":""}]
[null,null,null,null,null,null,null,null,null,null,null,null,null,null,null,null,null,null,null,null,null,null,null,null,null,null,{"$f":"IF(PrixMTX!A146=\"\",\"\",PrixMTX!A146&PrixMTX!B146&COUNTIFS(PrixMTX!$A$6:A146,PrixMTX!A146,PrixMTX!$B$6:B146,PrixMTX!B146))","v":""},{"$f":"IF(COUNTIFS(PrixMTX!$A$6:$A$200,PrixMTX!A146,PrixMTX!$B$6:$B$200,PrixMTX!B146)<2,\"\",IF(COUNTIFS(PrixMTX!$A147:$A$200,PrixMTX!$A146,PrixMTX!$B147:$B$200,PrixMTX!B146)>0,\"\",MAX($AB$5:AB145)+1))","v":""}]
[null,null,null,null,null,null,null,null,null,null,null,null,null,null,null,null,null,null,null,null,null,null,null,null,null,null,{"$f":"IF(PrixMTX!A147=\"\",\"\",PrixMTX!A147&PrixMTX!B147&COUNTIFS(PrixMTX!$A$6:A147,PrixMTX!A147,PrixMTX!$B$6:B147,PrixMTX!B147))","v":""},{"$f":"IF(COUNTIFS(PrixMTX!$A$6:$A$200,PrixMTX!A147,PrixMTX!$B$6:$B$200,PrixMTX!B147)<2,\"\",IF(COUNTIFS(PrixMTX!$A148:$A$200,PrixMTX!$A147,PrixMTX!$B148:$B$200,PrixMTX!B147)>0,\"\",MAX($AB$5:AB146)+1))","v":""}]
[null,null,null,null,null,null,null,null,null,null,null,null,null,null,null,null,null,null,null,null,null,null,null,null,null,null,{"$f":"IF(PrixMTX!A148=\"\",\"\",PrixMTX!A148&PrixMTX!B148&COUNTIFS(PrixMTX!$A$6:A148,PrixMTX!A148,PrixMTX!$B$6:B148,PrixMTX!B148))","v":""},{"$f":"IF(COUNTIFS(PrixMTX!$A$6:$A$200,PrixMTX!A148,PrixMTX!$B$6:$B$200,PrixMTX!B148)<2,\"\",IF(COUNTIFS(PrixMTX!$A149:$A$200,PrixMTX!$A148,PrixMTX!$B149:$B$200,PrixMTX!B148)>0,\"\",MAX($AB$5:AB147)+1))","v":""}]
[null,null,null,null,null,null,null,null,null,null,null,null,null,null,null,null,null,null,null,null,null,null,null,null,null,null,{"$f":"IF(PrixMTX!A149=\"\",\"\",PrixMTX!A149&PrixMTX!B149&COUNTIFS(PrixMTX!$A$6:A149,PrixMTX!A149,PrixMTX!$B$6:B149,PrixMTX!B149))","v":""},{"$f":"IF(COUNTIFS(PrixMTX!$A$6:$A$200,PrixMTX!A149,PrixMTX!$B$6:$B$200,PrixMTX!B149)<2,\"\",IF(COUNTIFS(PrixMTX!$A150:$A$200,PrixMTX!$A149,PrixMTX!$B150:$B$200,PrixMTX!B149)>0,\"\",MAX($AB$5:AB148)+1))","v":""}]
[null,null,null,null,null,null,null,null,null,null,null,null,null,null,null,null,null,null,null,null,null,null,null,null,null,null,{"$f":"IF(PrixMTX!A150=\"\",\"\",PrixMTX!A150&PrixMTX!B150&COUNTIFS(PrixMTX!$A$6:A150,PrixMTX!A150,PrixMTX!$B$6:B150,PrixMTX!B150))","v":""},{"$f":"IF(COUNTIFS(PrixMTX!$A$6:$A$200,PrixMTX!A150,PrixMTX!$B$6:$B$200,PrixMTX!B150)<2,\"\",IF(COUNTIFS(PrixMTX!$A151:$A$200,PrixMTX!$A150,PrixMTX!$B151:$B$200,PrixMTX!B150)>0,\"\",MAX($AB$5:AB149)+1))","v":""}]
[null,null,null,null,null,null,null,null,null,null,null,null,null,null,null,null,null,null,null,null,null,null,null,null,null,null,{"$f":"IF(PrixMTX!A151=\"\",\"\",PrixMTX!A151&PrixMTX!B151&COUNTIFS(PrixMTX!$A$6:A151,PrixMTX!A151,PrixMTX!$B$6:B151,PrixMTX!B151))","v":""},{"$f":"IF(COUNTIFS(PrixMTX!$A$6:$A$200,PrixMTX!A151,PrixMTX!$B$6:$B$200,PrixMTX!B151)<2,\"\",IF(COUNTIFS(PrixMTX!$A152:$A$200,PrixMTX!$A151,PrixMTX!$B152:$B$200,PrixMTX!B151)>0,\"\",MAX($AB$5:AB150)+1))","v":""}]
[null,null,null,null,null,null,null,null,null,null,null,null,null,null,null,null,null,null,null,null,null,null,null,null,null,null,{"$f":"IF(PrixMTX!A152=\"\",\"\",PrixMTX!A152&PrixMTX!B152&COUNTIFS(PrixMTX!$A$6:A152,PrixMTX!A152,PrixMTX!$B$6:B152,PrixMTX!B152))","v":""},{"$f":"IF(COUNTIFS(PrixMTX!$A$6:$A$200,PrixMTX!A152,PrixMTX!$B$6:$B$200,PrixMTX!B152)<2,\"\",IF(COUNTIFS(PrixMTX!$A153:$A$200,PrixMTX!$A152,PrixMTX!$B153:$B$200,PrixMTX!B152)>0,\"\",MAX($AB$5:AB151)+1))","v":""}]
[null,null,null,null,null,null,null,null,null,null,null,null,null,null,null,null,null,null,null,null,null,null,null,null,null,null,{"$f":"IF(PrixMTX!A153=\"\",\"\",PrixMTX!A153&PrixMTX!B153&COUNTIFS(PrixMTX!$A$6:A153,PrixMTX!A153,PrixMTX!$B$6:B153,PrixMTX!B153))","v":""},{"$f":"IF(COUNTIFS(PrixMTX!$A$6:$A$200,PrixMTX!A153,PrixMTX!$B$6:$B$200,PrixMTX!B153)<2,\"\",IF(COUNTIFS(PrixMTX!$A154:$A$200,PrixMTX!$A153,PrixMTX!$B154:$B$200,PrixMTX!B153)>0,\"\",MAX($AB$5:AB152)+1))","v":""}]
[null,null,null,null,null,null,null,null,null,null,null,null,null,null,null,null,null,null,null,null,null,null,null,null,null,null,{"$f":"IF(PrixMTX!A154=\"\",\"\",PrixMTX!A154&PrixMTX!B154&COUNTIFS(PrixMTX!$A$6:A154,PrixMTX!A154,PrixMTX!$B$6:B154,PrixMTX!B154))","v":""},{"$f":"IF(COUNTIFS(PrixMTX!$A$6:$A$200,PrixMTX!A154,PrixMTX!$B$6:$B$200,PrixMTX!B154)<2,\"\",IF(COUNTIFS(PrixMTX!$A155:$A$200,PrixMTX!$A154,PrixMTX!$B155:$B$200,PrixMTX!B154)>0,\"\",MAX($AB$5:AB153)+1))","v":""}]
[null,null,null,null,null,null,null,null,null,null,null,null,null,null,null,null,null,null,null,null,null,null,null,null,null,null,{"$f":"IF(PrixMTX!A155=\"\",\"\",PrixMTX!A155&PrixMTX!B155&COUNTIFS(PrixMTX!$A$6:A155,PrixMTX!A155,PrixMTX!$B$6:B155,PrixMTX!B155))","v":""},{"$f":"IF(COUNTIFS(PrixMTX!$A$6:$A$200,PrixMTX!A155,PrixMTX!$B$6:$B$200,PrixMTX!B155)<2,\"\",IF(COUNTIFS(PrixMTX!$A156:$A$200,PrixMTX!$A155,PrixMTX!$B156:$B$200,PrixMTX!B155)>0,\"\",MAX($AB$5:AB154)+1))","v":""}]
[null,null,null,null,null,null,null,null,null,null,null,null,null,null,null,null,null,null,null,null,null,null,null,null,null,null,{"$f":"IF(PrixMTX!A156=\"\",\"\",PrixMTX!A156&PrixMTX!B156&COUNTIFS(PrixMTX!$A$6:A156,PrixMTX!A156,PrixMTX!$B$6:B156,PrixMTX!B156))","v":""},{"$f":"IF(COUNTIFS(PrixMTX!$A$6:$A$200,PrixMTX!A156,PrixMTX!$B$6:$B$200,PrixMTX!B156)<2,\"\",IF(COUNTIFS(PrixMTX!$A157:$A$200,PrixMTX!$A156,PrixMTX!$B157:$B$200,PrixMTX!B156)>0,\"\",MAX($AB$5:AB155)+1))","v":""}]
[null,null,null,null,null,null,null,null,null,null,null,null,null,null,null,null,null,null,null,null,null,null,null,null,null,null,{"$f":"IF(PrixMTX!A157=\"\",\"\",PrixMTX!A157&PrixMTX!B157&COUNTIFS(PrixMTX!$A$6:A157,PrixMTX!A157,PrixMTX!$B$6:B157,PrixMTX!B157))","v":""},{"$f":"IF(COUNTIFS(PrixMTX!$A$6:$A$200,PrixMTX!A157,PrixMTX!$B$6:$B$200,PrixMTX!B157)<2,\"\",IF(COUNTIFS(PrixMTX!$A158:$A$200,PrixMTX!$A157,PrixMTX!$B158:$B$200,PrixMTX!B157)>0,\"\",MAX($AB$5:AB156)+1))","v":""}]
[null,null,null,null,null,null,null,null,null,null,null,null,null,null,null,null,null,null,null,null,null,null,null,null,null,null,{"$f":"IF(PrixMTX!A158=\"\",\"\",PrixMTX!A158&PrixMTX!B158&COUNTIFS(PrixMTX!$A$6:A158,PrixMTX!A158,PrixMTX!$B$6:B158,PrixMTX!B158))","v":""},{"$f":"IF(COUNTIFS(PrixMTX!$A$6:$A$200,PrixMTX!A158,PrixMTX!$B$6:$B$200,PrixMTX!B158)<2,\"\",IF(COUNTIFS(PrixMTX!$A159:$A$200,PrixMTX!$A158,PrixMTX!$B159:$B$200,PrixMTX!B158)>0,\"\",MAX($AB$5:AB157)+1))","v":""}]
[null,null,null,null,null,null,null,null,null,null,null,null,null,null,null,null,null,null,null,null,null,null,null,null,null,null,{"$f":"IF(PrixMTX!A159=\"\",\"\",PrixMTX!A159&PrixMTX!B159&COUNTIFS(PrixMTX!$A$6:A159,PrixMTX!A159,PrixMTX!$B$6:B159,PrixMTX!B159))","v":""},{"$f":"IF(COUNTIFS(PrixMTX!$A$6:$A$200,PrixMTX!A159,PrixMTX!$B$6:$B$200,PrixMTX!B159)<2,\"\",IF(COUNTIFS(PrixMTX!$A160:$A$200,PrixMTX!$A159,PrixMTX!$B160:$B$200,PrixMTX!B159)>0,\"\",MAX($AB$5:AB158)+1))","v":""}]
[null,null,null,null,null,null,null,null,null,null,null,null,null,null,null,null,null,null,null,null,null,null,null,null,null,null,{"$f":"IF(PrixMTX!A160=\"\",\"\",PrixMTX!A160&PrixMTX!B160&COUNTIFS(PrixMTX!$A$6:A160,PrixMTX!A160,PrixMTX!$B$6:B160,PrixMTX!B160))","v":""},{"$f":"IF(COUNTIFS(PrixMTX!$A$6:$A$200,PrixMTX!A160,PrixMTX!$B$6:$B$200,PrixMTX!B160)<2,\"\",IF(COUNTIFS(PrixMTX!$A161:$A$200,PrixMTX!$A160,PrixMTX!$B161:$B$200,PrixMTX!B160)>0,\"\",MAX($AB$5:AB159)+1))","v":""}]
[null,null,null,null,null,null,null,null,null,null,null,null,null,null,null,null,null,null,null,null,null,null,null,null,null,null,{"$f":"IF(PrixMTX!A161=\"\",\"\",PrixMTX!A161&PrixMTX!B161&COUNTIFS(PrixMTX!$A$6:A161,PrixMTX!A161,PrixMTX!$B$6:B161,PrixMTX!B161))","v":""},{"$f":"IF(COUNTIFS(PrixMTX!$A$6:$A$200,PrixMTX!A161,PrixMTX!$B$6:$B$200,PrixMTX!B161)<2,\"\",IF(COUNTIFS(PrixMTX!$A162:$A$200,PrixMTX!$A161,PrixMTX!$B162:$B$200,PrixMTX!B161)>0,\"\",MAX($AB$5:AB160)+1))","v":""}]
[null,null,null,null,null,null,null,null,null,null,null,null,null,null,null,null,null,null,null,null,null,null,null,null,null,null,{"$f":"IF(PrixMTX!A162=\"\",\"\",PrixMTX!A162&PrixMTX!B162&COUNTIFS(PrixMTX!$A$6:A162,PrixMTX!A162,PrixMTX!$B$6:B162,PrixMTX!B162))","v":""},{"$f":"IF(COUNTIFS(PrixMTX!$A$6:$A$200,PrixMTX!A162,PrixMTX!$B$6:$B$200,PrixMTX!B162)<2,\"\",IF(COUNTIFS(PrixMTX!$A163:$A$200,PrixMTX!$A162,PrixMTX!$B163:$B$200,PrixMTX!B162)>0,\"\",MAX($AB$5:AB161)+1))","v":""}]
[null,null,null,null,null,null,null,null,null,null,null,null,null,null,null,null,null,null,null,null,null,null,null,null,null,null,{"$f":"IF(PrixMTX!A163=\"\",\"\",PrixMTX!A163&PrixMTX!B163&COUNTIFS(PrixMTX!$A$6:A163,PrixMTX!A163,PrixMTX!$B$6:B163,PrixMTX!B163))","v":""},{"$f":"IF(COUNTIFS(PrixMTX!$A$6:$A$200,PrixMTX!A163,PrixMTX!$B$6:$B$200,PrixMTX!B163)<2,\"\",IF(COUNTIFS(PrixMTX!$A164:$A$200,PrixMTX!$A163,PrixMTX!$B164:$B$200,PrixMTX!B163)>0,\"\",MAX($AB$5:AB162)+1))","v":""}]
[null,null,null,null,null,null,null,null,null,null,null,null,null,null,null,null,null,null,null,null,null,null,null,null,null,null,{"$f":"IF(PrixMTX!A164=\"\",\"\",PrixMTX!A164&PrixMTX!B164&COUNTIFS(PrixMTX!$A$6:A164,PrixMTX!A164,PrixMTX!$B$6:B164,PrixMTX!B164))","v":""},{"$f":"IF(COUNTIFS(PrixMTX!$A$6:$A$200,PrixMTX!A164,PrixMTX!$B$6:$B$200,PrixMTX!B164)<2,\"\",IF(COUNTIFS(PrixMTX!$A165:$A$200,PrixMTX!$A164,PrixMTX!$B165:$B$200,PrixMTX!B164)>0,\"\",MAX($AB$5:AB163)+1))","v":""}]
[null,null,null,null,null,null,null,null,null,null,null,null,null,null,null,null,null,null,null,null,null,null,null,null,null,null,{"$f":"IF(PrixMTX!A165=\"\",\"\",PrixMTX!A165&PrixMTX!B165&COUNTIFS(PrixMTX!$A$6:A165,PrixMTX!A165,PrixMTX!$B$6:B165,PrixMTX!B165))","v":""},{"$f":"IF(COUNTIFS(PrixMTX!$A$6:$A$200,PrixMTX!A165,PrixMTX!$B$6:$B$200,PrixMTX!B165)<2,\"\",IF(COUNTIFS(PrixMTX!$A166:$A$200,PrixMTX!$A165,PrixMTX!$B166:$B$200,PrixMTX!B165)>0,\"\",MAX($AB$5:AB164)+1))","v":""}]
[null,null,null,null,null,null,null,null,null,null,null,null,null,null,null,null,null,null,null,null,null,null,null,null,null,null,{"$f":"IF(PrixMTX!A166=\"\",\"\",PrixMTX!A166&PrixMTX!B166&COUNTIFS(PrixMTX!$A$6:A166,PrixMTX!A166,PrixMTX!$B$6:B166,PrixMTX!B166))","v":""},{"$f":"IF(COUNTIFS(PrixMTX!$A$6:$A$200,PrixMTX!A166,PrixMTX!$B$6:$B$200,PrixMTX!B166)<2,\"\",IF(COUNTIFS(PrixMTX!$A167:$A$200,PrixMTX!$A166,PrixMTX!$B167:$B$200,PrixMTX!B166)>0,\"\",MAX($AB$5:AB165)+1))","v":""}]
[null,null,null,null,null,null,null,null,null,null,null,null,null,null,null,null,null,null,null,null,null,null,null,null,null,null,{"$f":"IF(PrixMTX!A167=\"\",\"\",PrixMTX!A167&PrixMTX!B167&COUNTIFS(PrixMTX!$A$6:A167,PrixMTX!A167,PrixMTX!$B$6:B167,PrixMTX!B167))","v":""},{"$f":"IF(COUNTIFS(PrixMTX!$A$6:$A$200,PrixMTX!A167,PrixMTX!$B$6:$B$200,PrixMTX!B167)<2,\"\",IF(COUNTIFS(PrixMTX!$A168:$A$200,PrixMTX!$A167,PrixMTX!$B168:$B$200,PrixMTX!B167)>0,\"\",MAX($AB$5:AB166)+1))","v":""}]
[null,null,null,null,null,null,null,null,null,null,null,null,null,null,null,null,null,null,null,null,null,null,null,null,null,null,{"$f":"IF(PrixMTX!A168=\"\",\"\",PrixMTX!A168&PrixMTX!B168&COUNTIFS(PrixMTX!$A$6:A168,PrixMTX!A168,PrixMTX!$B$6:B168,PrixMTX!B168))","v":""},{"$f":"IF(COUNTIFS(PrixMTX!$A$6:$A$200,PrixMTX!A168,PrixMTX!$B$6:$B$200,PrixMTX!B168)<2,\"\",IF(COUNTIFS(PrixMTX!$A169:$A$200,PrixMTX!$A168,PrixMTX!$B169:$B$200,PrixMTX!B168)>0,\"\",MAX($AB$5:AB167)+1))","v":""}]
[null,null,null,null,null,null,null,null,null,null,null,null,null,null,null,null,null,null,null,null,null,null,null,null,null,null,{"$f":"IF(PrixMTX!A169=\"\",\"\",PrixMTX!A169&PrixMTX!B169&COUNTIFS(PrixMTX!$A$6:A169,PrixMTX!A169,PrixMTX!$B$6:B169,PrixMTX!B169))","v":""},{"$f":"IF(COUNTIFS(PrixMTX!$A$6:$A$200,PrixMTX!A169,PrixMTX!$B$6:$B$200,PrixMTX!B169)<2,\"\",IF(COUNTIFS(PrixMTX!$A170:$A$200,PrixMTX!$A169,PrixMTX!$B170:$B$200,PrixMTX!B169)>0,\"\",MAX($AB$5:AB168)+1))","v":""}]
[null,null,null,null,null,null,null,null,null,null,null,null,null,null,null,null,null,null,null,null,null,null,null,null,null,null,{"$f":"IF(PrixMTX!A170=\"\",\"\",PrixMTX!A170&PrixMTX!B170&COUNTIFS(PrixMTX!$A$6:A170,PrixMTX!A170,PrixMTX!$B$6:B170,PrixMTX!B170))","v":""},{"$f":"IF(COUNTIFS(PrixMTX!$A$6:$A$200,PrixMTX!A170,PrixMTX!$B$6:$B$200,PrixMTX!B170)<2,\"\",IF(COUNTIFS(PrixMTX!$A171:$A$200,PrixMTX!$A170,PrixMTX!$B171:$B$200,PrixMTX!B170)>0,\"\",MAX($AB$5:AB169)+1))","v":""}]
[null,null,null,null,null,null,null,null,null,null,null,null,null,null,null,null,null,null,null,null,null,null,null,null,null,null,{"$f":"IF(PrixMTX!A171=\"\",\"\",PrixMTX!A171&PrixMTX!B171&COUNTIFS(PrixMTX!$A$6:A171,PrixMTX!A171,PrixMTX!$B$6:B171,PrixMTX!B171))","v":""},{"$f":"IF(COUNTIFS(PrixMTX!$A$6:$A$200,PrixMTX!A171,PrixMTX!$B$6:$B$200,PrixMTX!B171)<2,\"\",IF(COUNTIFS(PrixMTX!$A172:$A$200,PrixMTX!$A171,PrixMTX!$B172:$B$200,PrixMTX!B171)>0,\"\",MAX($AB$5:AB170)+1))","v":""}]
[null,null,null,null,null,null,null,null,null,null,null,null,null,null,null,null,null,null,null,null,null,null,null,null,null,null,{"$f":"IF(PrixMTX!A172=\"\",\"\",PrixMTX!A172&PrixMTX!B172&COUNTIFS(PrixMTX!$A$6:A172,PrixMTX!A172,PrixMTX!$B$6:B172,PrixMTX!B172))","v":""},{"$f":"IF(COUNTIFS(PrixMTX!$A$6:$A$200,PrixMTX!A172,PrixMTX!$B$6:$B$200,PrixMTX!B172)<2,\"\",IF(COUNTIFS(PrixMTX!$A173:$A$200,PrixMTX!$A172,PrixMTX!$B173:$B$200,PrixMTX!B172)>0,\"\",MAX($AB$5:AB171)+1))","v":""}]
[null,null,null,null,null,null,null,null,null,null,null,null,null,null,null,null,null,null,null,null,null,null,null,null,null,null,{"$f":"IF(PrixMTX!A173=\"\",\"\",PrixMTX!A173&PrixMTX!B173&COUNTIFS(PrixMTX!$A$6:A173,PrixMTX!A173,PrixMTX!$B$6:B173,PrixMTX!B173))","v":""},{"$f":"IF(COUNTIFS(PrixMTX!$A$6:$A$200,PrixMTX!A173,PrixMTX!$B$6:$B$200,PrixMTX!B173)<2,\"\",IF(COUNTIFS(PrixMTX!$A174:$A$200,PrixMTX!$A173,PrixMTX!$B174:$B$200,PrixMTX!B173)>0,\"\",MAX($AB$5:AB172)+1))","v":""}]
[null,null,null,null,null,null,null,null,null,null,null,null,null,null,null,null,null,null,null,null,null,null,null,null,null,null,{"$f":"IF(PrixMTX!A174=\"\",\"\",PrixMTX!A174&PrixMTX!B174&COUNTIFS(PrixMTX!$A$6:A174,PrixMTX!A174,PrixMTX!$B$6:B174,PrixMTX!B174))","v":""},{"$f":"IF(COUNTIFS(PrixMTX!$A$6:$A$200,PrixMTX!A174,PrixMTX!$B$6:$B$200,PrixMTX!B174)<2,\"\",IF(COUNTIFS(PrixMTX!$A175:$A$200,PrixMTX!$A174,PrixMTX!$B175:$B$200,PrixMTX!B174)>0,\"\",MAX($AB$5:AB173)+1))","v":""}]
[null,null,null,null,null,null,null,null,null,null,null,null,null,null,null,null,null,null,null,null,null,null,null,null,null,null,{"$f":"IF(PrixMTX!A175=\"\",\"\",PrixMTX!A175&PrixMTX!B175&COUNTIFS(PrixMTX!$A$6:A175,PrixMTX!A175,PrixMTX!$B$6:B175,PrixMTX!B175))","v":""},{"$f":"IF(COUNTIFS(PrixMTX!$A$6:$A$200,PrixMTX!A175,PrixMTX!$B$6:$B$200,PrixMTX!B175)<2,\"\",IF(COUNTIFS(PrixMTX!$A176:$A$200,PrixMTX!$A175,PrixMTX!$B176:$B$200,PrixMTX!B175)>0,\"\",MAX($AB$5:AB174)+1))","v":""}]
[null,null,null,null,null,null,null,null,null,null,null,null,null,null,null,null,null,null,null,null,null,null,null,null,null,null,{"$f":"IF(PrixMTX!A176=\"\",\"\",PrixMTX!A176&PrixMTX!B176&COUNTIFS(PrixMTX!$A$6:A176,PrixMTX!A176,PrixMTX!$B$6:B176,PrixMTX!B176))","v":""},{"$f":"IF(COUNTIFS(PrixMTX!$A$6:$A$200,PrixMTX!A176,PrixMTX!$B$6:$B$200,PrixMTX!B176)<2,\"\",IF(COUNTIFS(PrixMTX!$A177:$A$200,PrixMTX!$A176,PrixMTX!$B177:$B$200,PrixMTX!B176)>0,\"\",MAX($AB$5:AB175)+1))","v":""}]
[null,null,null,null,null,null,null,null,null,null,null,null,null,null,null,null,null,null,null,null,null,null,null,null,null,null,{"$f":"IF(PrixMTX!A177=\"\",\"\",PrixMTX!A177&PrixMTX!B177&COUNTIFS(PrixMTX!$A$6:A177,PrixMTX!A177,PrixMTX!$B$6:B177,PrixMTX!B177))","v":""},{"$f":"IF(COUNTIFS(PrixMTX!$A$6:$A$200,PrixMTX!A177,PrixMTX!$B$6:$B$200,PrixMTX!B177)<2,\"\",IF(COUNTIFS(PrixMTX!$A178:$A$200,PrixMTX!$A177,PrixMTX!$B178:$B$200,PrixMTX!B177)>0,\"\",MAX($AB$5:AB176)+1))","v":""}]
[null,null,null,null,null,null,null,null,null,null,null,null,null,null,null,null,null,null,null,null,null,null,null,null,null,null,{"$f":"IF(PrixMTX!A178=\"\",\"\",PrixMTX!A178&PrixMTX!B178&COUNTIFS(PrixMTX!$A$6:A178,PrixMTX!A178,PrixMTX!$B$6:B178,PrixMTX!B178))","v":""},{"$f":"IF(COUNTIFS(PrixMTX!$A$6:$A$200,PrixMTX!A178,PrixMTX!$B$6:$B$200,PrixMTX!B178)<2,\"\",IF(COUNTIFS(PrixMTX!$A179:$A$200,PrixMTX!$A178,PrixMTX!$B179:$B$200,PrixMTX!B178)>0,\"\",MAX($AB$5:AB177)+1))","v":""}]
[null,null,null,null,null,null,null,null,null,null,null,null,null,null,null,null,null,null,null,null,null,null,null,null,null,null,{"$f":"IF(PrixMTX!A179=\"\",\"\",PrixMTX!A179&PrixMTX!B179&COUNTIFS(PrixMTX!$A$6:A179,PrixMTX!A179,PrixMTX!$B$6:B179,PrixMTX!B179))","v":""},{"$f":"IF(COUNTIFS(PrixMTX!$A$6:$A$200,PrixMTX!A179,PrixMTX!$B$6:$B$200,PrixMTX!B179)<2,\"\",IF(COUNTIFS(PrixMTX!$A180:$A$200,PrixMTX!$A179,PrixMTX!$B180:$B$200,PrixMTX!B179)>0,\"\",MAX($AB$5:AB178)+1))","v":""}]
[null,null,null,null,null,null,null,null,null,null,null,null,null,null,null,null,null,null,null,null,null,null,null,null,null,null,{"$f":"IF(PrixMTX!A180=\"\",\"\",PrixMTX!A180&PrixMTX!B180&COUNTIFS(PrixMTX!$A$6:A180,PrixMTX!A180,PrixMTX!$B$6:B180,PrixMTX!B180))","v":""},{"$f":"IF(COUNTIFS(PrixMTX!$A$6:$A$200,PrixMTX!A180,PrixMTX!$B$6:$B$200,PrixMTX!B180)<2,\"\",IF(COUNTIFS(PrixMTX!$A181:$A$200,PrixMTX!$A180,PrixMTX!$B181:$B$200,PrixMTX!B180)>0,\"\",MAX($AB$5:AB179)+1))","v":""}]
[null,null,null,null,null,null,null,null,null,null,null,null,null,null,null,null,null,null,null,null,null,null,null,null,null,null,{"$f":"IF(PrixMTX!A181=\"\",\"\",PrixMTX!A181&PrixMTX!B181&COUNTIFS(PrixMTX!$A$6:A181,PrixMTX!A181,PrixMTX!$B$6:B181,PrixMTX!B181))","v":""},{"$f":"IF(COUNTIFS(PrixMTX!$A$6:$A$200,PrixMTX!A181,PrixMTX!$B$6:$B$200,PrixMTX!B181)<2,\"\",IF(COUNTIFS(PrixMTX!$A182:$A$200,PrixMTX!$A181,PrixMTX!$B182:$B$200,PrixMTX!B181)>0,\"\",MAX($AB$5:AB180)+1))","v":""}]
[null,null,null,null,null,null,null,null,null,null,null,null,null,null,null,null,null,null,null,null,null,null,null,null,null,null,{"$f":"IF(PrixMTX!A182=\"\",\"\",PrixMTX!A182&PrixMTX!B182&COUNTIFS(PrixMTX!$A$6:A182,PrixMTX!A182,PrixMTX!$B$6:B182,PrixMTX!B182))","v":""},{"$f":"IF(COUNTIFS(PrixMTX!$A$6:$A$200,PrixMTX!A182,PrixMTX!$B$6:$B$200,PrixMTX!B182)<2,\"\",IF(COUNTIFS(PrixMTX!$A183:$A$200,PrixMTX!$A182,PrixMTX!$B183:$B$200,PrixMTX!B182)>0,\"\",MAX($AB$5:AB181)+1))","v":""}]
[null,null,null,null,null,null,null,null,null,null,null,null,null,null,null,null,null,null,null,null,null,null,null,null,null,null,{"$f":"IF(PrixMTX!A183=\"\",\"\",PrixMTX!A183&PrixMTX!B183&COUNTIFS(PrixMTX!$A$6:A183,PrixMTX!A183,PrixMTX!$B$6:B183,PrixMTX!B183))","v":""},{"$f":"IF(COUNTIFS(PrixMTX!$A$6:$A$200,PrixMTX!A183,PrixMTX!$B$6:$B$200,PrixMTX!B183)<2,\"\",IF(COUNTIFS(PrixMTX!$A184:$A$200,PrixMTX!$A183,PrixMTX!$B184:$B$200,PrixMTX!B183)>0,\"\",MAX($AB$5:AB182)+1))","v":""}]
[null,null,null,null,null,null,null,null,null,null,null,null,null,null,null,null,null,null,null,null,null,null,null,null,null,null,{"$f":"IF(PrixMTX!A184=\"\",\"\",PrixMTX!A184&PrixMTX!B184&COUNTIFS(PrixMTX!$A$6:A184,PrixMTX!A184,PrixMTX!$B$6:B184,PrixMTX!B184))","v":""},{"$f":"IF(COUNTIFS(PrixMTX!$A$6:$A$200,PrixMTX!A184,PrixMTX!$B$6:$B$200,PrixMTX!B184)<2,\"\",IF(COUNTIFS(PrixMTX!$A185:$A$200,PrixMTX!$A184,PrixMTX!$B185:$B$200,PrixMTX!B184)>0,\"\",MAX($AB$5:AB183)+1))","v":""}]
[null,null,null,null,null,null,null,null,null,null,null,null,null,null,null,null,null,null,null,null,null,null,null,null,null,null,{"$f":"IF(PrixMTX!A185=\"\",\"\",PrixMTX!A185&PrixMTX!B185&COUNTIFS(PrixMTX!$A$6:A185,PrixMTX!A185,PrixMTX!$B$6:B185,PrixMTX!B185))","v":""},{"$f":"IF(COUNTIFS(PrixMTX!$A$6:$A$200,PrixMTX!A185,PrixMTX!$B$6:$B$200,PrixMTX!B185)<2,\"\",IF(COUNTIFS(PrixMTX!$A186:$A$200,PrixMTX!$A185,PrixMTX!$B186:$B$200,PrixMTX!B185)>0,\"\",MAX($AB$5:AB184)+1))","v":""}]
[null,null,null,null,null,null,null,null,null,null,null,null,null,null,null,null,null,null,null,null,null,null,null,null,null,null,{"$f":"IF(PrixMTX!A186=\"\",\"\",PrixMTX!A186&PrixMTX!B186&COUNTIFS(PrixMTX!$A$6:A186,PrixMTX!A186,PrixMTX!$B$6:B186,PrixMTX!B186))","v":""},{"$f":"IF(COUNTIFS(PrixMTX!$A$6:$A$200,PrixMTX!A186,PrixMTX!$B$6:$B$200,PrixMTX!B186)<2,\"\",IF(COUNTIFS(PrixMTX!$A187:$A$200,PrixMTX!$A186,PrixMTX!$B187:$B$200,PrixMTX!B186)>0,\"\",MAX($AB$5:AB185)+1))","v":""}]
[null,null,null,null,null,null,null,null,null,null,null,null,null,null,null,null,null,null,null,null,null,null,null,null,null,null,{"$f":"IF(PrixMTX!A187=\"\",\"\",PrixMTX!A187&PrixMTX!B187&COUNTIFS(PrixMTX!$A$6:A187,PrixMTX!A187,PrixMTX!$B$6:B187,PrixMTX!B187))","v":""},{"$f":"IF(COUNTIFS(PrixMTX!$A$6:$A$200,PrixMTX!A187,PrixMTX!$B$6:$B$200,PrixMTX!B187)<2,\"\",IF(COUNTIFS(PrixMTX!$A188:$A$200,PrixMTX!$A187,PrixMTX!$B188:$B$200,PrixMTX!B187)>0,\"\",MAX($AB$5:AB186)+1))","v":""}]
[null,null,null,null,null,null,null,null,null,null,null,null,null,null,null,null,null,null,null,null,null,null,null,null,null,null,{"$f":"IF(PrixMTX!A188=\"\",\"\",PrixMTX!A188&PrixMTX!B188&COUNTIFS(PrixMTX!$A$6:A188,PrixMTX!A188,PrixMTX!$B$6:B188,PrixMTX!B188))","v":""},{"$f":"IF(COUNTIFS(PrixMTX!$A$6:$A$200,PrixMTX!A188,PrixMTX!$B$6:$B$200,PrixMTX!B188)<2,\"\",IF(COUNTIFS(PrixMTX!$A189:$A$200,PrixMTX!$A188,PrixMTX!$B189:$B$200,PrixMTX!B188)>0,\"\",MAX($AB$5:AB187)+1))","v":""}]
[null,null,null,null,null,null,null,null,null,null,null,null,null,null,null,null,null,null,null,null,null,null,null,null,null,null,{"$f":"IF(PrixMTX!A189=\"\",\"\",PrixMTX!A189&PrixMTX!B189&COUNTIFS(PrixMTX!$A$6:A189,PrixMTX!A189,PrixMTX!$B$6:B189,PrixMTX!B189))","v":""},{"$f":"IF(COUNTIFS(PrixMTX!$A$6:$A$200,PrixMTX!A189,PrixMTX!$B$6:$B$200,PrixMTX!B189)<2,\"\",IF(COUNTIFS(PrixMTX!$A190:$A$200,PrixMTX!$A189,PrixMTX!$B190:$B$200,PrixMTX!B189)>0,\"\",MAX($AB$5:AB188)+1))","v":""}]
[null,null,null,null,null,null,null,null,null,null,null,null,null,null,null,null,null,null,null,null,null,null,null,null,null,null,{"$f":"IF(PrixMTX!A190=\"\",\"\",PrixMTX!A190&PrixMTX!B190&COUNTIFS(PrixMTX!$A$6:A190,PrixMTX!A190,PrixMTX!$B$6:B190,PrixMTX!B190))","v":""},{"$f":"IF(COUNTIFS(PrixMTX!$A$6:$A$200,PrixMTX!A190,PrixMTX!$B$6:$B$200,PrixMTX!B190)<2,\"\",IF(COUNTIFS(PrixMTX!$A191:$A$200,PrixMTX!$A190,PrixMTX!$B191:$B$200,PrixMTX!B190)>0,\"\",MAX($AB$5:AB189)+1))","v":""}]
[null,null,null,null,null,null,null,null,null,null,null,null,null,null,null,null,null,null,null,null,null,null,null,null,null,null,{"$f":"IF(PrixMTX!A191=\"\",\"\",PrixMTX!A191&PrixMTX!B191&COUNTIFS(PrixMTX!$A$6:A191,PrixMTX!A191,PrixMTX!$B$6:B191,PrixMTX!B191))","v":""},{"$f":"IF(COUNTIFS(PrixMTX!$A$6:$A$200,PrixMTX!A191,PrixMTX!$B$6:$B$200,PrixMTX!B191)<2,\"\",IF(COUNTIFS(PrixMTX!$A192:$A$200,PrixMTX!$A191,PrixMTX!$B192:$B$200,PrixMTX!B191)>0,\"\",MAX($AB$5:AB190)+1))","v":""}]
[null,null,null,null,null,null,null,null,null,null,null,null,null,null,null,null,null,null,null,null,null,null,null,null,null,null,{"$f":"IF(PrixMTX!A192=\"\",\"\",PrixMTX!A192&PrixMTX!B192&COUNTIFS(PrixMTX!$A$6:A192,PrixMTX!A192,PrixMTX!$B$6:B192,PrixMTX!B192))","v":""},{"$f":"IF(COUNTIFS(PrixMTX!$A$6:$A$200,PrixMTX!A192,PrixMTX!$B$6:$B$200,PrixMTX!B192)<2,\"\",IF(COUNTIFS(PrixMTX!$A193:$A$200,PrixMTX!$A192,PrixMTX!$B193:$B$200,PrixMTX!B192)>0,\"\",MAX($AB$5:AB191)+1))","v":""}]
[null,null,null,null,null,null,null,null,null,null,null,null,null,null,null,null,null,null,null,null,null,null,null,null,null,null,{"$f":"IF(PrixMTX!A193=\"\",\"\",PrixMTX!A193&PrixMTX!B193&COUNTIFS(PrixMTX!$A$6:A193,PrixMTX!A193,PrixMTX!$B$6:B193,PrixMTX!B193))","v":""},{"$f":"IF(COUNTIFS(PrixMTX!$A$6:$A$200,PrixMTX!A193,PrixMTX!$B$6:$B$200,PrixMTX!B193)<2,\"\",IF(COUNTIFS(PrixMTX!$A194:$A$200,PrixMTX!$A193,PrixMTX!$B194:$B$200,PrixMTX!B193)>0,\"\",MAX($AB$5:AB192)+1))","v":""}]
[null,null,null,null,null,null,null,null,null,null,null,null,null,null,null,null,null,null,null,null,null,null,null,null,null,null,{"$f":"IF(PrixMTX!A194=\"\",\"\",PrixMTX!A194&PrixMTX!B194&COUNTIFS(PrixMTX!$A$6:A194,PrixMTX!A194,PrixMTX!$B$6:B194,PrixMTX!B194))","v":""},{"$f":"IF(COUNTIFS(PrixMTX!$A$6:$A$200,PrixMTX!A194,PrixMTX!$B$6:$B$200,PrixMTX!B194)<2,\"\",IF(COUNTIFS(PrixMTX!$A195:$A$200,PrixMTX!$A194,PrixMTX!$B195:$B$200,PrixMTX!B194)>0,\"\",MAX($AB$5:AB193)+1))","v":""}]
[null,null,null,null,null,null,null,null,null,null,null,null,null,null,null,null,null,null,null,null,null,null,null,null,null,null,{"$f":"IF(PrixMTX!A195=\"\",\"\",PrixMTX!A195&PrixMTX!B195&COUNTIFS(PrixMTX!$A$6:A195,PrixMTX!A195,PrixMTX!$B$6:B195,PrixMTX!B195))","v":""},{"$f":"IF(COUNTIFS(PrixMTX!$A$6:$A$200,PrixMTX!A195,PrixMTX!$B$6:$B$200,PrixMTX!B195)<2,\"\",IF(COUNTIFS(PrixMTX!$A196:$A$200,PrixMTX!$A195,PrixMTX!$B196:$B$200,PrixMTX!B195)>0,\"\",MAX($AB$5:AB194)+1))","v":""}]
[null,null,null,null,null,null,null,null,null,null,null,null,null,null,null,null,null,null,null,null,null,null,null,null,null,null,{"$f":"IF(PrixMTX!A196=\"\",\"\",PrixMTX!A196&PrixMTX!B196&COUNTIFS(PrixMTX!$A$6:A196,PrixMTX!A196,PrixMTX!$B$6:B196,PrixMTX!B196))","v":""},{"$f":"IF(COUNTIFS(PrixMTX!$A$6:$A$200,PrixMTX!A196,PrixMTX!$B$6:$B$200,PrixMTX!B196)<2,\"\",IF(COUNTIFS(PrixMTX!$A197:$A$200,PrixMTX!$A196,PrixMTX!$B197:$B$200,PrixMTX!B196)>0,\"\",MAX($AB$5:AB195)+1))","v":""}]
[null,null,null,null,null,null,null,null,null,null,null,null,null,null,null,null,null,null,null,null,null,null,null,null,null,null,{"$f":"IF(PrixMTX!A197=\"\",\"\",PrixMTX!A197&PrixMTX!B197&COUNTIFS(PrixMTX!$A$6:A197,PrixMTX!A197,PrixMTX!$B$6:B197,PrixMTX!B197))","v":""},{"$f":"IF(COUNTIFS(PrixMTX!$A$6:$A$200,PrixMTX!A197,PrixMTX!$B$6:$B$200,PrixMTX!B197)<2,\"\",IF(COUNTIFS(PrixMTX!$A198:$A$200,PrixMTX!$A197,PrixMTX!$B198:$B$200,PrixMTX!B197)>0,\"\",MAX($AB$5:AB196)+1))","v":""}]
[null,null,null,null,null,null,null,null,null,null,null,null,null,null,null,null,null,null,null,null,null,null,null,null,null,null,{"$f":"IF(PrixMTX!A198=\"\",\"\",PrixMTX!A198&PrixMTX!B198&COUNTIFS(PrixMTX!$A$6:A198,PrixMTX!A198,PrixMTX!$B$6:B198,PrixMTX!B198))","v":""},{"$f":"IF(COUNTIFS(PrixMTX!$A$6:$A$200,PrixMTX!A198,PrixMTX!$B$6:$B$200,PrixMTX!B198)<2,\"\",IF(COUNTIFS(PrixMTX!$A199:$A$200,PrixMTX!$A198,PrixMTX!$B199:$B$200,PrixMTX!B198)>0,\"\",MAX($AB$5:AB197)+1))","v":""}]
[null,null,null,null,null,null,null,null,null,null,null,null,null,null,null,null,null,null,null,null,null,null,null,null,null,null,{"$f":"IF(PrixMTX!A199=\"\",\"\",PrixMTX!A199&PrixMTX!B199&COUNTIFS(PrixMTX!$A$6:A199,PrixMTX!A199,PrixMTX!$B$6:B199,PrixMTX!B199))","v":""},{"$f":"IF(COUNTIFS(PrixMTX!$A$6:$A$200,PrixMTX!A199,PrixMTX!$B$6:$B$200,PrixMTX!B199)<2,\"\",IF(COUNTIFS(PrixMTX!$A200:$A$200,PrixMTX!$A199,PrixMTX!$B200:$B$200,PrixMTX!B199)>0,\"\",MAX($AB$5:AB198)+1))","v":""}]
[null,null,null,null,null,null,null,null,null,null,null,null,null,null,null,null,null,null,null,null,null,null,null,null,null,null,{"$f":"IF(PrixMTX!A200=\"\",\"\",PrixMTX!A200&PrixMTX!B200&COUNTIFS(PrixMTX!$A$6:A200,PrixMTX!A200,PrixMTX!$B$6:B200,PrixMTX!B200))","v":""},{"$f":"IF(COUNTIFS(PrixMTX!$A$6:$A$200,PrixMTX!A200,PrixMTX!$B$6:$B$200,PrixMTX!B200)<2,\"\",IF(COUNTIFS(PrixMTX!$A$200:$A201,PrixMTX!$A200,PrixMTX!$B$200:$B201,PrixMTX!B200)>0,\"\",MAX($AB$5:AB199)+1))","v":""}]

{"sheet":"LISTE","index":3,"n_rows":145,"n_cols":26,"rows_kept":145,"cut":false,"hidden":false,"merged":[]}
["ce tableau se remplit automatiquement à partir des entrées dans la feuille Prix MTX selon le codage des colonnes AA et AB de DATA (Valable de 6 à200) uniquement lorsque la composition A&B existe au moins deux fois dans la base"]
["Il n'est pas utile que les listes en A et B de prix MTX soient classées"]
["le tableau est fonctionnel de A6 à Z16"]
["De nouvelles appelations combinées en colonne A et B de PrixMTX créent automatiquement un titre en ligne 5, mais le champ devra être nommé de ce nom. Pour ça sélectionner l a colonnede 5 à16 inclus, Ruban/ Onglet formule/Créer un nom et cocher \"ligne du haut\""]
[{"$f":"IF(MAX(CodB)>=COLUMN(),INDEX(TCDcategorie,MATCH(COLUMN(),CodB,0))&INDEX(ssCat.Articles,MATCH(COLUMN(),CodB,0)),\"\")","v":"BETONLivré"},"BETONNon_Livré","BOISStructure","CLOTURESPanneaux","METALBéton","TRANSPORTBéton","TRANSPORTFournisseurs","","","","","","","","","","","","","","","","","","",""]
["Cat1_","Cat2_","Cat3_","Cat4_","Cat5_","Cat6_","Cat7_","Cat8_","Cat9_","Cat10_","Cat11_","Cat12_","Cat13_","Cat14_","Cat15_","Cat16_","Cat17_","Cat18_","Cat19_","Cat20_","Cat21_","Cat22_","Cat23_","Cat24_","Cat25_","Cat26_"]
[]
[{"$f":"IF(A5=\"\",\"\",IF(COUNTIF(CodA,\"*\"&A$5&\"*\")>=ROW($A1),INDEX(DesignationMTX,MATCH(A$5&ROW($A1),CodA,0)),\"\"))","v":"Béton+ PUMI complet (6 m3)"},"Béton (à livrer toupie/pumi)","Grandes planches coffrage","Panneaux soudés 2,5x1,23m (anthracite)","Rond béton HA10","Livraison AP camion","Fourn. 6 Camion 8x4 (15T?)","","","","","","","","","","","","","","","","","","",""]
[{"$f":"IF(A8=\"\",\"\",IF(COUNTIF(CodA,\"*\"&A$5&\"*\")>=ROW($A2),INDEX(DesignationMTX,MATCH(A$5&ROW($A2),CodA,0)),\"\"))","v":"Béton+ PUMI moitié (3 m3)"},"Béton (direct centrale) ","Petites planches coffrage","Poteau 1,3m (anthracite)","Rond béton HA8","Livraison PUMI (6 m3 max) (en plus transport Toupie)","Fourn.5 Camion 8x4 (15T?)","","","",{"$f":"IF(K8=\"\",\"\",IF(COUNTIF(CodA,\"*\"&K$5&\"*\")>=ROW($A2),INDEX(DesignationMTX,MATCH(K$5&ROW($A2),CodA,0)),\"\"))","v":""},"","","","","","","","","",{"$f":"IF(U8=\"\",\"\",IF(COUNTIF(CodA,\"*\"&U$5&\"*\")>=ROW($A2),INDEX(DesignationMTX,MATCH(U$5&ROW($A2),CodA,0)),\"\"))","v":""},"","","","",""]
["Béton+TOUPIE complète (6 m3)","Mortier","","support platine poteaux (anthracite)","","Livraison PUMI m3 pompé","Transporteur Camion 6x4 Ampiroll (13T)","","","","","","","","","","","","","","","","","","",""]
["Béton+TOUPIE moitié (3 m3)","","","","","Livraison TOUPIE (6 m3 max)","","","","","","","","","","","","","","","","","","","",""]
["","","","","","","","","","","","","","","","","","","","","","","","","",""]
[{"$f":"IF(A12=\"\",\"\",IF(COUNTIF(CodA,\"*\"&A$5&\"*\")>=ROW($A8),INDEX(DesignationMTX,MATCH(A$5&ROW($A8),CodA,0)),\"\"))","v":""},"","","","","","","","","",{"$f":"IF(K12=\"\",\"\",IF(COUNTIF(CodA,\"*\"&K$5&\"*\")>=ROW($A8),INDEX(DesignationMTX,MATCH(K$5&ROW($A8),CodA,0)),\"\"))","v":""},"","","","","","","","","",{"$f":"IF(U12=\"\",\"\",IF(COUNTIF(CodA,\"*\"&U$5&\"*\")>=ROW($A8),INDEX(DesignationMTX,MATCH(U$5&ROW($A8),CodA,0)),\"\"))","v":""},"","","","",""]
["","","","","","","","","","","","","","","","","","","","","","","","","",""]
["","","","","","","","","","","","","","","","","","","","","","","","","",""]
["","","","","","","","","","","","","","","","","","","","","","","","","",""]
["","","","","","","","","","","","","","","","","","","","","","","","","",""]
["","","","","","","","","","","","","","","","","","","","","","","","","",""]
[]
[]
[]
[]
[]
[]
[]
[]
[]
[]
[]
[]
[]
[]
[]
[]
[]
[]
[]
[]
[]
[]
[]
[]
[]
[]
[]
[]
[]
[]
[]
[]
[]
[]
[]
[]
[]
[]
[]
[]
[]
[]
[]
[]
[]
[]
[]
[]
[]
[]
[]
[]
[]
[]
[]
[]
[]
[]
[]
[]
[]
[]
[]
[]
[]
[]
[]
[]
[]
[]
[]
[]
[]
[]
[]
[]
[]
[]
[]
[]
[]
[]
[]
[]
[]
[]
[]
[]
[]
[]
[]
[]
[]
[]
[]
[]
[]
[]
[]
[]
[]
[]
[]
[]
[]
[]
[]
[]
[]
[]
[]
[]
[]
[]
[]
[]
[]
[]
[]
[]
[]
[""]
[""]
[""]
[""]
[""]
["*"]

{"sheet":"Feuil2","index":4,"n_rows":0,"n_cols":0,"rows_kept":0,"cut":false,"hidden":false,"merged":[]}

{"sheet":"Feuil3","index":5,"n_rows":0,"n_cols":0,"rows_kept":0,"cut":false,"hidden":false,"merged":[]}